{"text_format":"1","workbook":"xlsx","n_sheets":7,"sheets":["ورقة1","تقرير المقاولين جاز","توزيع يومى على المقاولين","مجدى","صلاح","علوان","رضا"],"not_rendered":{"charts":0,"images":0,"macros":1,"external_links":0,"defined_names":6,"comments":0,"pivot_tables":0},"unopened":[],"bounds":{"document_bytes":16777216,"sheet_cells":100000,"rows_first":2000,"rows_last":500,"rows_between":2000,"halvings":0,"cell_chars":16384,"cell_head_chars":4096},"cells_cut":0,"cells_raw":0,"read":"whole","date_system":"1900"}

{"sheet":"ورقة1","index":0,"n_rows":10,"n_cols":5,"rows_kept":10,"cut":false,"hidden":false,"merged":[]}
[null,"اسم صاحب المعدة","السائق","المعدة","المقاول"]
[null,"ضيف","محمد","ليزر","رجب"]
[null,"علوان","محمود","لودر كبير","عمر"]
[null,"مجدى","هيثم ","لودر صغير","خالد"]
[null,"صلاح","احمد","سيارة مياه كبيرة","السيد"]
[null,"رضا",null,"سيارة مياه صغيرة","حلمى"]
[null,null,null,"جرار مياه","جابر"]
[null,null,null,"هراس صغير","رجب"]
[null,null,null,"هراس كبير","محمود"]
[null,null,null,"سيارة م3"]

{"sheet":"تقرير المقاولين جاز","index":1,"n_rows":47,"n_cols":8,"rows_kept":47,"cut":false,"hidden":false,"merged":[[6,1,7,6]]}
[]
[null,"رقم الاذن","اسم المقاول","التاريخ","التاريخ"]
[null,null,null,{"$f":"\">=\"&B6","v":">=44197"},{"$f":"\"<=\"&C6","v":"<=44380"}]
[]
[null,"من تاريخ","الى تاريخ",null,null,"اجمالى الكمية","السعر","القيمة"]
[null,"2021-01-01","2021-07-03",null,null,{"$f":"SUBTOTAL(9,F10:F52002)","v":0},7.05,{"$f":"+F6*G6","v":0}]
[null,"تقرير تفصيلى لتوزيع اليومى للسولار الخاص بمحطة وليد"]
[]
[null,"اليوم","التاريخ","المعدة","اسم المقاول","اسم السائق","الساعات","المقاول"]
[null,"2021-01-03","2021-01-03","لودر صغير","مجدى","لودر صغير",5,"السيد"]
[null,"2021-01-04","2021-01-04","لودر صغير","مجدى","لودر صغير",6,"السيد"]
[null,"2021-01-05","2021-01-05","لودر صغير","مجدى","لودر صغير",7,"السيد"]
[null,"2021-01-06","2021-01-06","لودر صغير","مجدى","لودر صغير",8,"السيد"]
[null,"2021-01-07","2021-01-07","لودر صغير","مجدى","لودر صغير",9,"السيد"]
[null,"2021-01-08","2021-01-08","لودر صغير","مجدى","لودر صغير",10,"السيد"]
[null,"2021-01-09","2021-01-09","لودر صغير","مجدى","لودر صغير",11,"السيد"]
[null,"2021-01-10","2021-01-10","لودر صغير","مجدى","لودر صغير",12,"السيد"]
[null,"2021-01-11","2021-01-11","لودر صغير","مجدى","لودر صغير",13,"السيد"]
[null,"2021-01-12","2021-01-12","لودر صغير","مجدى","لودر صغير",14,"السيد"]
[null,"2021-01-13","2021-01-13","لودر صغير","مجدى","لودر صغير",15,"السيد"]
[null,"2021-01-14","2021-01-14","لودر صغير","مجدى","لودر صغير",16,"السيد"]
[null,"2021-01-15","2021-01-15","لودر صغير","مجدى","لودر صغير",17,"السيد"]
[null,"2021-01-16","2021-01-16","لودر صغير","مجدى","لودر صغير",18,"السيد"]
[null,"2021-01-17","2021-01-17","لودر صغير","مجدى","لودر صغير",19,"السيد"]
[null,"2021-01-18","2021-01-18","لودر صغير","مجدى","لودر صغير",20,"السيد"]
[null,"2021-01-19","2021-01-19","لودر صغير","مجدى","لودر صغير",21,"السيد"]
[null,"2021-01-20","2021-01-20","لودر صغير","مجدى","لودر صغير",22,"السيد"]
[null,"2021-01-21","2021-01-21","لودر صغير","مجدى","لودر صغير",23,"السيد"]
[null,"2021-01-22","2021-01-22","لودر صغير","مجدى","لودر صغير",24,"السيد"]
[null,"2021-01-23","2021-01-23","لودر صغير","مجدى","لودر صغير",25,"السيد"]
[null,"2021-01-24","2021-01-24","لودر صغير","مجدى","لودر صغير",26,"السيد"]
[null,"2021-01-25","2021-01-25","لودر صغير","مجدى","لودر صغير",27,"السيد"]
[null,"2021-01-26","2021-01-26","لودر صغير","مجدى","لودر صغير",28,"السيد"]
[null,"2021-01-27","2021-01-27","لودر صغير","مجدى","لودر صغير",29,"السيد"]
[null,"2021-01-28","2021-01-28","لودر صغير","مجدى","لودر صغير",30,"السيد"]
[null,"2021-01-29","2021-01-29","لودر صغير","مجدى","لودر صغير",31,"السيد"]
[null,"2021-01-30","2021-01-30","لودر صغير","مجدى","لودر صغير",32,"السيد"]
[null,"2021-01-31","2021-01-31","لودر صغير","مجدى","لودر صغير",33,"السيد"]
[null,"2021-02-01","2021-02-01","لودر صغير","مجدى","لودر صغير",34,"السيد"]
[null,"2021-02-02","2021-02-02","لودر صغير","مجدى","لودر صغير",35,"السيد"]
[null,"2021-02-03","2021-02-03","لودر صغير","مجدى","لودر صغير",36,"السيد"]
[null,"2021-02-04","2021-02-04","لودر صغير","مجدى","لودر صغير",37,"السيد"]
[null,"2021-02-05","2021-02-05","لودر صغير","مجدى","لودر صغير",38,"السيد"]
[null,"2021-02-06","2021-02-06","لودر صغير","مجدى","لودر صغير",39,"السيد"]
[null,"2021-02-07","2021-02-07","لودر صغير","مجدى","لودر صغير",40,"السيد"]
[null,"2021-02-08","2021-02-08","لودر صغير","مجدى","لودر صغير",41,"السيد"]
[null,"2021-02-09","2021-02-09","لودر صغير","مجدى","لودر صغير",42,"السيد"]

{"sheet":"توزيع يومى على المقاولين","index":2,"n_rows":5086,"n_cols":13,"rows_kept":5086,"cut":false,"hidden":false,"merged":[]}
[null,null,null,null,"شركة ال حماد للمقاولات",null,null,null,null,"مشروع التسويات باللاهون"]
[]
[null,null,null,null,"بيان يومى تفصيلى بتوزيع المعدات على المقاولين"]
[null,null,null,null,null,null,null,"الاجمالى الكلى",{"$f":"SUM(I7:I17001)","v":0},{"$f":"+K4/I4","v":{"$error":"#DIV/0!"}},{"$f":"SUM(K7:K17001)","v":0}]
[]
[null,null,null,null,"اليوم","التاريخ","المعدة","اسم المقاول","اسم السائق","الساعات","المقاول"]
[null,null,null,null,{"$f":"F7","v":"2021-01-03"},"2021-01-03","لودر صغير","مجدى","هيثم ",5,"السيد"]
[null,null,null,null,{"$f":"F8","v":"2021-01-04"},"2021-01-04","لودر صغير","مجدى","هيثم ",6,"السيد"]
[null,null,null,null,"2021-01-05","2021-01-05","لودر صغير","مجدى","هيثم ",7,"السيد"]
[null,null,null,null,"2021-01-06","2021-01-06","لودر صغير","مجدى","هيثم ",8,"السيد"]
[null,null,null,null,"2021-01-07","2021-01-07","لودر صغير","مجدى","هيثم ",9,"السيد"]
[null,null,null,null,"2021-01-08","2021-01-08","لودر صغير","مجدى","هيثم ",10,"السيد"]
[null,null,null,null,"2021-01-09","2021-01-09","لودر صغير","مجدى","هيثم ",11,"السيد"]
[null,null,null,null,"2021-01-10","2021-01-10","لودر صغير","مجدى","هيثم ",12,"السيد"]
[null,null,null,null,"2021-01-11","2021-01-11","لودر صغير","مجدى","هيثم ",13,"السيد"]
[null,null,null,null,"2021-01-12","2021-01-12","لودر صغير","مجدى","هيثم ",14,"السيد"]
[null,null,null,null,"2021-01-13","2021-01-13","لودر صغير","مجدى","هيثم ",15,"السيد"]
[null,null,null,null,"2021-01-14","2021-01-14","لودر صغير","مجدى","هيثم ",16,"السيد"]
[null,null,null,null,"2021-01-15","2021-01-15","لودر صغير","مجدى","هيثم ",17,"السيد"]
[null,null,null,null,"2021-01-16","2021-01-16","لودر صغير","مجدى","هيثم ",18,"السيد"]
[null,null,null,null,"2021-01-17","2021-01-17","لودر صغير","مجدى","هيثم ",19,"السيد"]
[null,null,null,null,"2021-01-18","2021-01-18","لودر صغير","مجدى","هيثم ",20,"السيد"]
[null,null,null,null,"2021-01-19","2021-01-19","لودر صغير","مجدى","هيثم ",21,"السيد"]
[null,null,null,null,"2021-01-20","2021-01-20","لودر صغير","مجدى","هيثم ",22,"السيد"]
[null,null,null,null,"2021-01-21","2021-01-21","لودر صغير","مجدى","هيثم ",23,"السيد"]
[null,null,null,null,"2021-01-22","2021-01-22","لودر صغير","مجدى","هيثم ",24,"السيد"]
[null,null,null,null,"2021-01-23","2021-01-23","لودر صغير","مجدى","هيثم ",25,"السيد"]
[null,null,null,null,"2021-01-24","2021-01-24","لودر صغير","مجدى","هيثم ",26,"السيد"]
[null,null,null,null,"2021-01-25","2021-01-25","لودر صغير","مجدى","هيثم ",27,"السيد"]
[null,null,null,null,"2021-01-26","2021-01-26","لودر صغير","مجدى","هيثم ",28,"السيد"]
[null,null,null,null,"2021-01-27","2021-01-27","لودر صغير","مجدى","هيثم ",29,"السيد"]
[null,null,null,null,"2021-01-28","2021-01-28","لودر صغير","مجدى","هيثم ",30,"السيد"]
[null,null,null,null,{"$f":"F33","v":"2021-01-29"},"2021-01-29","لودر صغير","مجدى","هيثم ",31,"السيد"]
[null,null,null,null,"2021-01-30","2021-01-30","لودر صغير","مجدى","هيثم ",32,"السيد"]
[null,null,null,null,"2021-01-31","2021-01-31","لودر صغير","مجدى","هيثم ",33,"السيد"]
[null,null,null,null,"2021-02-01","2021-02-01","لودر صغير","مجدى","هيثم ",34,"السيد"]
[null,null,null,null,"2021-02-02","2021-02-02","لودر صغير","مجدى","هيثم ",35,"السيد"]
[null,null,null,null,"2021-02-03","2021-02-03","سيارة مياه صغيرة","صلاح","هيثم ",36,"السيد"]
[null,null,null,null,"2021-02-04","2021-02-04","هراس صغير","علوان","هيثم ",37,"السيد"]
[null,null,null,null,"2021-02-05","2021-02-05","سيارة م3","مجدى","هيثم ",38,"السيد"]
[null,null,null,null,"2021-02-06","2021-02-06","لودر صغير","رضا","هيثم ",39,"السيد"]
[null,null,null,null,"2021-02-07","2021-02-07","سيارة مياه صغيرة","رضا","هيثم ",40,"السيد"]
[null,null,null,null,"2021-02-08","2021-02-08","هراس صغير","رضا","هيثم ",41,"السيد"]
[null,null,null,null,"2021-02-09","2021-02-09","سيارة م4","رضا","هيثم ",42,"السيد"]
[null,null,null,null,"00:00:00"]
[null,null,null,null,"00:00:00"]
[null,null,null,null,"00:00:00"]
[null,null,null,null,"00:00:00"]
[null,null,null,null,"00:00:00"]
[null,null,null,null,"00:00:00"]
[null,null,null,null,"00:00:00"]
[null,null,null,null,{"$f":"F52","v":"00:00:00"}]
[null,null,null,null,"00:00:00"]
[null,null,null,null,{"$f":"F54","v":"00:00:00"}]
[null,null,null,null,"00:00:00"]
[null,null,null,null,"00:00:00"]
[null,null,null,null,"00:00:00"]
[null,null,null,null,"00:00:00"]
[null,null,null,null,"00:00:00"]
[null,null,null,null,{"$f":"F60","v":"00:00:00"},null,null,null,null,null,null,null,"عهدة موقع "]
[null,null,null,null,"00:00:00"]
[null,null,null,null,"00:00:00"]
[null,null,null,null,"00:00:00"]
[null,null,null,null,"00:00:00"]
[null,null,null,null,"00:00:00"]
[null,null,null,null,{"$f":"F66","v":"00:00:00"}]
[null,null,null,null,"00:00:00"]
[null,null,null,null,"00:00:00"]
[null,null,null,null,"00:00:00"]
[null,null,null,null,"00:00:00"]
[null,null,null,null,"00:00:00"]
[null,null,null,null,{"$f":"F72","v":"00:00:00"}]
[null,null,null,null,"00:00:00"]
[null,null,null,null,"00:00:00"]
[null,null,null,null,"00:00:00"]
[null,null,null,null,"00:00:00"]
[null,null,null,null,"00:00:00"]
[null,null,null,null,"00:00:00"]
[null,null,null,null,"00:00:00"]
[null,null,null,null,"00:00:00"]
[null,null,null,null,"00:00:00"]
[null,null,null,null,"00:00:00"]
[null,null,null,null,"00:00:00"]
[null,null,null,null,"00:00:00"]
[null,null,null,null,"00:00:00"]
[null,null,null,null,"00:00:00"]
[null,null,null,null,{"$f":"F87","v":"00:00:00"}]
[null,null,null,null,"00:00:00"]
[null,null,null,null,"00:00:00"]
[null,null,null,null,"00:00:00"]
[null,null,null,null,"00:00:00"]
[null,null,null,null,"00:00:00"]
[null,null,null,null,"00:00:00"]
[null,null,null,null,{"$f":"F94","v":"00:00:00"}]
[null,null,null,null,"00:00:00"]
[null,null,null,null,"00:00:00"]
[null,null,null,null,"00:00:00"]
[null,null,null,null,"00:00:00"]
[null,null,null,null,"00:00:00"]
[null,null,null,null,"00:00:00"]
[null,null,null,null,"00:00:00"]
[null,null,null,null,"00:00:00"]
[null,null,null,null,"00:00:00"]
[null,null,null,null,"00:00:00"]
[null,null,null,null,"00:00:00"]
[null,null,null,null,"00:00:00"]
[null,null,null,null,"00:00:00"]
[null,null,null,null,"00:00:00"]
[null,null,null,null,"00:00:00"]
[null,null,null,null,"00:00:00"]
[null,null,null,null,"00:00:00"]
[null,null,null,null,"00:00:00"]
[null,null,null,null,"00:00:00"]
[null,null,null,null,"00:00:00"]
[null,null,null,null,"00:00:00"]
[null,null,null,null,"00:00:00"]
[null,null,null,null,"00:00:00"]
[null,null,null,null,"00:00:00"]
[null,null,null,null,"00:00:00"]
[null,null,null,null,"00:00:00"]
[null,null,null,null,"00:00:00"]
[null,null,null,null,"00:00:00"]
[null,null,null,null,"00:00:00"]
[null,null,null,null,"00:00:00"]
[null,null,null,null,"00:00:00"]
[null,null,null,null,"00:00:00"]
[null,null,null,null,"00:00:00"]
[null,null,null,null,"00:00:00"]
[null,null,null,null,"00:00:00"]
[null,null,null,null,"00:00:00"]
[null,null,null,null,"00:00:00"]
[null,null,null,null,"00:00:00"]
[null,null,null,null,"00:00:00"]
[null,null,null,null,"00:00:00"]
[null,null,null,null,"00:00:00"]
[null,null,null,null,{"$f":"F136","v":"00:00:00"}]
[null,null,null,null,"00:00:00"]
[null,null,null,null,"00:00:00"]
[null,null,null,null,"00:00:00"]
[null,null,null,null,"00:00:00"]
[null,null,null,null,"00:00:00"]
[null,null,null,null,"00:00:00"]
[null,null,null,null,"00:00:00"]
[null,null,null,null,"00:00:00"]
[null,null,null,null,"00:00:00"]
[null,null,null,null,"00:00:00"]
[null,null,null,null,"00:00:00"]
[null,null,null,null,"00:00:00"]
[null,null,null,null,"00:00:00",null,null,null,null,null,{"$f":"IF(OR(I149=\"\",J149=\"\"),\"\",PRODUCT(I149,J149))","v":""}]
[null,null,null,null,"00:00:00",null,null,null,null,null,""]
[null,null,null,null,"00:00:00",null,null,null,null,null,""]
[null,null,null,null,"00:00:00",null,null,null,null,null,""]
[null,null,null,null,"00:00:00",null,null,null,null,null,""]
[null,null,null,null,"00:00:00",null,null,null,null,null,""]
[null,null,null,null,"00:00:00",null,null,null,null,null,""]
[null,null,null,null,"00:00:00",null,null,null,null,null,""]
[null,null,null,null,"00:00:00",null,null,null,null,null,""]
[null,null,null,null,"00:00:00",null,null,null,null,null,""]
[null,null,null,null,"00:00:00",null,null,null,null,null,""]
[null,null,null,null,"00:00:00",null,null,null,null,null,""]
[null,null,null,null,"00:00:00",null,null,null,null,null,""]
[null,null,null,null,"00:00:00",null,null,null,null,null,""]
[null,null,null,null,"00:00:00",null,null,null,null,null,""]
[null,null,null,null,"00:00:00",null,null,null,null,null,""]
[null,null,null,null,"00:00:00",null,null,null,null,null,""]
[null,null,null,null,"00:00:00",null,null,null,null,null,""]
[null,null,null,null,"00:00:00",null,null,null,null,null,""]
[null,null,null,null,"00:00:00",null,null,null,null,null,""]
[null,null,null,null,"00:00:00",null,null,null,null,null,""]
[null,null,null,null,"00:00:00",null,null,null,null,null,""]
[null,null,null,null,"00:00:00",null,null,null,null,null,""]
[null,null,null,null,"00:00:00",null,null,null,null,null,""]
[null,null,null,null,"00:00:00",null,null,null,null,null,""]
[null,null,null,null,"00:00:00",null,null,null,null,null,""]
[null,null,null,null,"00:00:00",null,null,null,null,null,""]
[null,null,null,null,"00:00:00",null,null,null,null,null,""]
[null,null,null,null,"00:00:00",null,null,null,null,null,""]
[null,null,null,null,"00:00:00",null,null,null,null,null,""]
[null,null,null,null,"00:00:00",null,null,null,null,null,""]
[null,null,null,null,"00:00:00",null,null,null,null,null,""]
[null,null,null,null,"00:00:00",null,null,null,null,null,""]
[null,null,null,null,"00:00:00",null,null,null,null,null,""]
[null,null,null,null,"00:00:00",null,null,null,null,null,""]
[null,null,null,null,"00:00:00",null,null,null,null,null,""]
[null,null,null,null,"00:00:00",null,null,null,null,null,""]
[null,null,null,null,"00:00:00",null,null,null,null,null,""]
[null,null,null,null,"00:00:00",null,null,null,null,null,""]
[null,null,null,null,"00:00:00",null,null,null,null,null,""]
[null,null,null,null,"00:00:00",null,null,null,null,null,""]
[null,null,null,null,"00:00:00",null,null,null,null,null,""]
[null,null,null,null,"00:00:00",null,null,null,null,null,""]
[null,null,null,null,"00:00:00",null,null,null,null,null,""]
[null,null,null,null,"00:00:00",null,null,null,null,null,""]
[null,null,null,null,"00:00:00",null,null,null,null,null,""]
[null,null,null,null,"00:00:00",null,null,null,null,null,""]
[null,null,null,null,"00:00:00",null,null,null,null,null,""]
[null,null,null,null,"00:00:00",null,null,null,null,null,""]
[null,null,null,null,"00:00:00",null,null,null,null,null,""]
[null,null,null,null,"00:00:00",null,null,null,null,null,""]
[null,null,null,null,{"$f":"F200","v":"00:00:00"},null,null,null,null,null,{"$f":"IF(OR(I200=\"\",J200=\"\"),\"\",PRODUCT(I200,J200))","v":""}]
[null,null,null,null,"00:00:00",null,null,null,null,null,""]
[null,null,null,null,"00:00:00",null,null,null,null,null,""]
[null,null,null,null,"00:00:00",null,null,null,null,null,""]
[null,null,null,null,"00:00:00",null,null,null,null,null,""]
[null,null,null,null,"00:00:00",null,null,null,null,null,""]
[null,null,null,null,"00:00:00",null,null,null,null,null,""]
[null,null,null,null,"00:00:00",null,null,null,null,null,""]
[null,null,null,null,"00:00:00",null,null,null,null,null,""]
[null,null,null,null,"00:00:00",null,null,null,null,null,""]
[null,null,null,null,"00:00:00",null,null,null,null,null,""]
[null,null,null,null,"00:00:00",null,null,null,null,null,""]
[null,null,null,null,"00:00:00",null,null,null,null,null,""]
[null,null,null,null,"00:00:00",null,null,null,null,null,""]
[null,null,null,null,"00:00:00",null,null,null,null,null,""]
[null,null,null,null,"00:00:00",null,null,null,null,null,""]
[null,null,null,null,"00:00:00",null,null,null,null,null,""]
[null,null,null,null,"00:00:00",null,null,null,null,null,""]
[null,null,null,null,"00:00:00",null,null,null,null,null,""]
[null,null,null,null,"00:00:00",null,null,null,null,null,""]
[null,null,null,null,"00:00:00",null,null,null,null,null,""]
[null,null,null,null,"00:00:00",null,null,null,null,null,""]
[null,null,null,null,"00:00:00",null,null,null,null,null,""]
[null,null,null,null,"00:00:00",null,null,null,null,null,""]
[null,null,null,null,"00:00:00",null,null,null,null,null,""]
[null,null,null,null,"00:00:00",null,null,null,null,null,""]
[null,null,null,null,"00:00:00",null,null,null,null,null,""]
[null,null,null,null,"00:00:00",null,null,null,null,null,""]
[null,null,null,null,"00:00:00",null,null,null,null,null,""]
[null,null,null,null,"00:00:00",null,null,null,null,null,""]
[null,null,null,null,"00:00:00",null,null,null,null,null,""]
[null,null,null,null,"00:00:00",null,null,null,null,null,""]
[null,null,null,null,"00:00:00",null,null,null,null,null,""]
[null,null,null,null,"00:00:00",null,null,null,null,null,""]
[null,null,null,null,"00:00:00",null,null,null,null,null,""]
[null,null,null,null,"00:00:00",null,null,null,null,null,""]
[null,null,null,null,"00:00:00",null,null,null,null,null,""]
[null,null,null,null,"00:00:00",null,null,null,null,null,""]
[null,null,null,null,"00:00:00",null,null,null,null,null,""]
[null,null,null,null,"00:00:00",null,null,null,null,null,""]
[null,null,null,null,"00:00:00",null,null,null,null,null,""]
[null,null,null,null,"00:00:00",null,null,null,null,null,""]
[null,null,null,null,"00:00:00",null,null,null,null,null,""]
[null,null,null,null,"00:00:00",null,null,null,null,null,""]
[null,null,null,null,"00:00:00",null,null,null,null,null,""]
[null,null,null,null,"00:00:00",null,null,null,null,null,""]
[null,null,null,null,"00:00:00",null,null,null,null,null,""]
[null,null,null,null,"00:00:00",null,null,null,null,null,""]
[null,null,null,null,"00:00:00",null,null,null,null,null,""]
[null,null,null,null,"00:00:00",null,null,null,null,null,""]
[null,null,null,null,"00:00:00",null,null,null,null,null,""]
[null,null,null,null,"00:00:00",null,null,null,null,null,""]
[null,null,null,null,"00:00:00",null,null,null,null,null,""]
[null,null,null,null,"00:00:00",null,null,null,null,null,""]
[null,null,null,null,"00:00:00",null,null,null,null,null,""]
[null,null,null,null,"00:00:00",null,null,null,null,null,""]
[null,null,null,null,"00:00:00",null,null,null,null,null,""]
[null,null,null,null,"00:00:00",null,null,null,null,null,""]
[null,null,null,null,"00:00:00",null,null,null,null,null,""]
[null,null,null,null,"00:00:00",null,null,null,null,null,""]
[null,null,null,null,"00:00:00",null,null,null,null,null,""]
[null,null,null,null,"00:00:00",null,null,null,null,null,""]
[null,null,null,null,"00:00:00",null,null,null,null,null,""]
[null,null,null,null,"00:00:00",null,null,null,null,null,""]
[null,null,null,null,{"$f":"F264","v":"00:00:00"},null,null,null,null,null,{"$f":"IF(OR(I264=\"\",J264=\"\"),\"\",PRODUCT(I264,J264))","v":""}]
[null,null,null,null,"00:00:00",null,null,null,null,null,""]
[null,null,null,null,"00:00:00",null,null,null,null,null,""]
[null,null,null,null,"00:00:00",null,null,null,null,null,""]
[null,null,null,null,"00:00:00",null,null,null,null,null,""]
[null,null,null,null,"00:00:00",null,null,null,null,null,""]
[null,null,null,null,"00:00:00",null,null,null,null,null,""]
[null,null,null,null,"00:00:00",null,null,null,null,null,""]
[null,null,null,null,"00:00:00",null,null,null,null,null,""]
[null,null,null,null,"00:00:00",null,null,null,null,null,""]
[null,null,null,null,"00:00:00",null,null,null,null,null,""]
[null,null,null,null,"00:00:00",null,null,null,null,null,""]
[null,null,null,null,"00:00:00",null,null,null,null,null,""]
[null,null,null,null,"00:00:00",null,null,null,null,null,""]
[null,null,null,null,"00:00:00",null,null,null,null,null,""]
[null,null,null,null,"00:00:00",null,null,null,null,null,""]
[null,null,null,null,"00:00:00",null,null,null,null,null,""]
[null,null,null,null,"00:00:00",null,null,null,null,null,""]
[null,null,null,null,"00:00:00",null,null,null,null,null,""]
[null,null,null,null,"00:00:00",null,null,null,null,null,""]
[null,null,null,null,"00:00:00",null,null,null,null,null,""]
[null,null,null,null,"00:00:00",null,null,null,null,null,""]
[null,null,null,null,"00:00:00",null,null,null,null,null,""]
[null,null,null,null,"00:00:00",null,null,null,null,null,""]
[null,null,null,null,"00:00:00",null,null,null,null,null,""]
[null,null,null,null,"00:00:00",null,null,null,null,null,""]
[null,null,null,null,"00:00:00",null,null,null,null,null,""]
[null,null,null,null,"00:00:00",null,null,null,null,null,""]
[null,null,null,null,"00:00:00",null,null,null,null,null,""]
[null,null,null,null,"00:00:00",null,null,null,null,null,""]
[null,null,null,null,"00:00:00",null,null,null,null,null,""]
[null,null,null,null,"00:00:00",null,null,null,null,null,""]
[null,null,null,null,"00:00:00",null,null,null,null,null,""]
[null,null,null,null,"00:00:00",null,null,null,null,null,""]
[null,null,null,null,"00:00:00",null,null,null,null,null,""]
[null,null,null,null,"00:00:00",null,null,null,null,null,""]
[null,null,null,null,"00:00:00",null,null,null,null,null,""]
[null,null,null,null,"00:00:00",null,null,null,null,null,""]
[null,null,null,null,"00:00:00",null,null,null,null,null,""]
[null,null,null,null,"00:00:00",null,null,null,null,null,""]
[null,null,null,null,"00:00:00",null,null,null,null,null,""]
[null,null,null,null,"00:00:00",null,null,null,null,null,""]
[null,null,null,null,"00:00:00",null,null,null,null,null,""]
[null,null,null,null,"00:00:00",null,null,null,null,null,""]
[null,null,null,null,"00:00:00",null,null,null,null,null,""]
[null,null,null,null,"00:00:00",null,null,null,null,null,""]
[null,null,null,null,"00:00:00",null,null,null,null,null,""]
[null,null,null,null,"00:00:00",null,null,null,null,null,""]
[null,null,null,null,"00:00:00",null,null,null,null,null,""]
[null,null,null,null,"00:00:00",null,null,null,null,null,""]
[null,null,null,null,"00:00:00",null,null,null,null,null,""]
[null,null,null,null,"00:00:00",null,null,null,null,null,""]
[null,null,null,null,"00:00:00",null,null,null,null,null,""]
[null,null,null,null,"00:00:00",null,null,null,null,null,""]
[null,null,null,null,"00:00:00",null,null,null,null,null,""]
[null,null,null,null,"00:00:00",null,null,null,null,null,""]
[null,null,null,null,"00:00:00",null,null,null,null,null,""]
[null,null,null,null,"00:00:00",null,null,null,null,null,""]
[null,null,null,null,"00:00:00",null,null,null,null,null,""]
[null,null,null,null,"00:00:00",null,null,null,null,null,""]
[null,null,null,null,"00:00:00",null,null,null,null,null,""]
[null,null,null,null,"00:00:00",null,null,null,null,null,""]
[null,null,null,null,"00:00:00",null,null,null,null,null,""]
[null,null,null,null,"00:00:00",null,null,null,null,null,""]
[null,null,null,null,{"$f":"F328","v":"00:00:00"},null,null,null,null,null,{"$f":"IF(OR(I328=\"\",J328=\"\"),\"\",PRODUCT(I328,J328))","v":""}]
[null,null,null,null,"00:00:00",null,null,null,null,null,""]
[null,null,null,null,"00:00:00",null,null,null,null,null,""]
[null,null,null,null,"00:00:00",null,null,null,null,null,""]
[null,null,null,null,"00:00:00",null,null,null,null,null,""]
[null,null,null,null,"00:00:00",null,null,null,null,null,""]
[null,null,null,null,"00:00:00",null,null,null,null,null,""]
[null,null,null,null,"00:00:00",null,null,null,null,null,""]
[null,null,null,null,"00:00:00",null,null,null,null,null,""]
[null,null,null,null,"00:00:00",null,null,null,null,null,""]
[null,null,null,null,"00:00:00",null,null,null,null,null,""]
[null,null,null,null,"00:00:00",null,null,null,null,null,""]
[null,null,null,null,"00:00:00",null,null,null,null,null,""]
[null,null,null,null,"00:00:00",null,null,null,null,null,""]
[null,null,null,null,"00:00:00",null,null,null,null,null,""]
[null,null,null,null,"00:00:00",null,null,null,null,null,""]
[null,null,null,null,"00:00:00",null,null,null,null,null,""]
[null,null,null,null,"00:00:00",null,null,null,null,null,""]
[null,null,null,null,"00:00:00",null,null,null,null,null,""]
[null,null,null,null,"00:00:00",null,null,null,null,null,""]
[null,null,null,null,"00:00:00",null,null,null,null,null,""]
[null,null,null,null,"00:00:00",null,null,null,null,null,""]
[null,null,null,null,"00:00:00",null,null,null,null,null,""]
[null,null,null,null,"00:00:00",null,null,null,null,null,""]
[null,null,null,null,"00:00:00",null,null,null,null,null,""]
[null,null,null,null,"00:00:00",null,null,null,null,null,""]
[null,null,null,null,"00:00:00",null,null,null,null,null,""]
[null,null,null,null,"00:00:00",null,null,null,null,null,""]
[null,null,null,null,"00:00:00",null,null,null,null,null,""]
[null,null,null,null,"00:00:00",null,null,null,null,null,""]
[null,null,null,null,"00:00:00",null,null,null,null,null,""]
[null,null,null,null,"00:00:00",null,null,null,null,null,""]
[null,null,null,null,"00:00:00",null,null,null,null,null,""]
[null,null,null,null,"00:00:00",null,null,null,null,null,""]
[null,null,null,null,"00:00:00",null,null,null,null,null,""]
[null,null,null,null,"00:00:00",null,null,null,null,null,""]
[null,null,null,null,"00:00:00",null,null,null,null,null,""]
[null,null,null,null,"00:00:00",null,null,null,null,null,""]
[null,null,null,null,"00:00:00",null,null,null,null,null,""]
[null,null,null,null,"00:00:00",null,null,null,null,null,""]
[null,null,null,null,"00:00:00",null,null,null,null,null,""]
[null,null,null,null,"00:00:00",null,null,null,null,null,""]
[null,null,null,null,"00:00:00",null,null,null,null,null,""]
[null,null,null,null,"00:00:00",null,null,null,null,null,""]
[null,null,null,null,"00:00:00",null,null,null,null,null,""]
[null,null,null,null,"00:00:00",null,null,null,null,null,""]
[null,null,null,null,"00:00:00",null,null,null,null,null,""]
[null,null,null,null,"00:00:00",null,null,null,null,null,""]
[null,null,null,null,"00:00:00",null,null,null,null,null,""]
[null,null,null,null,"00:00:00",null,null,null,null,null,""]
[null,null,null,null,"00:00:00",null,null,null,null,null,""]
[null,null,null,null,"00:00:00",null,null,null,null,null,""]
[null,null,null,null,"00:00:00",null,null,null,null,null,""]
[null,null,null,null,"00:00:00",null,null,null,null,null,""]
[null,null,null,null,"00:00:00",null,null,null,null,null,""]
[null,null,null,null,"00:00:00",null,null,null,null,null,""]
[null,null,null,null,"00:00:00",null,null,null,null,null,""]
[null,null,null,null,"00:00:00",null,null,null,null,null,""]
[null,null,null,null,"00:00:00",null,null,null,null,null,""]
[null,null,null,null,"00:00:00",null,null,null,null,null,""]
[null,null,null,null,"00:00:00",null,null,null,null,null,""]
[null,null,null,null,"00:00:00",null,null,null,null,null,""]
[null,null,null,null,"00:00:00",null,null,null,null,null,""]
[null,null,null,null,"00:00:00",null,null,null,null,null,""]
[null,null,null,null,{"$f":"F392","v":"00:00:00"},null,null,null,null,null,{"$f":"IF(OR(I392=\"\",J392=\"\"),\"\",PRODUCT(I392,J392))","v":""}]
[null,null,null,null,"00:00:00",null,null,null,null,null,""]
[null,null,null,null,"00:00:00",null,null,null,null,null,""]
[null,null,null,null,"00:00:00",null,null,null,null,null,""]
[null,null,null,null,"00:00:00",null,null,null,null,null,""]
[null,null,null,null,"00:00:00",null,null,null,null,null,""]
[null,null,null,null,"00:00:00",null,null,null,null,null,""]
[null,null,null,null,"00:00:00",null,null,null,null,null,""]
[null,null,null,null,"00:00:00",null,null,null,null,null,""]
[null,null,null,null,"00:00:00",null,null,null,null,null,""]
[null,null,null,null,"00:00:00",null,null,null,null,null,""]
[null,null,null,null,"00:00:00",null,null,null,null,null,""]
[null,null,null,null,"00:00:00",null,null,null,null,null,""]
[null,null,null,null,"00:00:00",null,null,null,null,null,""]
[null,null,null,null,"00:00:00",null,null,null,null,null,""]
[null,null,null,null,"00:00:00",null,null,null,null,null,""]
[null,null,null,null,"00:00:00",null,null,null,null,null,""]
[null,null,null,null,"00:00:00",null,null,null,null,null,""]
[null,null,null,null,"00:00:00",null,null,null,null,null,""]
[null,null,null,null,"00:00:00",null,null,null,null,null,""]
[null,null,null,null,"00:00:00",null,null,null,null,null,""]
[null,null,null,null,"00:00:00",null,null,null,null,null,""]
[null,null,null,null,"00:00:00",null,null,null,null,null,""]
[null,null,null,null,"00:00:00",null,null,null,null,null,""]
[null,null,null,null,"00:00:00",null,null,null,null,null,""]
[null,null,null,null,"00:00:00",null,null,null,null,null,""]
[null,null,null,null,"00:00:00",null,null,null,null,null,""]
[null,null,null,null,"00:00:00",null,null,null,null,null,""]
[null,null,null,null,"00:00:00",null,null,null,null,null,""]
[null,null,null,null,"00:00:00",null,null,null,null,null,""]
[null,null,null,null,"00:00:00",null,null,null,null,null,""]
[null,null,null,null,"00:00:00",null,null,null,null,null,""]
[null,null,null,null,"00:00:00",null,null,null,null,null,""]
[null,null,null,null,"00:00:00",null,null,null,null,null,""]
[null,null,null,null,"00:00:00",null,null,null,null,null,""]
[null,null,null,null,"00:00:00",null,null,null,null,null,""]
[null,null,null,null,"00:00:00",null,null,null,null,null,""]
[null,null,null,null,"00:00:00",null,null,null,null,null,""]
[null,null,null,null,"00:00:00",null,null,null,null,null,""]
[null,null,null,null,"00:00:00",null,null,null,null,null,""]
[null,null,null,null,"00:00:00",null,null,null,null,null,""]
[null,null,null,null,"00:00:00",null,null,null,null,null,""]
[null,null,null,null,"00:00:00",null,null,null,null,null,""]
[null,null,null,null,"00:00:00",null,null,null,null,null,""]
[null,null,null,null,"00:00:00",null,null,null,null,null,""]
[null,null,null,null,"00:00:00",null,null,null,null,null,""]
[null,null,null,null,"00:00:00",null,null,null,null,null,""]
[null,null,null,null,"00:00:00",null,null,null,null,null,""]
[null,null,null,null,"00:00:00",null,null,null,null,null,""]
[null,null,null,null,"00:00:00",null,null,null,null,null,""]
[null,null,null,null,"00:00:00",null,null,null,null,null,""]
[null,null,null,null,"00:00:00",null,null,null,null,null,""]
[null,null,null,null,"00:00:00",null,null,null,null,null,""]
[null,null,null,null,"00:00:00",null,null,null,null,null,""]
[null,null,null,null,"00:00:00",null,null,null,null,null,""]
[null,null,null,null,"00:00:00",null,null,null,null,null,""]
[null,null,null,null,"00:00:00",null,null,null,null,null,""]
[null,null,null,null,"00:00:00",null,null,null,null,null,""]
[null,null,null,null,"00:00:00",null,null,null,null,null,""]
[null,null,null,null,"00:00:00",null,null,null,null,null,""]
[null,null,null,null,"00:00:00",null,null,null,null,null,""]
[null,null,null,null,"00:00:00",null,null,null,null,null,""]
[null,null,null,null,"00:00:00",null,null,null,null,null,""]
[null,null,null,null,"00:00:00",null,null,null,null,null,""]
[null,null,null,null,{"$f":"F456","v":"00:00:00"},null,null,null,null,null,{"$f":"IF(OR(I456=\"\",J456=\"\"),\"\",PRODUCT(I456,J456))","v":""}]
[null,null,null,null,"00:00:00",null,null,null,null,null,""]
[null,null,null,null,"00:00:00",null,null,null,null,null,""]
[null,null,null,null,"00:00:00",null,null,null,null,null,""]
[null,null,null,null,"00:00:00",null,null,null,null,null,""]
[null,null,null,null,"00:00:00",null,null,null,null,null,""]
[null,null,null,null,"00:00:00",null,null,null,null,null,""]
[null,null,null,null,"00:00:00",null,null,null,null,null,""]
[null,null,null,null,"00:00:00",null,null,null,null,null,""]
[null,null,null,null,"00:00:00",null,null,null,null,null,""]
[null,null,null,null,"00:00:00",null,null,null,null,null,""]
[null,null,null,null,"00:00:00",null,null,null,null,null,""]
[null,null,null,null,"00:00:00",null,null,null,null,null,""]
[null,null,null,null,"00:00:00",null,null,null,null,null,""]
[null,null,null,null,"00:00:00",null,null,null,null,null,""]
[null,null,null,null,"00:00:00",null,null,null,null,null,""]
[null,null,null,null,"00:00:00",null,null,null,null,null,""]
[null,null,null,null,"00:00:00",null,null,null,null,null,""]
[null,null,null,null,"00:00:00",null,null,null,null,null,""]
[null,null,null,null,"00:00:00",null,null,null,null,null,""]
[null,null,null,null,"00:00:00",null,null,null,null,null,""]
[null,null,null,null,"00:00:00",null,null,null,null,null,""]
[null,null,null,null,"00:00:00",null,null,null,null,null,""]
[null,null,null,null,"00:00:00",null,null,null,null,null,""]
[null,null,null,null,"00:00:00",null,null,null,null,null,""]
[null,null,null,null,"00:00:00",null,null,null,null,null,""]
[null,null,null,null,"00:00:00",null,null,null,null,null,""]
[null,null,null,null,"00:00:00",null,null,null,null,null,""]
[null,null,null,null,"00:00:00",null,null,null,null,null,""]
[null,null,null,null,"00:00:00",null,null,null,null,null,""]
[null,null,null,null,"00:00:00",null,null,null,null,null,""]
[null,null,null,null,"00:00:00",null,null,null,null,null,""]
[null,null,null,null,"00:00:00",null,null,null,null,null,""]
[null,null,null,null,"00:00:00",null,null,null,null,null,""]
[null,null,null,null,"00:00:00",null,null,null,null,null,""]
[null,null,null,null,"00:00:00",null,null,null,null,null,""]
[null,null,null,null,"00:00:00",null,null,null,null,null,""]
[null,null,null,null,"00:00:00",null,null,null,null,null,""]
[null,null,null,null,"00:00:00",null,null,null,null,null,""]
[null,null,null,null,"00:00:00",null,null,null,null,null,""]
[null,null,null,null,"00:00:00",null,null,null,null,null,""]
[null,null,null,null,"00:00:00",null,null,null,null,null,""]
[null,null,null,null,"00:00:00",null,null,null,null,null,""]
[null,null,null,null,"00:00:00",null,null,null,null,null,""]
[null,null,null,null,"00:00:00",null,null,null,null,null,""]
[null,null,null,null,"00:00:00",null,null,null,null,null,""]
[null,null,null,null,"00:00:00",null,null,null,null,null,""]
[null,null,null,null,"00:00:00",null,null,null,null,null,""]
[null,null,null,null,"00:00:00",null,null,null,null,null,""]
[null,null,null,null,"00:00:00",null,null,null,null,null,""]
[null,null,null,null,"00:00:00",null,null,null,null,null,""]
[null,null,null,null,"00:00:00",null,null,null,null,null,""]
[null,null,null,null,"00:00:00",null,null,null,null,null,""]
[null,null,null,null,"00:00:00",null,null,null,null,null,""]
[null,null,null,null,"00:00:00",null,null,null,null,null,""]
[null,null,null,null,"00:00:00",null,null,null,null,null,""]
[null,null,null,null,"00:00:00",null,null,null,null,null,""]
[null,null,null,null,"00:00:00",null,null,null,null,null,""]
[null,null,null,null,"00:00:00",null,null,null,null,null,""]
[null,null,null,null,"00:00:00",null,null,null,null,null,""]
[null,null,null,null,"00:00:00",null,null,null,null,null,""]
[null,null,null,null,"00:00:00",null,null,null,null,null,""]
[null,null,null,null,"00:00:00",null,null,null,null,null,""]
[null,null,null,null,"00:00:00",null,null,null,null,null,""]
[null,null,null,null,{"$f":"F520","v":"00:00:00"},null,null,null,null,null,{"$f":"IF(OR(I520=\"\",J520=\"\"),\"\",PRODUCT(I520,J520))","v":""}]
[null,null,null,null,"00:00:00",null,null,null,null,null,""]
[null,null,null,null,"00:00:00",null,null,null,null,null,""]
[null,null,null,null,"00:00:00",null,null,null,null,null,""]
[null,null,null,null,"00:00:00",null,null,null,null,null,""]
[null,null,null,null,"00:00:00",null,null,null,null,null,""]
[null,null,null,null,"00:00:00",null,null,null,null,null,""]
[null,null,null,null,"00:00:00",null,null,null,null,null,""]
[null,null,null,null,"00:00:00",null,null,null,null,null,""]
[null,null,null,null,"00:00:00",null,null,null,null,null,""]
[null,null,null,null,"00:00:00",null,null,null,null,null,""]
[null,null,null,null,"00:00:00",null,null,null,null,null,""]
[null,null,null,null,"00:00:00",null,null,null,null,null,""]
[null,null,null,null,"00:00:00",null,null,null,null,null,""]
[null,null,null,null,"00:00:00",null,null,null,null,null,""]
[null,null,null,null,"00:00:00",null,null,null,null,null,""]
[null,null,null,null,"00:00:00",null,null,null,null,null,""]
[null,null,null,null,"00:00:00",null,null,null,null,null,""]
[null,null,null,null,"00:00:00",null,null,null,null,null,""]
[null,null,null,null,"00:00:00",null,null,null,null,null,""]
[null,null,null,null,"00:00:00",null,null,null,null,null,""]
[null,null,null,null,"00:00:00",null,null,null,null,null,""]
[null,null,null,null,"00:00:00",null,null,null,null,null,""]
[null,null,null,null,"00:00:00",null,null,null,null,null,""]
[null,null,null,null,"00:00:00",null,null,null,null,null,""]
[null,null,null,null,"00:00:00",null,null,null,null,null,""]
[null,null,null,null,"00:00:00",null,null,null,null,null,""]
[null,null,null,null,"00:00:00",null,null,null,null,null,""]
[null,null,null,null,"00:00:00",null,null,null,null,null,""]
[null,null,null,null,"00:00:00",null,null,null,null,null,""]
[null,null,null,null,"00:00:00",null,null,null,null,null,""]
[null,null,null,null,"00:00:00",null,null,null,null,null,""]
[null,null,null,null,"00:00:00",null,null,null,null,null,""]
[null,null,null,null,"00:00:00",null,null,null,null,null,""]
[null,null,null,null,"00:00:00",null,null,null,null,null,""]
[null,null,null,null,"00:00:00",null,null,null,null,null,""]
[null,null,null,null,"00:00:00",null,null,null,null,null,""]
[null,null,null,null,"00:00:00",null,null,null,null,null,""]
[null,null,null,null,"00:00:00",null,null,null,null,null,""]
[null,null,null,null,"00:00:00",null,null,null,null,null,""]
[null,null,null,null,"00:00:00",null,null,null,null,null,""]
[null,null,null,null,"00:00:00",null,null,null,null,null,""]
[null,null,null,null,"00:00:00",null,null,null,null,null,""]
[null,null,null,null,"00:00:00",null,null,null,null,null,""]
[null,null,null,null,"00:00:00",null,null,null,null,null,""]
[null,null,null,null,"00:00:00",null,null,null,null,null,""]
[null,null,null,null,"00:00:00",null,null,null,null,null,""]
[null,null,null,null,"00:00:00",null,null,null,null,null,""]
[null,null,null,null,"00:00:00",null,null,null,null,null,""]
[null,null,null,null,"00:00:00",null,null,null,null,null,""]
[null,null,null,null,"00:00:00",null,null,null,null,null,""]
[null,null,null,null,"00:00:00",null,null,null,null,null,""]
[null,null,null,null,"00:00:00",null,null,null,null,null,""]
[null,null,null,null,"00:00:00",null,null,null,null,null,""]
[null,null,null,null,"00:00:00",null,null,null,null,null,""]
[null,null,null,null,"00:00:00",null,null,null,null,null,""]
[null,null,null,null,"00:00:00",null,null,null,null,null,""]
[null,null,null,null,"00:00:00",null,null,null,null,null,""]
[null,null,null,null,"00:00:00",null,null,null,null,null,""]
[null,null,null,null,"00:00:00",null,null,null,null,null,""]
[null,null,null,null,"00:00:00",null,null,null,null,null,""]
[null,null,null,null,"00:00:00",null,null,null,null,null,""]
[null,null,null,null,"00:00:00",null,null,null,null,null,""]
[null,null,null,null,"00:00:00",null,null,null,null,null,""]
[null,null,null,null,{"$f":"F584","v":"00:00:00"},null,null,null,null,null,{"$f":"IF(OR(I584=\"\",J584=\"\"),\"\",PRODUCT(I584,J584))","v":""}]
[null,null,null,null,"00:00:00",null,null,null,null,null,""]
[null,null,null,null,"00:00:00",null,null,null,null,null,""]
[null,null,null,null,"00:00:00",null,null,null,null,null,""]
[null,null,null,null,"00:00:00",null,null,null,null,null,""]
[null,null,null,null,"00:00:00",null,null,null,null,null,""]
[null,null,null,null,"00:00:00",null,null,null,null,null,""]
[null,null,null,null,"00:00:00",null,null,null,null,null,""]
[null,null,null,null,"00:00:00",null,null,null,null,null,""]
[null,null,null,null,"00:00:00",null,null,null,null,null,""]
[null,null,null,null,"00:00:00",null,null,null,null,null,""]
[null,null,null,null,"00:00:00",null,null,null,null,null,""]
[null,null,null,null,"00:00:00",null,null,null,null,null,""]
[null,null,null,null,"00:00:00",null,null,null,null,null,""]
[null,null,null,null,"00:00:00",null,null,null,null,null,""]
[null,null,null,null,"00:00:00",null,null,null,null,null,""]
[null,null,null,null,"00:00:00",null,null,null,null,null,""]
[null,null,null,null,"00:00:00",null,null,null,null,null,""]
[null,null,null,null,"00:00:00",null,null,null,null,null,""]
[null,null,null,null,"00:00:00",null,null,null,null,null,""]
[null,null,null,null,"00:00:00",null,null,null,null,null,""]
[null,null,null,null,"00:00:00",null,null,null,null,null,""]
[null,null,null,null,"00:00:00",null,null,null,null,null,""]
[null,null,null,null,"00:00:00",null,null,null,null,null,""]
[null,null,null,null,"00:00:00",null,null,null,null,null,""]
[null,null,null,null,"00:00:00",null,null,null,null,null,""]
[null,null,null,null,"00:00:00",null,null,null,null,null,""]
[null,null,null,null,"00:00:00",null,null,null,null,null,""]
[null,null,null,null,"00:00:00",null,null,null,null,null,""]
[null,null,null,null,"00:00:00",null,null,null,null,null,""]
[null,null,null,null,"00:00:00",null,null,null,null,null,""]
[null,null,null,null,"00:00:00",null,null,null,null,null,""]
[null,null,null,null,"00:00:00",null,null,null,null,null,""]
[null,null,null,null,"00:00:00",null,null,null,null,null,""]
[null,null,null,null,"00:00:00",null,null,null,null,null,""]
[null,null,null,null,"00:00:00",null,null,null,null,null,""]
[null,null,null,null,"00:00:00",null,null,null,null,null,""]
[null,null,null,null,"00:00:00",null,null,null,null,null,""]
[null,null,null,null,"00:00:00",null,null,null,null,null,""]
[null,null,null,null,"00:00:00",null,null,null,null,null,""]
[null,null,null,null,"00:00:00",null,null,null,null,null,""]
[null,null,null,null,"00:00:00",null,null,null,null,null,""]
[null,null,null,null,"00:00:00",null,null,null,null,null,""]
[null,null,null,null,"00:00:00",null,null,null,null,null,""]
[null,null,null,null,"00:00:00",null,null,null,null,null,""]
[null,null,null,null,"00:00:00",null,null,null,null,null,""]
[null,null,null,null,"00:00:00",null,null,null,null,null,""]
[null,null,null,null,"00:00:00",null,null,null,null,null,""]
[null,null,null,null,"00:00:00",null,null,null,null,null,""]
[null,null,null,null,"00:00:00",null,null,null,null,null,""]
[null,null,null,null,"00:00:00",null,null,null,null,null,""]
[null,null,null,null,"00:00:00",null,null,null,null,null,""]
[null,null,null,null,"00:00:00",null,null,null,null,null,""]
[null,null,null,null,"00:00:00",null,null,null,null,null,""]
[null,null,null,null,"00:00:00",null,null,null,null,null,""]
[null,null,null,null,"00:00:00",null,null,null,null,null,""]
[null,null,null,null,"00:00:00",null,null,null,null,null,""]
[null,null,null,null,"00:00:00",null,null,null,null,null,""]
[null,null,null,null,"00:00:00",null,null,null,null,null,""]
[null,null,null,null,"00:00:00",null,null,null,null,null,""]
[null,null,null,null,"00:00:00",null,null,null,null,null,""]
[null,null,null,null,"00:00:00",null,null,null,null,null,""]
[null,null,null,null,"00:00:00",null,null,null,null,null,""]
[null,null,null,null,"00:00:00",null,null,null,null,null,""]
[null,null,null,null,{"$f":"F648","v":"00:00:00"},null,null,null,null,null,{"$f":"IF(OR(I648=\"\",J648=\"\"),\"\",PRODUCT(I648,J648))","v":""}]
[null,null,null,null,"00:00:00",null,null,null,null,null,""]
[null,null,null,null,"00:00:00",null,null,null,null,null,""]
[null,null,null,null,"00:00:00",null,null,null,null,null,""]
[null,null,null,null,"00:00:00",null,null,null,null,null,""]
[null,null,null,null,"00:00:00",null,null,null,null,null,""]
[null,null,null,null,"00:00:00",null,null,null,null,null,""]
[null,null,null,null,"00:00:00",null,null,null,null,null,""]
[null,null,null,null,"00:00:00",null,null,null,null,null,""]
[null,null,null,null,"00:00:00",null,null,null,null,null,""]
[null,null,null,null,"00:00:00",null,null,null,null,null,""]
[null,null,null,null,"00:00:00",null,null,null,null,null,""]
[null,null,null,null,"00:00:00",null,null,null,null,null,""]
[null,null,null,null,"00:00:00",null,null,null,null,null,""]
[null,null,null,null,"00:00:00",null,null,null,null,null,""]
[null,null,null,null,"00:00:00",null,null,null,null,null,""]
[null,null,null,null,"00:00:00",null,null,null,null,null,""]
[null,null,null,null,"00:00:00",null,null,null,null,null,""]
[null,null,null,null,"00:00:00",null,null,null,null,null,""]
[null,null,null,null,"00:00:00",null,null,null,null,null,""]
[null,null,null,null,"00:00:00",null,null,null,null,null,""]
[null,null,null,null,"00:00:00",null,null,null,null,null,""]
[null,null,null,null,"00:00:00",null,null,null,null,null,""]
[null,null,null,null,"00:00:00",null,null,null,null,null,""]
[null,null,null,null,"00:00:00",null,null,null,null,null,""]
[null,null,null,null,"00:00:00",null,null,null,null,null,""]
[null,null,null,null,"00:00:00",null,null,null,null,null,""]
[null,null,null,null,"00:00:00",null,null,null,null,null,""]
[null,null,null,null,"00:00:00",null,null,null,null,null,""]
[null,null,null,null,"00:00:00",null,null,null,null,null,""]
[null,null,null,null,"00:00:00",null,null,null,null,null,""]
[null,null,null,null,"00:00:00",null,null,null,null,null,""]
[null,null,null,null,"00:00:00",null,null,null,null,null,""]
[null,null,null,null,"00:00:00",null,null,null,null,null,""]
[null,null,null,null,"00:00:00",null,null,null,null,null,""]
[null,null,null,null,"00:00:00",null,null,null,null,null,""]
[null,null,null,null,"00:00:00",null,null,null,null,null,""]
[null,null,null,null,"00:00:00",null,null,null,null,null,""]
[null,null,null,null,"00:00:00",null,null,null,null,null,""]
[null,null,null,null,"00:00:00",null,null,null,null,null,""]
[null,null,null,null,"00:00:00",null,null,null,null,null,""]
[null,null,null,null,"00:00:00",null,null,null,null,null,""]
[null,null,null,null,"00:00:00",null,null,null,null,null,""]
[null,null,null,null,"00:00:00",null,null,null,null,null,""]
[null,null,null,null,"00:00:00",null,null,null,null,null,""]
[null,null,null,null,"00:00:00",null,null,null,null,null,""]
[null,null,null,null,"00:00:00",null,null,null,null,null,""]
[null,null,null,null,"00:00:00",null,null,null,null,null,""]
[null,null,null,null,"00:00:00",null,null,null,null,null,""]
[null,null,null,null,"00:00:00",null,null,null,null,null,""]
[null,null,null,null,"00:00:00",null,null,null,null,null,""]
[null,null,null,null,"00:00:00",null,null,null,null,null,""]
[null,null,null,null,null,null,null,null,null,{"$f":"IFERROR(IF(H700<>\"\",7.05,\"\"),\"\")","v":""},""]
[null,null,null,null,null,null,null,null,null,"",""]
[null,null,null,null,null,null,null,null,null,"",""]
[null,null,null,null,null,null,null,null,null,"",""]
[null,null,null,null,null,null,null,null,null,"",""]
[null,null,null,null,null,null,null,null,null,"",""]
[null,null,null,null,null,null,null,null,null,"",""]
[null,null,null,null,null,null,null,null,null,"",""]
[null,null,null,null,null,null,null,null,null,"",""]
[null,null,null,null,null,null,null,null,null,"",""]
[null,null,null,null,null,null,null,null,null,"",""]
[null,null,null,null,null,null,null,null,null,"",""]
[null,null,null,null,null,null,null,null,null,"",{"$f":"IF(OR(I712=\"\",J712=\"\"),\"\",PRODUCT(I712,J712))","v":""}]
[null,null,null,null,null,null,null,null,null,"",""]
[null,null,null,null,null,null,null,null,null,"",""]
[null,null,null,null,null,null,null,null,null,"",""]
[null,null,null,null,null,null,null,null,null,"",""]
[null,null,null,null,null,null,null,null,null,"",""]
[null,null,null,null,null,null,null,null,null,"",""]
[null,null,null,null,null,null,null,null,null,"",""]
[null,null,null,null,null,null,null,null,null,"",""]
[null,null,null,null,null,null,null,null,null,"",""]
[null,null,null,null,null,null,null,null,null,"",""]
[null,null,null,null,null,null,null,null,null,"",""]
[null,null,null,null,null,null,null,null,null,"",""]
[null,null,null,null,null,null,null,null,null,"",""]
[null,null,null,null,null,null,null,null,null,"",""]
[null,null,null,null,null,null,null,null,null,"",""]
[null,null,null,null,null,null,null,null,null,"",""]
[null,null,null,null,null,null,null,null,null,"",""]
[null,null,null,null,null,null,null,null,null,"",""]
[null,null,null,null,null,null,null,null,null,"",""]
[null,null,null,null,null,null,null,null,null,"",""]
[null,null,null,null,null,null,null,null,null,{"$f":"IFERROR(IF(H733<>\"\",7.05,\"\"),\"\")","v":""},""]
[null,null,null,null,null,null,null,null,null,"",""]
[null,null,null,null,null,null,null,null,null,"",""]
[null,null,null,null,null,null,null,null,null,"",""]
[null,null,null,null,null,null,null,null,null,"",""]
[null,null,null,null,null,null,null,null,null,"",""]
[null,null,null,null,null,null,null,null,null,"",""]
[null,null,null,null,null,null,null,null,null,"",""]
[null,null,null,null,null,null,null,null,null,"",""]
[null,null,null,null,null,null,null,null,null,"",""]
[null,null,null,null,null,null,null,null,null,"",""]
[null,null,null,null,null,null,null,null,null,"",""]
[null,null,null,null,null,null,null,null,null,"",""]
[null,null,null,null,null,null,null,null,null,"",""]
[null,null,null,null,null,null,null,null,null,"",""]
[null,null,null,null,null,null,null,null,null,"",""]
[null,null,null,null,null,null,null,null,null,"",""]
[null,null,null,null,null,null,null,null,null,"",""]
[null,null,null,null,null,null,null,null,null,"",""]
[null,null,null,null,null,null,null,null,null,"",""]
[null,null,null,null,null,null,null,null,null,"",""]
[null,null,null,null,null,null,null,null,null,"",""]
[null,null,null,null,null,null,null,null,null,"",""]
[null,null,null,null,null,null,null,null,null,"",""]
[null,null,null,null,null,null,null,null,null,"",""]
[null,null,null,null,null,null,null,null,null,"",""]
[null,null,null,null,null,null,null,null,null,"",""]
[null,null,null,null,null,null,null,null,null,"",""]
[null,null,null,null,null,null,null,null,null,"",""]
[null,null,null,null,null,null,null,null,null,"",""]
[null,null,null,null,null,null,null,null,null,"",""]
[null,null,null,null,null,null,null,null,null,"",""]
[null,null,null,null,null,null,null,null,null,"",""]
[null,null,null,null,null,null,null,null,null,"",""]
[null,null,null,null,null,null,null,null,null,"",""]
[null,null,null,null,null,null,null,null,null,"",""]
[null,null,null,null,null,null,null,null,null,"",""]
[null,null,null,null,null,null,null,null,null,"",""]
[null,null,null,null,null,null,null,null,null,"",""]
[null,null,null,null,null,null,null,null,null,"",""]
[null,null,null,null,null,null,null,null,null,"",""]
[null,null,null,null,null,null,null,null,null,"",""]
[null,null,null,null,null,null,null,null,null,"",""]
[null,null,null,null,null,null,null,null,null,"",{"$f":"IF(OR(I776=\"\",J776=\"\"),\"\",PRODUCT(I776,J776))","v":""}]
[null,null,null,null,null,null,null,null,null,"",""]
[null,null,null,null,null,null,null,null,null,"",""]
[null,null,null,null,null,null,null,null,null,"",""]
[null,null,null,null,null,null,null,null,null,"",""]
[null,null,null,null,null,null,null,null,null,"",""]
[null,null,null,null,null,null,null,null,null,"",""]
[null,null,null,null,null,null,null,null,null,"",""]
[null,null,null,null,null,null,null,null,null,"",""]
[null,null,null,null,null,null,null,null,null,"",""]
[null,null,null,null,null,null,null,null,null,"",""]
[null,null,null,null,null,null,null,null,null,"",""]
[null,null,null,null,null,null,null,null,null,"",""]
[null,null,null,null,null,null,null,null,null,"",""]
[null,null,null,null,null,null,null,null,null,"",""]
[null,null,null,null,null,null,null,null,null,"",""]
[null,null,null,null,null,null,null,null,null,"",""]
[null,null,null,null,null,null,null,null,null,"",""]
[null,null,null,null,null,null,null,null,null,"",""]
[null,null,null,null,null,null,null,null,null,"",""]
[null,null,null,null,null,null,null,null,null,"",""]
[null,null,null,null,null,null,null,null,null,{"$f":"IFERROR(IF(H797<>\"\",7.05,\"\"),\"\")","v":""},""]
[null,null,null,null,null,null,null,null,null,"",""]
[null,null,null,null,null,null,null,null,null,"",""]
[null,null,null,null,null,null,null,null,null,"",""]
[null,null,null,null,null,null,null,null,null,"",""]
[null,null,null,null,null,null,null,null,null,"",""]
[null,null,null,null,null,null,null,null,null,"",""]
[null,null,null,null,null,null,null,null,null,"",""]
[null,null,null,null,null,null,null,null,null,"",""]
[null,null,null,null,null,null,null,null,null,"",""]
[null,null,null,null,null,null,null,null,null,"",""]
[null,null,null,null,null,null,null,null,null,"",""]
[null,null,null,null,null,null,null,null,null,"",""]
[null,null,null,null,null,null,null,null,null,"",""]
[null,null,null,null,null,null,null,null,null,"",""]
[null,null,null,null,null,null,null,null,null,"",""]
[null,null,null,null,null,null,null,null,null,"",""]
[null,null,null,null,null,null,null,null,null,"",""]
[null,null,null,null,null,null,null,null,null,"",""]
[null,null,null,null,null,null,null,null,null,"",""]
[null,null,null,null,null,null,null,null,null,"",""]
[null,null,null,null,null,null,null,null,null,"",""]
[null,null,null,null,null,null,null,null,null,"",""]
[null,null,null,null,null,null,null,null,null,"",""]
[null,null,null,null,null,null,null,null,null,"",""]
[null,null,null,null,null,null,null,null,null,"",""]
[null,null,null,null,null,null,null,null,null,"",""]
[null,null,null,null,null,null,null,null,null,"",""]
[null,null,null,null,null,null,null,null,null,"",""]
[null,null,null,null,null,null,null,null,null,"",""]
[null,null,null,null,null,null,null,null,null,"",""]
[null,null,null,null,null,null,null,null,null,"",""]
[null,null,null,null,null,null,null,null,null,"",""]
[null,null,null,null,null,null,null,null,null,"",""]
[null,null,null,null,null,null,null,null,null,"",""]
[null,null,null,null,null,null,null,null,null,"",""]
[null,null,null,null,null,null,null,null,null,"",""]
[null,null,null,null,null,null,null,null,null,"",""]
[null,null,null,null,null,null,null,null,null,"",""]
[null,null,null,null,null,null,null,null,null,"",""]
[null,null,null,null,null,null,null,null,null,"",""]
[null,null,null,null,null,null,null,null,null,"",""]
[null,null,null,null,null,null,null,null,null,"",""]
[null,null,null,null,null,null,null,null,null,"",{"$f":"IF(OR(I840=\"\",J840=\"\"),\"\",PRODUCT(I840,J840))","v":""}]
[null,null,null,null,null,null,null,null,null,"",""]
[null,null,null,null,null,null,null,null,null,"",""]
[null,null,null,null,null,null,null,null,null,"",""]
[null,null,null,null,null,null,null,null,null,"",""]
[null,null,null,null,null,null,null,null,null,"",""]
[null,null,null,null,null,null,null,null,null,"",""]
[null,null,null,null,null,null,null,null,null,"",""]
[null,null,null,null,null,null,null,null,null,"",""]
[null,null,null,null,null,null,null,null,null,"",""]
[null,null,null,null,null,null,null,null,null,"",""]
[null,null,null,null,null,null,null,null,null,"",""]
[null,null,null,null,null,null,null,null,null,"",""]
[null,null,null,null,null,null,null,null,null,"",""]
[null,null,null,null,null,null,null,null,null,"",""]
[null,null,null,null,null,null,null,null,null,"",""]
[null,null,null,null,null,null,null,null,null,"",""]
[null,null,null,null,null,null,null,null,null,"",""]
[null,null,null,null,null,null,null,null,null,"",""]
[null,null,null,null,null,null,null,null,null,"",""]
[null,null,null,null,null,null,null,null,null,"",""]
[null,null,null,null,null,null,null,null,null,{"$f":"IFERROR(IF(H861<>\"\",7.05,\"\"),\"\")","v":""},""]
[null,null,null,null,null,null,null,null,null,"",""]
[null,null,null,null,null,null,null,null,null,"",""]
[null,null,null,null,null,null,null,null,null,"",""]
[null,null,null,null,null,null,null,null,null,"",""]
[null,null,null,null,null,null,null,null,null,"",""]
[null,null,null,null,null,null,null,null,null,"",""]
[null,null,null,null,null,null,null,null,null,"",""]
[null,null,null,null,null,null,null,null,null,"",""]
[null,null,null,null,null,null,null,null,null,"",""]
[null,null,null,null,null,null,null,null,null,"",""]
[null,null,null,null,null,null,null,null,null,"",""]
[null,null,null,null,null,null,null,null,null,"",""]
[null,null,null,null,null,null,null,null,null,"",""]
[null,null,null,null,null,null,null,null,null,"",""]
[null,null,null,null,null,null,null,null,null,"",""]
[null,null,null,null,null,null,null,null,null,"",""]
[null,null,null,null,null,null,null,null,null,"",""]
[null,null,null,null,null,null,null,null,null,"",""]
[null,null,null,null,null,null,null,null,null,"",""]
[null,null,null,null,null,null,null,null,null,"",""]
[null,null,null,null,null,null,null,null,null,"",""]
[null,null,null,null,null,null,null,null,null,"",""]
[null,null,null,null,null,null,null,null,null,"",""]
[null,null,null,null,null,null,null,null,null,"",""]
[null,null,null,null,null,null,null,null,null,"",""]
[null,null,null,null,null,null,null,null,null,"",""]
[null,null,null,null,null,null,null,null,null,"",""]
[null,null,null,null,null,null,null,null,null,"",""]
[null,null,null,null,null,null,null,null,null,"",""]
[null,null,null,null,null,null,null,null,null,"",""]
[null,null,null,null,null,null,null,null,null,"",""]
[null,null,null,null,null,null,null,null,null,"",""]
[null,null,null,null,null,null,null,null,null,"",""]
[null,null,null,null,null,null,null,null,null,"",""]
[null,null,null,null,null,null,null,null,null,"",""]
[null,null,null,null,null,null,null,null,null,"",""]
[null,null,null,null,null,null,null,null,null,"",""]
[null,null,null,null,null,null,null,null,null,"",""]
[null,null,null,null,null,null,null,null,null,"",""]
[null,null,null,null,null,null,null,null,null,"",""]
[null,null,null,null,null,null,null,null,null,"",""]
[null,null,null,null,null,null,null,null,null,"",""]
[null,null,null,null,null,null,null,null,null,"",{"$f":"IF(OR(I904=\"\",J904=\"\"),\"\",PRODUCT(I904,J904))","v":""}]
[null,null,null,null,null,null,null,null,null,"",""]
[null,null,null,null,null,null,null,null,null,"",""]
[null,null,null,null,null,null,null,null,null,"",""]
[null,null,null,null,null,null,null,null,null,"",""]
[null,null,null,null,null,null,null,null,null,"",""]
[null,null,null,null,null,null,null,null,null,"",""]
[null,null,null,null,null,null,null,null,null,"",""]
[null,null,null,null,null,null,null,null,null,"",""]
[null,null,null,null,null,null,null,null,null,"",""]
[null,null,null,null,null,null,null,null,null,"",""]
[null,null,null,null,null,null,null,null,null,"",""]
[null,null,null,null,null,null,null,null,null,"",""]
[null,null,null,null,null,null,null,null,null,"",""]
[null,null,null,null,null,null,null,null,null,"",""]
[null,null,null,null,null,null,null,null,null,"",""]
[null,null,null,null,null,null,null,null,null,"",""]
[null,null,null,null,null,null,null,null,null,"",""]
[null,null,null,null,null,null,null,null,null,"",""]
[null,null,null,null,null,null,null,null,null,"",""]
[null,null,null,null,null,null,null,null,null,"",""]
[null,null,null,null,null,null,null,null,null,{"$f":"IFERROR(IF(H925<>\"\",7.05,\"\"),\"\")","v":""},""]
[null,null,null,null,null,null,null,null,null,"",""]
[null,null,null,null,null,null,null,null,null,"",""]
[null,null,null,null,null,null,null,null,null,"",""]
[null,null,null,null,null,null,null,null,null,"",""]
[null,null,null,null,null,null,null,null,null,"",""]
[null,null,null,null,null,null,null,null,null,"",""]
[null,null,null,null,null,null,null,null,null,"",""]
[null,null,null,null,null,null,null,null,null,"",""]
[null,null,null,null,null,null,null,null,null,"",""]
[null,null,null,null,null,null,null,null,null,"",""]
[null,null,null,null,null,null,null,null,null,"",""]
[null,null,null,null,null,null,null,null,null,"",""]
[null,null,null,null,null,null,null,null,null,"",""]
[null,null,null,null,null,null,null,null,null,"",""]
[null,null,null,null,null,null,null,null,null,"",""]
[null,null,null,null,null,null,null,null,null,"",""]
[null,null,null,null,null,null,null,null,null,"",""]
[null,null,null,null,null,null,null,null,null,"",""]
[null,null,null,null,null,null,null,null,null,"",""]
[null,null,null,null,null,null,null,null,null,"",""]
[null,null,null,null,null,null,null,null,null,"",""]
[null,null,null,null,null,null,null,null,null,"",""]
[null,null,null,null,null,null,null,null,null,"",""]
[null,null,null,null,null,null,null,null,null,"",""]
[null,null,null,null,null,null,null,null,null,"",""]
[null,null,null,null,null,null,null,null,null,"",""]
[null,null,null,null,null,null,null,null,null,"",""]
[null,null,null,null,null,null,null,null,null,"",""]
[null,null,null,null,null,null,null,null,null,"",""]
[null,null,null,null,null,null,null,null,null,"",""]
[null,null,null,null,null,null,null,null,null,"",""]
[null,null,null,null,null,null,null,null,null,"",""]
[null,null,null,null,null,null,null,null,null,"",""]
[null,null,null,null,null,null,null,null,null,"",""]
[null,null,null,null,null,null,null,null,null,"",""]
[null,null,null,null,null,null,null,null,null,"",""]
[null,null,null,null,null,null,null,null,null,"",""]
[null,null,null,null,null,null,null,null,null,"",""]
[null,null,null,null,null,null,null,null,null,"",""]
[null,null,null,null,null,null,null,null,null,"",""]
[null,null,null,null,null,null,null,null,null,"",""]
[null,null,null,null,null,null,null,null,null,"",""]
[null,null,null,null,null,null,null,null,null,"",{"$f":"IF(OR(I968=\"\",J968=\"\"),\"\",PRODUCT(I968,J968))","v":""}]
[null,null,null,null,null,null,null,null,null,"",""]
[null,null,null,null,null,null,null,null,null,"",""]
[null,null,null,null,null,null,null,null,null,"",""]
[null,null,null,null,null,null,null,null,null,"",""]
[null,null,null,null,null,null,null,null,null,"",""]
[null,null,null,null,null,null,null,null,null,"",""]
[null,null,null,null,null,null,null,null,null,"",""]
[null,null,null,null,null,null,null,null,null,"",""]
[null,null,null,null,null,null,null,null,null,"",""]
[null,null,null,null,null,null,null,null,null,"",""]
[null,null,null,null,null,null,null,null,null,"",""]
[null,null,null,null,null,null,null,null,null,"",""]
[null,null,null,null,null,null,null,null,null,"",""]
[null,null,null,null,null,null,null,null,null,"",""]
[null,null,null,null,null,null,null,null,null,"",""]
[null,null,null,null,null,null,null,null,null,"",""]
[null,null,null,null,null,null,null,null,null,"",""]
[null,null,null,null,null,null,null,null,null,"",""]
[null,null,null,null,null,null,null,null,null,"",""]
[null,null,null,null,null,null,null,null,null,"",""]
[null,null,null,null,null,null,null,null,null,{"$f":"IFERROR(IF(H989<>\"\",7.05,\"\"),\"\")","v":""},""]
[null,null,null,null,null,null,null,null,null,"",""]
[null,null,null,null,null,null,null,null,null,"",""]
[null,null,null,null,null,null,null,null,null,"",""]
[null,null,null,null,null,null,null,null,null,"",""]
[null,null,null,null,null,null,null,null,null,"",""]
[null,null,null,null,null,null,null,null,null,"",""]
[null,null,null,null,null,null,null,null,null,"",""]
[null,null,null,null,null,null,null,null,null,"",""]
[null,null,null,null,null,null,null,null,null,"",""]
[null,null,null,null,null,null,null,null,null,"",""]
[null,null,null,null,null,null,null,null,null,"",""]
[null,null,null,null,null,null,null,null,null,"",""]
[null,null,null,null,null,null,null,null,null,"",""]
[null,null,null,null,null,null,null,null,null,"",""]
[null,null,null,null,null,null,null,null,null,"",""]
[null,null,null,null,null,null,null,null,null,"",""]
[null,null,null,null,null,null,null,null,null,"",""]
[null,null,null,null,null,null,null,null,null,"",""]
[null,null,null,null,null,null,null,null,null,"",""]
[null,null,null,null,null,null,null,null,null,"",""]
[null,null,null,null,null,null,null,null,null,"",""]
[null,null,null,null,null,null,null,null,null,"",""]
[null,null,null,null,null,null,null,null,null,"",""]
[null,null,null,null,null,null,null,null,null,"",""]
[null,null,null,null,null,null,null,null,null,"",""]
[null,null,null,null,null,null,null,null,null,"",""]
[null,null,null,null,null,null,null,null,null,"",""]
[null,null,null,null,null,null,null,null,null,"",""]
[null,null,null,null,null,null,null,null,null,"",""]
[null,null,null,null,null,null,null,null,null,"",""]
[null,null,null,null,null,null,null,null,null,"",""]
[null,null,null,null,null,null,null,null,null,"",""]
[null,null,null,null,null,null,null,null,null,"",""]
[null,null,null,null,null,null,null,null,null,"",""]
[null,null,null,null,null,null,null,null,null,"",""]
[null,null,null,null,null,null,null,null,null,"",""]
[null,null,null,null,null,null,null,null,null,"",""]
[null,null,null,null,null,null,null,null,null,"",""]
[null,null,null,null,null,null,null,null,null,"",""]
[null,null,null,null,null,null,null,null,null,"",""]
[null,null,null,null,null,null,null,null,null,"",""]
[null,null,null,null,null,null,null,null,null,"",""]
[null,null,null,null,null,null,null,null,null,"",{"$f":"IF(OR(I1032=\"\",J1032=\"\"),\"\",PRODUCT(I1032,J1032))","v":""}]
[null,null,null,null,null,null,null,null,null,"",""]
[null,null,null,null,null,null,null,null,null,"",""]
[null,null,null,null,null,null,null,null,null,"",""]
[null,null,null,null,null,null,null,null,null,"",""]
[null,null,null,null,null,null,null,null,null,"",""]
[null,null,null,null,null,null,null,null,null,"",""]
[null,null,null,null,null,null,null,null,null,"",""]
[null,null,null,null,null,null,null,null,null,"",""]
[null,null,null,null,null,null,null,null,null,"",""]
[null,null,null,null,null,null,null,null,null,"",""]
[null,null,null,null,null,null,null,null,null,"",""]
[null,null,null,null,null,null,null,null,null,"",""]
[null,null,null,null,null,null,null,null,null,"",""]
[null,null,null,null,null,null,null,null,null,"",""]
[null,null,null,null,null,null,null,null,null,"",""]
[null,null,null,null,null,null,null,null,null,"",""]
[null,null,null,null,null,null,null,null,null,"",""]
[null,null,null,null,null,null,null,null,null,"",""]
[null,null,null,null,null,null,null,null,null,"",""]
[null,null,null,null,null,null,null,null,null,"",""]
[null,null,null,null,null,null,null,null,null,{"$f":"IFERROR(IF(H1053<>\"\",7.05,\"\"),\"\")","v":""},""]
[null,null,null,null,null,null,null,null,null,"",""]
[null,null,null,null,null,null,null,null,null,"",""]
[null,null,null,null,null,null,null,null,null,"",""]
[null,null,null,null,null,null,null,null,null,"",""]
[null,null,null,null,null,null,null,null,null,"",""]
[null,null,null,null,null,null,null,null,null,"",""]
[null,null,null,null,null,null,null,null,null,"",""]
[null,null,null,null,null,null,null,null,null,"",""]
[null,null,null,null,null,null,null,null,null,"",""]
[null,null,null,null,null,null,null,null,null,"",""]
[null,null,null,null,null,null,null,null,null,"",""]
[null,null,null,null,null,null,null,null,null,"",""]
[null,null,null,null,null,null,null,null,null,"",""]
[null,null,null,null,null,null,null,null,null,"",""]
[null,null,null,null,null,null,null,null,null,"",""]
[null,null,null,null,null,null,null,null,null,"",""]
[null,null,null,null,null,null,null,null,null,"",""]
[null,null,null,null,null,null,null,null,null,"",""]
[null,null,null,null,null,null,null,null,null,"",""]
[null,null,null,null,null,null,null,null,null,"",""]
[null,null,null,null,null,null,null,null,null,"",""]
[null,null,null,null,null,null,null,null,null,"",""]
[null,null,null,null,null,null,null,null,null,"",""]
[null,null,null,null,null,null,null,null,null,"",""]
[null,null,null,null,null,null,null,null,null,"",""]
[null,null,null,null,null,null,null,null,null,"",""]
[null,null,null,null,null,null,null,null,null,"",""]
[null,null,null,null,null,null,null,null,null,"",""]
[null,null,null,null,null,null,null,null,null,"",""]
[null,null,null,null,null,null,null,null,null,"",""]
[null,null,null,null,null,null,null,null,null,"",""]
[null,null,null,null,null,null,null,null,null,"",""]
[null,null,null,null,null,null,null,null,null,"",""]
[null,null,null,null,null,null,null,null,null,"",""]
[null,null,null,null,null,null,null,null,null,"",""]
[null,null,null,null,null,null,null,null,null,"",""]
[null,null,null,null,null,null,null,null,null,"",""]
[null,null,null,null,null,null,null,null,null,"",""]
[null,null,null,null,null,null,null,null,null,"",""]
[null,null,null,null,null,null,null,null,null,"",""]
[null,null,null,null,null,null,null,null,null,"",""]
[null,null,null,null,null,null,null,null,null,"",""]
[null,null,null,null,null,null,null,null,null,"",{"$f":"IF(OR(I1096=\"\",J1096=\"\"),\"\",PRODUCT(I1096,J1096))","v":""}]
[null,null,null,null,null,null,null,null,null,"",""]
[null,null,null,null,null,null,null,null,null,"",""]
[null,null,null,null,null,null,null,null,null,"",""]
[null,null,null,null,null,null,null,null,null,"",""]
[null,null,null,null,null,null,null,null,null,"",""]
[null,null,null,null,null,null,null,null,null,"",""]
[null,null,null,null,null,null,null,null,null,"",""]
[null,null,null,null,null,null,null,null,null,"",""]
[null,null,null,null,null,null,null,null,null,"",""]
[null,null,null,null,null,null,null,null,null,"",""]
[null,null,null,null,null,null,null,null,null,"",""]
[null,null,null,null,null,null,null,null,null,"",""]
[null,null,null,null,null,null,null,null,null,"",""]
[null,null,null,null,null,null,null,null,null,"",""]
[null,null,null,null,null,null,null,null,null,"",""]
[null,null,null,null,null,null,null,null,null,"",""]
[null,null,null,null,null,null,null,null,null,"",""]
[null,null,null,null,null,null,null,null,null,"",""]
[null,null,null,null,null,null,null,null,null,"",""]
[null,null,null,null,null,null,null,null,null,"",""]
[null,null,null,null,null,null,null,null,null,{"$f":"IFERROR(IF(H1117<>\"\",7.05,\"\"),\"\")","v":""},""]
[null,null,null,null,null,null,null,null,null,"",""]
[null,null,null,null,null,null,null,null,null,"",""]
[null,null,null,null,null,null,null,null,null,"",""]
[null,null,null,null,null,null,null,null,null,"",""]
[null,null,null,null,null,null,null,null,null,"",""]
[null,null,null,null,null,null,null,null,null,"",""]
[null,null,null,null,null,null,null,null,null,"",""]
[null,null,null,null,null,null,null,null,null,"",""]
[null,null,null,null,null,null,null,null,null,"",""]
[null,null,null,null,null,null,null,null,null,"",""]
[null,null,null,null,null,null,null,null,null,"",""]
[null,null,null,null,null,null,null,null,null,"",""]
[null,null,null,null,null,null,null,null,null,"",""]
[null,null,null,null,null,null,null,null,null,"",""]
[null,null,null,null,null,null,null,null,null,"",""]
[null,null,null,null,null,null,null,null,null,"",""]
[null,null,null,null,null,null,null,null,null,"",""]
[null,null,null,null,null,null,null,null,null,"",""]
[null,null,null,null,null,null,null,null,null,"",""]
[null,null,null,null,null,null,null,null,null,"",""]
[null,null,null,null,null,null,null,null,null,"",""]
[null,null,null,null,null,null,null,null,null,"",""]
[null,null,null,null,null,null,null,null,null,"",""]
[null,null,null,null,null,null,null,null,null,"",""]
[null,null,null,null,null,null,null,null,null,"",""]
[null,null,null,null,null,null,null,null,null,"",""]
[null,null,null,null,null,null,null,null,null,"",""]
[null,null,null,null,null,null,null,null,null,"",""]
[null,null,null,null,null,null,null,null,null,"",""]
[null,null,null,null,null,null,null,null,null,"",""]
[null,null,null,null,null,null,null,null,null,"",""]
[null,null,null,null,null,null,null,null,null,"",""]
[null,null,null,null,null,null,null,null,null,"",""]
[null,null,null,null,null,null,null,null,null,"",""]
[null,null,null,null,null,null,null,null,null,"",""]
[null,null,null,null,null,null,null,null,null,"",""]
[null,null,null,null,null,null,null,null,null,"",""]
[null,null,null,null,null,null,null,null,null,"",""]
[null,null,null,null,null,null,null,null,null,"",""]
[null,null,null,null,null,null,null,null,null,"",""]
[null,null,null,null,null,null,null,null,null,"",""]
[null,null,null,null,null,null,null,null,null,"",""]
[null,null,null,null,null,null,null,null,null,"",{"$f":"IF(OR(I1160=\"\",J1160=\"\"),\"\",PRODUCT(I1160,J1160))","v":""}]
[null,null,null,null,null,null,null,null,null,"",""]
[null,null,null,null,null,null,null,null,null,"",""]
[null,null,null,null,null,null,null,null,null,"",""]
[null,null,null,null,null,null,null,null,null,"",""]
[null,null,null,null,null,null,null,null,null,"",""]
[null,null,null,null,null,null,null,null,null,"",""]
[null,null,null,null,null,null,null,null,null,"",""]
[null,null,null,null,null,null,null,null,null,"",""]
[null,null,null,null,null,null,null,null,null,"",""]
[null,null,null,null,null,null,null,null,null,"",""]
[null,null,null,null,null,null,null,null,null,"",""]
[null,null,null,null,null,null,null,null,null,"",""]
[null,null,null,null,null,null,null,null,null,"",""]
[null,null,null,null,null,null,null,null,null,"",""]
[null,null,null,null,null,null,null,null,null,"",""]
[null,null,null,null,null,null,null,null,null,"",""]
[null,null,null,null,null,null,null,null,null,"",""]
[null,null,null,null,null,null,null,null,null,"",""]
[null,null,null,null,null,null,null,null,null,"",""]
[null,null,null,null,null,null,null,null,null,"",""]
[null,null,null,null,null,null,null,null,null,{"$f":"IFERROR(IF(H1181<>\"\",7.05,\"\"),\"\")","v":""},""]
[null,null,null,null,null,null,null,null,null,"",""]
[null,null,null,null,null,null,null,null,null,"",""]
[null,null,null,null,null,null,null,null,null,"",""]
[null,null,null,null,null,null,null,null,null,"",""]
[null,null,null,null,null,null,null,null,null,"",""]
[null,null,null,null,null,null,null,null,null,"",""]
[null,null,null,null,null,null,null,null,null,"",""]
[null,null,null,null,null,null,null,null,null,"",""]
[null,null,null,null,null,null,null,null,null,"",""]
[null,null,null,null,null,null,null,null,null,"",""]
[null,null,null,null,null,null,null,null,null,"",""]
[null,null,null,null,null,null,null,null,null,"",""]
[null,null,null,null,null,null,null,null,null,"",""]
[null,null,null,null,null,null,null,null,null,"",""]
[null,null,null,null,null,null,null,null,null,"",""]
[null,null,null,null,null,null,null,null,null,"",""]
[null,null,null,null,null,null,null,null,null,"",""]
[null,null,null,null,null,null,null,null,null,"",""]
[null,null,null,null,null,null,null,null,null,"",""]
[null,null,null,null,null,null,null,null,null,"",""]
[null,null,null,null,null,null,null,null,null,"",""]
[null,null,null,null,null,null,null,null,null,"",""]
[null,null,null,null,null,null,null,null,null,"",""]
[null,null,null,null,null,null,null,null,null,"",""]
[null,null,null,null,null,null,null,null,null,"",""]
[null,null,null,null,null,null,null,null,null,"",""]
[null,null,null,null,null,null,null,null,null,"",""]
[null,null,null,null,null,null,null,null,null,"",""]
[null,null,null,null,null,null,null,null,null,"",""]
[null,null,null,null,null,null,null,null,null,"",""]
[null,null,null,null,null,null,null,null,null,"",""]
[null,null,null,null,null,null,null,null,null,"",""]
[null,null,null,null,null,null,null,null,null,"",""]
[null,null,null,null,null,null,null,null,null,"",""]
[null,null,null,null,null,null,null,null,null,"",""]
[null,null,null,null,null,null,null,null,null,"",""]
[null,null,null,null,null,null,null,null,null,"",""]
[null,null,null,null,null,null,null,null,null,"",""]
[null,null,null,null,null,null,null,null,null,"",""]
[null,null,null,null,null,null,null,null,null,"",""]
[null,null,null,null,null,null,null,null,null,"",""]
[null,null,null,null,null,null,null,null,null,"",""]
[null,null,null,null,null,null,null,null,null,"",{"$f":"IF(OR(I1224=\"\",J1224=\"\"),\"\",PRODUCT(I1224,J1224))","v":""}]
[null,null,null,null,null,null,null,null,null,"",""]
[null,null,null,null,null,null,null,null,null,"",""]
[null,null,null,null,null,null,null,null,null,"",""]
[null,null,null,null,null,null,null,null,null,"",""]
[null,null,null,null,null,null,null,null,null,"",""]
[null,null,null,null,null,null,null,null,null,"",""]
[null,null,null,null,null,null,null,null,null,"",""]
[null,null,null,null,null,null,null,null,null,"",""]
[null,null,null,null,null,null,null,null,null,"",""]
[null,null,null,null,null,null,null,null,null,"",""]
[null,null,null,null,null,null,null,null,null,"",""]
[null,null,null,null,null,null,null,null,null,"",""]
[null,null,null,null,null,null,null,null,null,"",""]
[null,null,null,null,null,null,null,null,null,"",""]
[null,null,null,null,null,null,null,null,null,"",""]
[null,null,null,null,null,null,null,null,null,"",""]
[null,null,null,null,null,null,null,null,null,"",""]
[null,null,null,null,null,null,null,null,null,"",""]
[null,null,null,null,null,null,null,null,null,"",""]
[null,null,null,null,null,null,null,null,null,"",""]
[null,null,null,null,null,null,null,null,null,{"$f":"IFERROR(IF(H1245<>\"\",7.05,\"\"),\"\")","v":""},""]
[null,null,null,null,null,null,null,null,null,"",""]
[null,null,null,null,null,null,null,null,null,"",""]
[null,null,null,null,null,null,null,null,null,"",""]
[null,null,null,null,null,null,null,null,null,"",""]
[null,null,null,null,null,null,null,null,null,"",""]
[null,null,null,null,null,null,null,null,null,"",""]
[null,null,null,null,null,null,null,null,null,"",""]
[null,null,null,null,null,null,null,null,null,"",""]
[null,null,null,null,null,null,null,null,null,"",""]
[null,null,null,null,null,null,null,null,null,"",""]
[null,null,null,null,null,null,null,null,null,"",""]
[null,null,null,null,null,null,null,null,null,"",""]
[null,null,null,null,null,null,null,null,null,"",""]
[null,null,null,null,null,null,null,null,null,"",""]
[null,null,null,null,null,null,null,null,null,"",""]
[null,null,null,null,null,null,null,null,null,"",""]
[null,null,null,null,null,null,null,null,null,"",""]
[null,null,null,null,null,null,null,null,null,"",""]
[null,null,null,null,null,null,null,null,null,"",""]
[null,null,null,null,null,null,null,null,null,"",""]
[null,null,null,null,null,null,null,null,null,"",""]
[null,null,null,null,null,null,null,null,null,"",""]
[null,null,null,null,null,null,null,null,null,"",""]
[null,null,null,null,null,null,null,null,null,"",""]
[null,null,null,null,null,null,null,null,null,"",""]
[null,null,null,null,null,null,null,null,null,"",""]
[null,null,null,null,null,null,null,null,null,"",""]
[null,null,null,null,null,null,null,null,null,"",""]
[null,null,null,null,null,null,null,null,null,"",""]
[null,null,null,null,null,null,null,null,null,"",""]
[null,null,null,null,null,null,null,null,null,"",""]
[null,null,null,null,null,null,null,null,null,"",""]
[null,null,null,null,null,null,null,null,null,"",""]
[null,null,null,null,null,null,null,null,null,"",""]
[null,null,null,null,null,null,null,null,null,"",""]
[null,null,null,null,null,null,null,null,null,"",""]
[null,null,null,null,null,null,null,null,null,"",""]
[null,null,null,null,null,null,null,null,null,"",""]
[null,null,null,null,null,null,null,null,null,"",""]
[null,null,null,null,null,null,null,null,null,"",""]
[null,null,null,null,null,null,null,null,null,"",""]
[null,null,null,null,null,null,null,null,null,"",""]
[null,null,null,null,null,null,null,null,null,"",{"$f":"IF(OR(I1288=\"\",J1288=\"\"),\"\",PRODUCT(I1288,J1288))","v":""}]
[null,null,null,null,null,null,null,null,null,"",""]
[null,null,null,null,null,null,null,null,null,"",""]
[null,null,null,null,null,null,null,null,null,"",""]
[null,null,null,null,null,null,null,null,null,"",""]
[null,null,null,null,null,null,null,null,null,"",""]
[null,null,null,null,null,null,null,null,null,"",""]
[null,null,null,null,null,null,null,null,null,"",""]
[null,null,null,null,null,null,null,null,null,"",""]
[null,null,null,null,null,null,null,null,null,"",""]
[null,null,null,null,null,null,null,null,null,"",""]
[null,null,null,null,null,null,null,null,null,"",""]
[null,null,null,null,null,null,null,null,null,"",""]
[null,null,null,null,null,null,null,null,null,"",""]
[null,null,null,null,null,null,null,null,null,"",""]
[null,null,null,null,null,null,null,null,null,"",""]
[null,null,null,null,null,null,null,null,null,"",""]
[null,null,null,null,null,null,null,null,null,"",""]
[null,null,null,null,null,null,null,null,null,"",""]
[null,null,null,null,null,null,null,null,null,"",""]
[null,null,null,null,null,null,null,null,null,"",""]
[null,null,null,null,null,null,null,null,null,{"$f":"IFERROR(IF(H1309<>\"\",7.05,\"\"),\"\")","v":""},""]
[null,null,null,null,null,null,null,null,null,"",""]
[null,null,null,null,null,null,null,null,null,"",""]
[null,null,null,null,null,null,null,null,null,"",""]
[null,null,null,null,null,null,null,null,null,"",""]
[null,null,null,null,null,null,null,null,null,"",""]
[null,null,null,null,null,null,null,null,null,"",""]
[null,null,null,null,null,null,null,null,null,"",""]
[null,null,null,null,null,null,null,null,null,"",""]
[null,null,null,null,null,null,null,null,null,"",""]
[null,null,null,null,null,null,null,null,null,"",""]
[null,null,null,null,null,null,null,null,null,"",""]
[null,null,null,null,null,null,null,null,null,"",""]
[null,null,null,null,null,null,null,null,null,"",""]
[null,null,null,null,null,null,null,null,null,"",""]
[null,null,null,null,null,null,null,null,null,"",""]
[null,null,null,null,null,null,null,null,null,"",""]
[null,null,null,null,null,null,null,null,null,"",""]
[null,null,null,null,null,null,null,null,null,"",""]
[null,null,null,null,null,null,null,null,null,"",""]
[null,null,null,null,null,null,null,null,null,"",""]
[null,null,null,null,null,null,null,null,null,"",""]
[null,null,null,null,null,null,null,null,null,"",""]
[null,null,null,null,null,null,null,null,null,"",""]
[null,null,null,null,null,null,null,null,null,"",""]
[null,null,null,null,null,null,null,null,null,"",""]
[null,null,null,null,null,null,null,null,null,"",""]
[null,null,null,null,null,null,null,null,null,"",""]
[null,null,null,null,null,null,null,null,null,"",""]
[null,null,null,null,null,null,null,null,null,"",""]
[null,null,null,null,null,null,null,null,null,"",""]
[null,null,null,null,null,null,null,null,null,"",""]
[null,null,null,null,null,null,null,null,null,"",""]
[null,null,null,null,null,null,null,null,null,"",""]
[null,null,null,null,null,null,null,null,null,"",""]
[null,null,null,null,null,null,null,null,null,"",""]
[null,null,null,null,null,null,null,null,null,"",""]
[null,null,null,null,null,null,null,null,null,"",""]
[null,null,null,null,null,null,null,null,null,"",""]
[null,null,null,null,null,null,null,null,null,"",""]
[null,null,null,null,null,null,null,null,null,"",""]
[null,null,null,null,null,null,null,null,null,"",""]
[null,null,null,null,null,null,null,null,null,"",""]
[null,null,null,null,null,null,null,null,null,"",{"$f":"IF(OR(I1352=\"\",J1352=\"\"),\"\",PRODUCT(I1352,J1352))","v":""}]
[null,null,null,null,null,null,null,null,null,"",""]
[null,null,null,null,null,null,null,null,null,"",""]
[null,null,null,null,null,null,null,null,null,"",""]
[null,null,null,null,null,null,null,null,null,"",""]
[null,null,null,null,null,null,null,null,null,"",""]
[null,null,null,null,null,null,null,null,null,"",""]
[null,null,null,null,null,null,null,null,null,"",""]
[null,null,null,null,null,null,null,null,null,"",""]
[null,null,null,null,null,null,null,null,null,"",""]
[null,null,null,null,null,null,null,null,null,"",""]
[null,null,null,null,null,null,null,null,null,"",""]
[null,null,null,null,null,null,null,null,null,"",""]
[null,null,null,null,null,null,null,null,null,"",""]
[null,null,null,null,null,null,null,null,null,"",""]
[null,null,null,null,null,null,null,null,null,"",""]
[null,null,null,null,null,null,null,null,null,"",""]
[null,null,null,null,null,null,null,null,null,"",""]
[null,null,null,null,null,null,null,null,null,"",""]
[null,null,null,null,null,null,null,null,null,"",""]
[null,null,null,null,null,null,null,null,null,"",""]
[null,null,null,null,null,null,null,null,null,{"$f":"IFERROR(IF(H1373<>\"\",7.05,\"\"),\"\")","v":""},""]
[null,null,null,null,null,null,null,null,null,"",""]
[null,null,null,null,null,null,null,null,null,"",""]
[null,null,null,null,null,null,null,null,null,"",""]
[null,null,null,null,null,null,null,null,null,"",""]
[null,null,null,null,null,null,null,null,null,"",""]
[null,null,null,null,null,null,null,null,null,"",""]
[null,null,null,null,null,null,null,null,null,"",""]
[null,null,null,null,null,null,null,null,null,"",""]
[null,null,null,null,null,null,null,null,null,"",""]
[null,null,null,null,null,null,null,null,null,"",""]
[null,null,null,null,null,null,null,null,null,"",""]
[null,null,null,null,null,null,null,null,null,"",""]
[null,null,null,null,null,null,null,null,null,"",""]
[null,null,null,null,null,null,null,null,null,"",""]
[null,null,null,null,null,null,null,null,null,"",""]
[null,null,null,null,null,null,null,null,null,"",""]
[null,null,null,null,null,null,null,null,null,"",""]
[null,null,null,null,null,null,null,null,null,"",""]
[null,null,null,null,null,null,null,null,null,"",""]
[null,null,null,null,null,null,null,null,null,"",""]
[null,null,null,null,null,null,null,null,null,"",""]
[null,null,null,null,null,null,null,null,null,"",""]
[null,null,null,null,null,null,null,null,null,"",""]
[null,null,null,null,null,null,null,null,null,"",""]
[null,null,null,null,null,null,null,null,null,"",""]
[null,null,null,null,null,null,null,null,null,"",""]
[null,null,null,null,null,null,null,null,null,"",""]
[null,null,null,null,null,null,null,null,null,"",""]
[null,null,null,null,null,null,null,null,null,"",""]
[null,null,null,null,null,null,null,null,null,"",""]
[null,null,null,null,null,null,null,null,null,"",""]
[null,null,null,null,null,null,null,null,null,"",""]
[null,null,null,null,null,null,null,null,null,"",""]
[null,null,null,null,null,null,null,null,null,"",""]
[null,null,null,null,null,null,null,null,null,"",""]
[null,null,null,null,null,null,null,null,null,"",""]
[null,null,null,null,null,null,null,null,null,"",""]
[null,null,null,null,null,null,null,null,null,"",""]
[null,null,null,null,null,null,null,null,null,"",""]
[null,null,null,null,null,null,null,null,null,"",""]
[null,null,null,null,null,null,null,null,null,"",""]
[null,null,null,null,null,null,null,null,null,"",""]
[null,null,null,null,null,null,null,null,null,"",{"$f":"IF(OR(I1416=\"\",J1416=\"\"),\"\",PRODUCT(I1416,J1416))","v":""}]
[null,null,null,null,null,null,null,null,null,"",""]
[null,null,null,null,null,null,null,null,null,"",""]
[null,null,null,null,null,null,null,null,null,"",""]
[null,null,null,null,null,null,null,null,null,"",""]
[null,null,null,null,null,null,null,null,null,"",""]
[null,null,null,null,null,null,null,null,null,"",""]
[null,null,null,null,null,null,null,null,null,"",""]
[null,null,null,null,null,null,null,null,null,"",""]
[null,null,null,null,null,null,null,null,null,"",""]
[null,null,null,null,null,null,null,null,null,"",""]
[null,null,null,null,null,null,null,null,null,"",""]
[null,null,null,null,null,null,null,null,null,"",""]
[null,null,null,null,null,null,null,null,null,"",""]
[null,null,null,null,null,null,null,null,null,"",""]
[null,null,null,null,null,null,null,null,null,"",""]
[null,null,null,null,null,null,null,null,null,"",""]
[null,null,null,null,null,null,null,null,null,"",""]
[null,null,null,null,null,null,null,null,null,"",""]
[null,null,null,null,null,null,null,null,null,"",""]
[null,null,null,null,null,null,null,null,null,"",""]
[null,null,null,null,null,null,null,null,null,{"$f":"IFERROR(IF(H1437<>\"\",7.05,\"\"),\"\")","v":""},""]
[null,null,null,null,null,null,null,null,null,"",""]
[null,null,null,null,null,null,null,null,null,"",""]
[null,null,null,null,null,null,null,null,null,"",""]
[null,null,null,null,null,null,null,null,null,"",""]
[null,null,null,null,null,null,null,null,null,"",""]
[null,null,null,null,null,null,null,null,null,"",""]
[null,null,null,null,null,null,null,null,null,"",""]
[null,null,null,null,null,null,null,null,null,"",""]
[null,null,null,null,null,null,null,null,null,"",""]
[null,null,null,null,null,null,null,null,null,"",""]
[null,null,null,null,null,null,null,null,null,"",""]
[null,null,null,null,null,null,null,null,null,"",""]
[null,null,null,null,null,null,null,null,null,"",""]
[null,null,null,null,null,null,null,null,null,"",""]
[null,null,null,null,null,null,null,null,null,"",""]
[null,null,null,null,null,null,null,null,null,"",""]
[null,null,null,null,null,null,null,null,null,"",""]
[null,null,null,null,null,null,null,null,null,"",""]
[null,null,null,null,null,null,null,null,null,"",""]
[null,null,null,null,null,null,null,null,null,"",""]
[null,null,null,null,null,null,null,null,null,"",""]
[null,null,null,null,null,null,null,null,null,"",""]
[null,null,null,null,null,null,null,null,null,"",""]
[null,null,null,null,null,null,null,null,null,"",""]
[null,null,null,null,null,null,null,null,null,"",""]
[null,null,null,null,null,null,null,null,null,"",""]
[null,null,null,null,null,null,null,null,null,"",""]
[null,null,null,null,null,null,null,null,null,"",""]
[null,null,null,null,null,null,null,null,null,"",""]
[null,null,null,null,null,null,null,null,null,"",""]
[null,null,null,null,null,null,null,null,null,"",""]
[null,null,null,null,null,null,null,null,null,"",""]
[null,null,null,null,null,null,null,null,null,"",""]
[null,null,null,null,null,null,null,null,null,"",""]
[null,null,null,null,null,null,null,null,null,"",""]
[null,null,null,null,null,null,null,null,null,"",""]
[null,null,null,null,null,null,null,null,null,"",""]
[null,null,null,null,null,null,null,null,null,"",""]
[null,null,null,null,null,null,null,null,null,"",""]
[null,null,null,null,null,null,null,null,null,"",""]
[null,null,null,null,null,null,null,null,null,"",""]
[null,null,null,null,null,null,null,null,null,"",""]
[null,null,null,null,null,null,null,null,null,"",{"$f":"IF(OR(I1480=\"\",J1480=\"\"),\"\",PRODUCT(I1480,J1480))","v":""}]
[null,null,null,null,null,null,null,null,null,"",""]
[null,null,null,null,null,null,null,null,null,"",""]
[null,null,null,null,null,null,null,null,null,"",""]
[null,null,null,null,null,null,null,null,null,"",""]
[null,null,null,null,null,null,null,null,null,"",""]
[null,null,null,null,null,null,null,null,null,"",""]
[null,null,null,null,null,null,null,null,null,"",""]
[null,null,null,null,null,null,null,null,null,"",""]
[null,null,null,null,null,null,null,null,null,"",""]
[null,null,null,null,null,null,null,null,null,"",""]
[null,null,null,null,null,null,null,null,null,"",""]
[null,null,null,null,null,null,null,null,null,"",""]
[null,null,null,null,null,null,null,null,null,"",""]
[null,null,null,null,null,null,null,null,null,"",""]
[null,null,null,null,null,null,null,null,null,"",""]
[null,null,null,null,null,null,null,null,null,"",""]
[null,null,null,null,null,null,null,null,null,"",""]
[null,null,null,null,null,null,null,null,null,"",""]
[null,null,null,null,null,null,null,null,null,"",""]
[null,null,null,null,null,null,null,null,null,"",""]
[null,null,null,null,null,null,null,null,null,{"$f":"IFERROR(IF(H1501<>\"\",7.05,\"\"),\"\")","v":""},""]
[null,null,null,null,null,null,null,null,null,"",""]
[null,null,null,null,null,null,null,null,null,"",""]
[null,null,null,null,null,null,null,null,null,"",""]
[null,null,null,null,null,null,null,null,null,"",""]
[null,null,null,null,null,null,null,null,null,"",""]
[null,null,null,null,null,null,null,null,null,"",""]
[null,null,null,null,null,null,null,null,null,"",""]
[null,null,null,null,null,null,null,null,null,"",""]
[null,null,null,null,null,null,null,null,null,"",""]
[null,null,null,null,null,null,null,null,null,"",""]
[null,null,null,null,null,null,null,null,null,"",""]
[null,null,null,null,null,null,null,null,null,"",""]
[null,null,null,null,null,null,null,null,null,"",""]
[null,null,null,null,null,null,null,null,null,"",""]
[null,null,null,null,null,null,null,null,null,"",""]
[null,null,null,null,null,null,null,null,null,"",""]
[null,null,null,null,null,null,null,null,null,"",""]
[null,null,null,null,null,null,null,null,null,"",""]
[null,null,null,null,null,null,null,null,null,"",""]
[null,null,null,null,null,null,null,null,null,"",""]
[null,null,null,null,null,null,null,null,null,"",""]
[null,null,null,null,null,null,null,null,null,"",""]
[null,null,null,null,null,null,null,null,null,"",""]
[null,null,null,null,null,null,null,null,null,"",""]
[null,null,null,null,null,null,null,null,null,"",""]
[null,null,null,null,null,null,null,null,null,"",""]
[null,null,null,null,null,null,null,null,null,"",""]
[null,null,null,null,null,null,null,null,null,"",""]
[null,null,null,null,null,null,null,null,null,"",""]
[null,null,null,null,null,null,null,null,null,"",""]
[null,null,null,null,null,null,null,null,null,"",""]
[null,null,null,null,null,null,null,null,null,"",""]
[null,null,null,null,null,null,null,null,null,"",""]
[null,null,null,null,null,null,null,null,null,"",""]
[null,null,null,null,null,null,null,null,null,"",""]
[null,null,null,null,null,null,null,null,null,"",""]
[null,null,null,null,null,null,null,null,null,"",""]
[null,null,null,null,null,null,null,null,null,"",""]
[null,null,null,null,null,null,null,null,null,"",""]
[null,null,null,null,null,null,null,null,null,"",""]
[null,null,null,null,null,null,null,null,null,"",""]
[null,null,null,null,null,null,null,null,null,"",""]
[null,null,null,null,null,null,null,null,null,"",{"$f":"IF(OR(I1544=\"\",J1544=\"\"),\"\",PRODUCT(I1544,J1544))","v":""}]
[null,null,null,null,null,null,null,null,null,"",""]
[null,null,null,null,null,null,null,null,null,"",""]
[null,null,null,null,null,null,null,null,null,"",""]
[null,null,null,null,null,null,null,null,null,"",""]
[null,null,null,null,null,null,null,null,null,"",""]
[null,null,null,null,null,null,null,null,null,"",""]
[null,null,null,null,null,null,null,null,null,"",""]
[null,null,null,null,null,null,null,null,null,"",""]
[null,null,null,null,null,null,null,null,null,"",""]
[null,null,null,null,null,null,null,null,null,"",""]
[null,null,null,null,null,null,null,null,null,"",""]
[null,null,null,null,null,null,null,null,null,"",""]
[null,null,null,null,null,null,null,null,null,"",""]
[null,null,null,null,null,null,null,null,null,"",""]
[null,null,null,null,null,null,null,null,null,"",""]
[null,null,null,null,null,null,null,null,null,"",""]
[null,null,null,null,null,null,null,null,null,"",""]
[null,null,null,null,null,null,null,null,null,"",""]
[null,null,null,null,null,null,null,null,null,"",""]
[null,null,null,null,null,null,null,null,null,"",""]
[null,null,null,null,null,null,null,null,null,{"$f":"IFERROR(IF(H1565<>\"\",7.05,\"\"),\"\")","v":""},""]
[null,null,null,null,null,null,null,null,null,"",""]
[null,null,null,null,null,null,null,null,null,"",""]
[null,null,null,null,null,null,null,null,null,"",""]
[null,null,null,null,null,null,null,null,null,"",""]
[null,null,null,null,null,null,null,null,null,"",""]
[null,null,null,null,null,null,null,null,null,"",""]
[null,null,null,null,null,null,null,null,null,"",""]
[null,null,null,null,null,null,null,null,null,"",""]
[null,null,null,null,null,null,null,null,null,"",""]
[null,null,null,null,null,null,null,null,null,"",""]
[null,null,null,null,null,null,null,null,null,"",""]
[null,null,null,null,null,null,null,null,null,"",""]
[null,null,null,null,null,null,null,null,null,"",""]
[null,null,null,null,null,null,null,null,null,"",""]
[null,null,null,null,null,null,null,null,null,"",""]
[null,null,null,null,null,null,null,null,null,"",""]
[null,null,null,null,null,null,null,null,null,"",""]
[null,null,null,null,null,null,null,null,null,"",""]
[null,null,null,null,null,null,null,null,null,"",""]
[null,null,null,null,null,null,null,null,null,"",""]
[null,null,null,null,null,null,null,null,null,"",""]
[null,null,null,null,null,null,null,null,null,"",""]
[null,null,null,null,null,null,null,null,null,"",""]
[null,null,null,null,null,null,null,null,null,"",""]
[null,null,null,null,null,null,null,null,null,"",""]
[null,null,null,null,null,null,null,null,null,"",""]
[null,null,null,null,null,null,null,null,null,"",""]
[null,null,null,null,null,null,null,null,null,"",""]
[null,null,null,null,null,null,null,null,null,"",""]
[null,null,null,null,null,null,null,null,null,"",""]
[null,null,null,null,null,null,null,null,null,"",""]
[null,null,null,null,null,null,null,null,null,"",""]
[null,null,null,null,null,null,null,null,null,"",""]
[null,null,null,null,null,null,null,null,null,"",""]
[null,null,null,null,null,null,null,null,null,"",""]
[null,null,null,null,null,null,null,null,null,"",""]
[null,null,null,null,null,null,null,null,null,"",""]
[null,null,null,null,null,null,null,null,null,"",""]
[null,null,null,null,null,null,null,null,null,"",""]
[null,null,null,null,null,null,null,null,null,"",""]
[null,null,null,null,null,null,null,null,null,"",""]
[null,null,null,null,null,null,null,null,null,"",""]
[null,null,null,null,null,null,null,null,null,"",{"$f":"IF(OR(I1608=\"\",J1608=\"\"),\"\",PRODUCT(I1608,J1608))","v":""}]
[null,null,null,null,null,null,null,null,null,"",""]
[null,null,null,null,null,null,null,null,null,"",""]
[null,null,null,null,null,null,null,null,null,"",""]
[null,null,null,null,null,null,null,null,null,"",""]
[null,null,null,null,null,null,null,null,null,"",""]
[null,null,null,null,null,null,null,null,null,"",""]
[null,null,null,null,null,null,null,null,null,"",""]
[null,null,null,null,null,null,null,null,null,"",""]
[null,null,null,null,null,null,null,null,null,"",""]
[null,null,null,null,null,null,null,null,null,"",""]
[null,null,null,null,null,null,null,null,null,"",""]
[null,null,null,null,null,null,null,null,null,"",""]
[null,null,null,null,null,null,null,null,null,"",""]
[null,null,null,null,null,null,null,null,null,"",""]
[null,null,null,null,null,null,null,null,null,"",""]
[null,null,null,null,null,null,null,null,null,"",""]
[null,null,null,null,null,null,null,null,null,"",""]
[null,null,null,null,null,null,null,null,null,"",""]
[null,null,null,null,null,null,null,null,null,"",""]
[null,null,null,null,null,null,null,null,null,"",""]
[null,null,null,null,null,null,null,null,null,{"$f":"IFERROR(IF(H1629<>\"\",7.05,\"\"),\"\")","v":""},""]
[null,null,null,null,null,null,null,null,null,"",""]
[null,null,null,null,null,null,null,null,null,"",""]
[null,null,null,null,null,null,null,null,null,"",""]
[null,null,null,null,null,null,null,null,null,"",""]
[null,null,null,null,null,null,null,null,null,"",""]
[null,null,null,null,null,null,null,null,null,"",""]
[null,null,null,null,null,null,null,null,null,"",""]
[null,null,null,null,null,null,null,null,null,"",""]
[null,null,null,null,null,null,null,null,null,"",""]
[null,null,null,null,null,null,null,null,null,"",""]
[null,null,null,null,null,null,null,null,null,"",""]
[null,null,null,null,null,null,null,null,null,"",""]
[null,null,null,null,null,null,null,null,null,"",""]
[null,null,null,null,null,null,null,null,null,"",""]
[null,null,null,null,null,null,null,null,null,"",""]
[null,null,null,null,null,null,null,null,null,"",""]
[null,null,null,null,null,null,null,null,null,"",""]
[null,null,null,null,null,null,null,null,null,"",""]
[null,null,null,null,null,null,null,null,null,"",""]
[null,null,null,null,null,null,null,null,null,"",""]
[null,null,null,null,null,null,null,null,null,"",""]
[null,null,null,null,null,null,null,null,null,"",""]
[null,null,null,null,null,null,null,null,null,"",""]
[null,null,null,null,null,null,null,null,null,"",""]
[null,null,null,null,null,null,null,null,null,"",""]
[null,null,null,null,null,null,null,null,null,"",""]
[null,null,null,null,null,null,null,null,null,"",""]
[null,null,null,null,null,null,null,null,null,"",""]
[null,null,null,null,null,null,null,null,null,"",""]
[null,null,null,null,null,null,null,null,null,"",""]
[null,null,null,null,null,null,null,null,null,"",""]
[null,null,null,null,null,null,null,null,null,"",""]
[null,null,null,null,null,null,null,null,null,"",""]
[null,null,null,null,null,null,null,null,null,"",""]
[null,null,null,null,null,null,null,null,null,"",""]
[null,null,null,null,null,null,null,null,null,"",""]
[null,null,null,null,null,null,null,null,null,"",""]
[null,null,null,null,null,null,null,null,null,"",""]
[null,null,null,null,null,null,null,null,null,"",""]
[null,null,null,null,null,null,null,null,null,"",""]
[null,null,null,null,null,null,null,null,null,"",""]
[null,null,null,null,null,null,null,null,null,"",""]
[null,null,null,null,null,null,null,null,null,"",{"$f":"IF(OR(I1672=\"\",J1672=\"\"),\"\",PRODUCT(I1672,J1672))","v":""}]
[null,null,null,null,null,null,null,null,null,"",""]
[null,null,null,null,null,null,null,null,null,"",""]
[null,null,null,null,null,null,null,null,null,"",""]
[null,null,null,null,null,null,null,null,null,"",""]
[null,null,null,null,null,null,null,null,null,"",""]
[null,null,null,null,null,null,null,null,null,"",""]
[null,null,null,null,null,null,null,null,null,"",""]
[null,null,null,null,null,null,null,null,null,"",""]
[null,null,null,null,null,null,null,null,null,"",""]
[null,null,null,null,null,null,null,null,null,"",""]
[null,null,null,null,null,null,null,null,null,"",""]
[null,null,null,null,null,null,null,null,null,"",""]
[null,null,null,null,null,null,null,null,null,"",""]
[null,null,null,null,null,null,null,null,null,"",""]
[null,null,null,null,null,null,null,null,null,"",""]
[null,null,null,null,null,null,null,null,null,"",""]
[null,null,null,null,null,null,null,null,null,"",""]
[null,null,null,null,null,null,null,null,null,"",""]
[null,null,null,null,null,null,null,null,null,"",""]
[null,null,null,null,null,null,null,null,null,"",""]
[null,null,null,null,null,null,null,null,null,{"$f":"IFERROR(IF(H1693<>\"\",7.05,\"\"),\"\")","v":""},""]
[null,null,null,null,null,null,null,null,null,"",""]
[null,null,null,null,null,null,null,null,null,"",""]
[null,null,null,null,null,null,null,null,null,"",""]
[null,null,null,null,null,null,null,null,null,"",""]
[null,null,null,null,null,null,null,null,null,"",""]
[null,null,null,null,null,null,null,null,null,"",""]
[null,null,null,null,null,null,null,null,null,"",""]
[null,null,null,null,null,null,null,null,null,"",""]
[null,null,null,null,null,null,null,null,null,"",""]
[null,null,null,null,null,null,null,null,null,"",""]
[null,null,null,null,null,null,null,null,null,"",""]
[null,null,null,null,null,null,null,null,null,"",""]
[null,null,null,null,null,null,null,null,null,"",""]
[null,null,null,null,null,null,null,null,null,"",""]
[null,null,null,null,null,null,null,null,null,"",""]
[null,null,null,null,null,null,null,null,null,"",""]
[null,null,null,null,null,null,null,null,null,"",""]
[null,null,null,null,null,null,null,null,null,"",""]
[null,null,null,null,null,null,null,null,null,"",""]
[null,null,null,null,null,null,null,null,null,"",""]
[null,null,null,null,null,null,null,null,null,"",""]
[null,null,null,null,null,null,null,null,null,"",""]
[null,null,null,null,null,null,null,null,null,"",""]
[null,null,null,null,null,null,null,null,null,"",""]
[null,null,null,null,null,null,null,null,null,"",""]
[null,null,null,null,null,null,null,null,null,"",""]
[null,null,null,null,null,null,null,null,null,"",""]
[null,null,null,null,null,null,null,null,null,"",""]
[null,null,null,null,null,null,null,null,null,"",""]
[null,null,null,null,null,null,null,null,null,"",""]
[null,null,null,null,null,null,null,null,null,"",""]
[null,null,null,null,null,null,null,null,null,"",""]
[null,null,null,null,null,null,null,null,null,"",""]
[null,null,null,null,null,null,null,null,null,"",""]
[null,null,null,null,null,null,null,null,null,"",""]
[null,null,null,null,null,null,null,null,null,"",""]
[null,null,null,null,null,null,null,null,null,"",""]
[null,null,null,null,null,null,null,null,null,"",""]
[null,null,null,null,null,null,null,null,null,"",""]
[null,null,null,null,null,null,null,null,null,"",""]
[null,null,null,null,null,null,null,null,null,"",""]
[null,null,null,null,null,null,null,null,null,"",""]
[null,null,null,null,null,null,null,null,null,"",{"$f":"IF(OR(I1736=\"\",J1736=\"\"),\"\",PRODUCT(I1736,J1736))","v":""}]
[null,null,null,null,null,null,null,null,null,"",""]
[null,null,null,null,null,null,null,null,null,"",""]
[null,null,null,null,null,null,null,null,null,"",""]
[null,null,null,null,null,null,null,null,null,"",""]
[null,null,null,null,null,null,null,null,null,"",""]
[null,null,null,null,null,null,null,null,null,"",""]
[null,null,null,null,null,null,null,null,null,"",""]
[null,null,null,null,null,null,null,null,null,"",""]
[null,null,null,null,null,null,null,null,null,"",""]
[null,null,null,null,null,null,null,null,null,"",""]
[null,null,null,null,null,null,null,null,null,"",""]
[null,null,null,null,null,null,null,null,null,"",""]
[null,null,null,null,null,null,null,null,null,"",""]
[null,null,null,null,null,null,null,null,null,"",""]
[null,null,null,null,null,null,null,null,null,"",""]
[null,null,null,null,null,null,null,null,null,"",""]
[null,null,null,null,null,null,null,null,null,"",""]
[null,null,null,null,null,null,null,null,null,"",""]
[null,null,null,null,null,null,null,null,null,"",""]
[null,null,null,null,null,null,null,null,null,"",""]
[null,null,null,null,null,null,null,null,null,{"$f":"IFERROR(IF(H1757<>\"\",7.05,\"\"),\"\")","v":""},""]
[null,null,null,null,null,null,null,null,null,"",""]
[null,null,null,null,null,null,null,null,null,"",""]
[null,null,null,null,null,null,null,null,null,"",""]
[null,null,null,null,null,null,null,null,null,"",""]
[null,null,null,null,null,null,null,null,null,"",""]
[null,null,null,null,null,null,null,null,null,"",""]
[null,null,null,null,null,null,null,null,null,"",""]
[null,null,null,null,null,null,null,null,null,"",""]
[null,null,null,null,null,null,null,null,null,"",""]
[null,null,null,null,null,null,null,null,null,"",""]
[null,null,null,null,null,null,null,null,null,"",""]
[null,null,null,null,null,null,null,null,null,"",""]
[null,null,null,null,null,null,null,null,null,"",""]
[null,null,null,null,null,null,null,null,null,"",""]
[null,null,null,null,null,null,null,null,null,"",""]
[null,null,null,null,null,null,null,null,null,"",""]
[null,null,null,null,null,null,null,null,null,"",""]
[null,null,null,null,null,null,null,null,null,"",""]
[null,null,null,null,null,null,null,null,null,"",""]
[null,null,null,null,null,null,null,null,null,"",""]
[null,null,null,null,null,null,null,null,null,"",""]
[null,null,null,null,null,null,null,null,null,"",""]
[null,null,null,null,null,null,null,null,null,"",""]
[null,null,null,null,null,null,null,null,null,"",""]
[null,null,null,null,null,null,null,null,null,"",""]
[null,null,null,null,null,null,null,null,null,"",""]
[null,null,null,null,null,null,null,null,null,"",""]
[null,null,null,null,null,null,null,null,null,"",""]
[null,null,null,null,null,null,null,null,null,"",""]
[null,null,null,null,null,null,null,null,null,"",""]
[null,null,null,null,null,null,null,null,null,"",""]
[null,null,null,null,null,null,null,null,null,"",""]
[null,null,null,null,null,null,null,null,null,"",""]
[null,null,null,null,null,null,null,null,null,"",""]
[null,null,null,null,null,null,null,null,null,"",""]
[null,null,null,null,null,null,null,null,null,"",""]
[null,null,null,null,null,null,null,null,null,"",""]
[null,null,null,null,null,null,null,null,null,"",""]
[null,null,null,null,null,null,null,null,null,"",""]
[null,null,null,null,null,null,null,null,null,"",""]
[null,null,null,null,null,null,null,null,null,"",""]
[null,null,null,null,null,null,null,null,null,"",""]
[null,null,null,null,null,null,null,null,null,"",{"$f":"IF(OR(I1800=\"\",J1800=\"\"),\"\",PRODUCT(I1800,J1800))","v":""}]
[null,null,null,null,null,null,null,null,null,"",""]
[null,null,null,null,null,null,null,null,null,"",""]
[null,null,null,null,null,null,null,null,null,"",""]
[null,null,null,null,null,null,null,null,null,"",""]
[null,null,null,null,null,null,null,null,null,"",""]
[null,null,null,null,null,null,null,null,null,"",""]
[null,null,null,null,null,null,null,null,null,"",""]
[null,null,null,null,null,null,null,null,null,"",""]
[null,null,null,null,null,null,null,null,null,"",""]
[null,null,null,null,null,null,null,null,null,"",""]
[null,null,null,null,null,null,null,null,null,"",""]
[null,null,null,null,null,null,null,null,null,"",""]
[null,null,null,null,null,null,null,null,null,"",""]
[null,null,null,null,null,null,null,null,null,"",""]
[null,null,null,null,null,null,null,null,null,"",""]
[null,null,null,null,null,null,null,null,null,"",""]
[null,null,null,null,null,null,null,null,null,"",""]
[null,null,null,null,null,null,null,null,null,"",""]
[null,null,null,null,null,null,null,null,null,"",""]
[null,null,null,null,null,null,null,null,null,"",""]
[null,null,null,null,null,null,null,null,null,{"$f":"IFERROR(IF(H1821<>\"\",7.05,\"\"),\"\")","v":""},""]
[null,null,null,null,null,null,null,null,null,"",""]
[null,null,null,null,null,null,null,null,null,"",""]
[null,null,null,null,null,null,null,null,null,"",""]
[null,null,null,null,null,null,null,null,null,"",""]
[null,null,null,null,null,null,null,null,null,"",""]
[null,null,null,null,null,null,null,null,null,"",""]
[null,null,null,null,null,null,null,null,null,"",""]
[null,null,null,null,null,null,null,null,null,"",""]
[null,null,null,null,null,null,null,null,null,"",""]
[null,null,null,null,null,null,null,null,null,"",""]
[null,null,null,null,null,null,null,null,null,"",""]
[null,null,null,null,null,null,null,null,null,"",""]
[null,null,null,null,null,null,null,null,null,"",""]
[null,null,null,null,null,null,null,null,null,"",""]
[null,null,null,null,null,null,null,null,null,"",""]
[null,null,null,null,null,null,null,null,null,"",""]
[null,null,null,null,null,null,null,null,null,"",""]
[null,null,null,null,null,null,null,null,null,"",""]
[null,null,null,null,null,null,null,null,null,"",""]
[null,null,null,null,null,null,null,null,null,"",""]
[null,null,null,null,null,null,null,null,null,"",""]
[null,null,null,null,null,null,null,null,null,"",""]
[null,null,null,null,null,null,null,null,null,"",""]
[null,null,null,null,null,null,null,null,null,"",""]
[null,null,null,null,null,null,null,null,null,"",""]
[null,null,null,null,null,null,null,null,null,"",""]
[null,null,null,null,null,null,null,null,null,"",""]
[null,null,null,null,null,null,null,null,null,"",""]
[null,null,null,null,null,null,null,null,null,"",""]
[null,null,null,null,null,null,null,null,null,"",""]
[null,null,null,null,null,null,null,null,null,"",""]
[null,null,null,null,null,null,null,null,null,"",""]
[null,null,null,null,null,null,null,null,null,"",""]
[null,null,null,null,null,null,null,null,null,"",""]
[null,null,null,null,null,null,null,null,null,"",""]
[null,null,null,null,null,null,null,null,null,"",""]
[null,null,null,null,null,null,null,null,null,"",""]
[null,null,null,null,null,null,null,null,null,"",""]
[null,null,null,null,null,null,null,null,null,"",""]
[null,null,null,null,null,null,null,null,null,"",""]
[null,null,null,null,null,null,null,null,null,"",""]
[null,null,null,null,null,null,null,null,null,"",""]
[null,null,null,null,null,null,null,null,null,"",{"$f":"IF(OR(I1864=\"\",J1864=\"\"),\"\",PRODUCT(I1864,J1864))","v":""}]
[null,null,null,null,null,null,null,null,null,"",""]
[null,null,null,null,null,null,null,null,null,"",""]
[null,null,null,null,null,null,null,null,null,"",""]
[null,null,null,null,null,null,null,null,null,"",""]
[null,null,null,null,null,null,null,null,null,"",""]
[null,null,null,null,null,null,null,null,null,"",""]
[null,null,null,null,null,null,null,null,null,"",""]
[null,null,null,null,null,null,null,null,null,"",""]
[null,null,null,null,null,null,null,null,null,"",""]
[null,null,null,null,null,null,null,null,null,"",""]
[null,null,null,null,null,null,null,null,null,"",""]
[null,null,null,null,null,null,null,null,null,"",""]
[null,null,null,null,null,null,null,null,null,"",""]
[null,null,null,null,null,null,null,null,null,"",""]
[null,null,null,null,null,null,null,null,null,"",""]
[null,null,null,null,null,null,null,null,null,"",""]
[null,null,null,null,null,null,null,null,null,"",""]
[null,null,null,null,null,null,null,null,null,"",""]
[null,null,null,null,null,null,null,null,null,"",""]
[null,null,null,null,null,null,null,null,null,"",""]
[null,null,null,null,null,null,null,null,null,{"$f":"IFERROR(IF(H1885<>\"\",7.05,\"\"),\"\")","v":""},""]
[null,null,null,null,null,null,null,null,null,"",""]
[null,null,null,null,null,null,null,null,null,"",""]
[null,null,null,null,null,null,null,null,null,"",""]
[null,null,null,null,null,null,null,null,null,"",""]
[null,null,null,null,null,null,null,null,null,"",""]
[null,null,null,null,null,null,null,null,null,"",""]
[null,null,null,null,null,null,null,null,null,"",""]
[null,null,null,null,null,null,null,null,null,"",""]
[null,null,null,null,null,null,null,null,null,"",""]
[null,null,null,null,null,null,null,null,null,"",""]
[null,null,null,null,null,null,null,null,null,"",""]
[null,null,null,null,null,null,null,null,null,"",""]
[null,null,null,null,null,null,null,null,null,"",""]
[null,null,null,null,null,null,null,null,null,"",""]
[null,null,null,null,null,null,null,null,null,"",""]
[null,null,null,null,null,null,null,null,null,"",""]
[null,null,null,null,null,null,null,null,null,"",""]
[null,null,null,null,null,null,null,null,null,"",""]
[null,null,null,null,null,null,null,null,null,"",""]
[null,null,null,null,null,null,null,null,null,"",""]
[null,null,null,null,null,null,null,null,null,"",""]
[null,null,null,null,null,null,null,null,null,"",""]
[null,null,null,null,null,null,null,null,null,"",""]
[null,null,null,null,null,null,null,null,null,"",""]
[null,null,null,null,null,null,null,null,null,"",""]
[null,null,null,null,null,null,null,null,null,"",""]
[null,null,null,null,null,null,null,null,null,"",""]
[null,null,null,null,null,null,null,null,null,"",""]
[null,null,null,null,null,null,null,null,null,"",""]
[null,null,null,null,null,null,null,null,null,"",""]
[null,null,null,null,null,null,null,null,null,"",""]
[null,null,null,null,null,null,null,null,null,"",""]
[null,null,null,null,null,null,null,null,null,"",""]
[null,null,null,null,null,null,null,null,null,"",""]
[null,null,null,null,null,null,null,null,null,"",""]
[null,null,null,null,null,null,null,null,null,"",""]
[null,null,null,null,null,null,null,null,null,"",""]
[null,null,null,null,null,null,null,null,null,"",""]
[null,null,null,null,null,null,null,null,null,"",""]
[null,null,null,null,null,null,null,null,null,"",""]
[null,null,null,null,null,null,null,null,null,"",""]
[null,null,null,null,null,null,null,null,null,"",""]
[null,null,null,null,null,null,null,null,null,"",{"$f":"IF(OR(I1928=\"\",J1928=\"\"),\"\",PRODUCT(I1928,J1928))","v":""}]
[null,null,null,null,null,null,null,null,null,"",""]
[null,null,null,null,null,null,null,null,null,"",""]
[null,null,null,null,null,null,null,null,null,"",""]
[null,null,null,null,null,null,null,null,null,"",""]
[null,null,null,null,null,null,null,null,null,"",""]
[null,null,null,null,null,null,null,null,null,"",""]
[null,null,null,null,null,null,null,null,null,"",""]
[null,null,null,null,null,null,null,null,null,"",""]
[null,null,null,null,null,null,null,null,null,"",""]
[null,null,null,null,null,null,null,null,null,"",""]
[null,null,null,null,null,null,null,null,null,"",""]
[null,null,null,null,null,null,null,null,null,"",""]
[null,null,null,null,null,null,null,null,null,"",""]
[null,null,null,null,null,null,null,null,null,"",""]
[null,null,null,null,null,null,null,null,null,"",""]
[null,null,null,null,null,null,null,null,null,"",""]
[null,null,null,null,null,null,null,null,null,"",""]
[null,null,null,null,null,null,null,null,null,"",""]
[null,null,null,null,null,null,null,null,null,"",""]
[null,null,null,null,null,null,null,null,null,"",""]
[null,null,null,null,null,null,null,null,null,{"$f":"IFERROR(IF(H1949<>\"\",7.05,\"\"),\"\")","v":""},""]
[null,null,null,null,null,null,null,null,null,"",""]
[null,null,null,null,null,null,null,null,null,"",""]
[null,null,null,null,null,null,null,null,null,"",""]
[null,null,null,null,null,null,null,null,null,"",""]
[null,null,null,null,null,null,null,null,null,"",""]
[null,null,null,null,null,null,null,null,null,"",""]
[null,null,null,null,null,null,null,null,null,"",""]
[null,null,null,null,null,null,null,null,null,"",""]
[null,null,null,null,null,null,null,null,null,"",""]
[null,null,null,null,null,null,null,null,null,"",""]
[null,null,null,null,null,null,null,null,null,"",""]
[null,null,null,null,null,null,null,null,null,"",""]
[null,null,null,null,null,null,null,null,null,"",""]
[null,null,null,null,null,null,null,null,null,"",""]
[null,null,null,null,null,null,null,null,null,"",""]
[null,null,null,null,null,null,null,null,null,"",""]
[null,null,null,null,null,null,null,null,null,"",""]
[null,null,null,null,null,null,null,null,null,"",""]
[null,null,null,null,null,null,null,null,null,"",""]
[null,null,null,null,null,null,null,null,null,"",""]
[null,null,null,null,null,null,null,null,null,"",""]
[null,null,null,null,null,null,null,null,null,"",""]
[null,null,null,null,null,null,null,null,null,"",""]
[null,null,null,null,null,null,null,null,null,"",""]
[null,null,null,null,null,null,null,null,null,"",""]
[null,null,null,null,null,null,null,null,null,"",""]
[null,null,null,null,null,null,null,null,null,"",""]
[null,null,null,null,null,null,null,null,null,"",""]
[null,null,null,null,null,null,null,null,null,"",""]
[null,null,null,null,null,null,null,null,null,"",""]
[null,null,null,null,null,null,null,null,null,"",""]
[null,null,null,null,null,null,null,null,null,"",""]
[null,null,null,null,null,null,null,null,null,"",""]
[null,null,null,null,null,null,null,null,null,"",""]
[null,null,null,null,null,null,null,null,null,"",""]
[null,null,null,null,null,null,null,null,null,"",""]
[null,null,null,null,null,null,null,null,null,"",""]
[null,null,null,null,null,null,null,null,null,"",""]
[null,null,null,null,null,null,null,null,null,"",""]
[null,null,null,null,null,null,null,null,null,"",""]
[null,null,null,null,null,null,null,null,null,"",""]
[null,null,null,null,null,null,null,null,null,"",""]
[null,null,null,null,null,null,null,null,null,"",{"$f":"IF(OR(I1992=\"\",J1992=\"\"),\"\",PRODUCT(I1992,J1992))","v":""}]
[null,null,null,null,null,null,null,null,null,"",""]
[null,null,null,null,null,null,null,null,null,"",""]
[null,null,null,null,null,null,null,null,null,"",""]
[null,null,null,null,null,null,null,null,null,"",""]
[null,null,null,null,null,null,null,null,null,"",""]
[null,null,null,null,null,null,null,null,null,"",""]
[null,null,null,null,null,null,null,null,null,"",""]
[null,null,null,null,null,null,null,null,null,"",""]
[null,null,null,null,null,null,null,null,null,"",""]
[null,null,null,null,null,null,null,null,null,"",""]
[null,null,null,null,null,null,null,null,null,"",""]
[null,null,null,null,null,null,null,null,null,"",""]
[null,null,null,null,null,null,null,null,null,"",""]
[null,null,null,null,null,null,null,null,null,"",""]
[null,null,null,null,null,null,null,null,null,"",""]
[null,null,null,null,null,null,null,null,null,"",""]
[null,null,null,null,null,null,null,null,null,"",""]
[null,null,null,null,null,null,null,null,null,"",""]
[null,null,null,null,null,null,null,null,null,"",""]
[null,null,null,null,null,null,null,null,null,"",""]
[null,null,null,null,null,null,null,null,null,{"$f":"IFERROR(IF(H2013<>\"\",7.05,\"\"),\"\")","v":""},""]
[null,null,null,null,null,null,null,null,null,"",""]
[null,null,null,null,null,null,null,null,null,"",""]
[null,null,null,null,null,null,null,null,null,"",""]
[null,null,null,null,null,null,null,null,null,"",""]
[null,null,null,null,null,null,null,null,null,"",""]
[null,null,null,null,null,null,null,null,null,"",""]
[null,null,null,null,null,null,null,null,null,"",""]
[null,null,null,null,null,null,null,null,null,"",""]
[null,null,null,null,null,null,null,null,null,"",""]
[null,null,null,null,null,null,null,null,null,"",""]
[null,null,null,null,null,null,null,null,null,"",""]
[null,null,null,null,null,null,null,null,null,"",""]
[null,null,null,null,null,null,null,null,null,"",""]
[null,null,null,null,null,null,null,null,null,"",""]
[null,null,null,null,null,null,null,null,null,"",""]
[null,null,null,null,null,null,null,null,null,"",""]
[null,null,null,null,null,null,null,null,null,"",""]
[null,null,null,null,null,null,null,null,null,"",""]
[null,null,null,null,null,null,null,null,null,"",""]
[null,null,null,null,null,null,null,null,null,"",""]
[null,null,null,null,null,null,null,null,null,"",""]
[null,null,null,null,null,null,null,null,null,"",""]
[null,null,null,null,null,null,null,null,null,"",""]
[null,null,null,null,null,null,null,null,null,"",""]
[null,null,null,null,null,null,null,null,null,"",""]
[null,null,null,null,null,null,null,null,null,"",""]
[null,null,null,null,null,null,null,null,null,"",""]
[null,null,null,null,null,null,null,null,null,"",""]
[null,null,null,null,null,null,null,null,null,"",""]
[null,null,null,null,null,null,null,null,null,"",""]
[null,null,null,null,null,null,null,null,null,"",""]
[null,null,null,null,null,null,null,null,null,"",""]
[null,null,null,null,null,null,null,null,null,"",""]
[null,null,null,null,null,null,null,null,null,"",""]
[null,null,null,null,null,null,null,null,null,"",""]
[null,null,null,null,null,null,null,null,null,"",""]
[null,null,null,null,null,null,null,null,null,"",""]
[null,null,null,null,null,null,null,null,null,"",""]
[null,null,null,null,null,null,null,null,null,"",""]
[null,null,null,null,null,null,null,null,null,"",""]
[null,null,null,null,null,null,null,null,null,"",""]
[null,null,null,null,null,null,null,null,null,"",""]
[null,null,null,null,null,null,null,null,null,"",{"$f":"IF(OR(I2056=\"\",J2056=\"\"),\"\",PRODUCT(I2056,J2056))","v":""}]
[null,null,null,null,null,null,null,null,null,"",""]
[null,null,null,null,null,null,null,null,null,"",""]
[null,null,null,null,null,null,null,null,null,"",""]
[null,null,null,null,null,null,null,null,null,"",""]
[null,null,null,null,null,null,null,null,null,"",""]
[null,null,null,null,null,null,null,null,null,"",""]
[null,null,null,null,null,null,null,null,null,"",""]
[null,null,null,null,null,null,null,null,null,"",""]
[null,null,null,null,null,null,null,null,null,"",""]
[null,null,null,null,null,null,null,null,null,"",""]
[null,null,null,null,null,null,null,null,null,"",""]
[null,null,null,null,null,null,null,null,null,"",""]
[null,null,null,null,null,null,null,null,null,"",""]
[null,null,null,null,null,null,null,null,null,"",""]
[null,null,null,null,null,null,null,null,null,"",""]
[null,null,null,null,null,null,null,null,null,"",""]
[null,null,null,null,null,null,null,null,null,"",""]
[null,null,null,null,null,null,null,null,null,"",""]
[null,null,null,null,null,null,null,null,null,"",""]
[null,null,null,null,null,null,null,null,null,"",""]
[null,null,null,null,null,null,null,null,null,{"$f":"IFERROR(IF(H2077<>\"\",7.05,\"\"),\"\")","v":""},""]
[null,null,null,null,null,null,null,null,null,"",""]
[null,null,null,null,null,null,null,null,null,"",""]
[null,null,null,null,null,null,null,null,null,"",""]
[null,null,null,null,null,null,null,null,null,"",""]
[null,null,null,null,null,null,null,null,null,"",""]
[null,null,null,null,null,null,null,null,null,"",""]
[null,null,null,null,null,null,null,null,null,"",""]
[null,null,null,null,null,null,null,null,null,"",""]
[null,null,null,null,null,null,null,null,null,"",""]
[null,null,null,null,null,null,null,null,null,"",""]
[null,null,null,null,null,null,null,null,null,"",""]
[null,null,null,null,null,null,null,null,null,"",""]
[null,null,null,null,null,null,null,null,null,"",""]
[null,null,null,null,null,null,null,null,null,"",""]
[null,null,null,null,null,null,null,null,null,"",""]
[null,null,null,null,null,null,null,null,null,"",""]
[null,null,null,null,null,null,null,null,null,"",""]
[null,null,null,null,null,null,null,null,null,"",""]
[null,null,null,null,null,null,null,null,null,"",""]
[null,null,null,null,null,null,null,null,null,"",""]
[null,null,null,null,null,null,null,null,null,"",""]
[null,null,null,null,null,null,null,null,null,"",""]
[null,null,null,null,null,null,null,null,null,"",""]
[null,null,null,null,null,null,null,null,null,"",""]
[null,null,null,null,null,null,null,null,null,"",""]
[null,null,null,null,null,null,null,null,null,"",""]
[null,null,null,null,null,null,null,null,null,"",""]
[null,null,null,null,null,null,null,null,null,"",""]
[null,null,null,null,null,null,null,null,null,"",""]
[null,null,null,null,null,null,null,null,null,"",""]
[null,null,null,null,null,null,null,null,null,"",""]
[null,null,null,null,null,null,null,null,null,"",""]
[null,null,null,null,null,null,null,null,null,"",""]
[null,null,null,null,null,null,null,null,null,"",""]
[null,null,null,null,null,null,null,null,null,"",""]
[null,null,null,null,null,null,null,null,null,"",""]
[null,null,null,null,null,null,null,null,null,"",""]
[null,null,null,null,null,null,null,null,null,"",""]
[null,null,null,null,null,null,null,null,null,"",""]
[null,null,null,null,null,null,null,null,null,"",""]
[null,null,null,null,null,null,null,null,null,"",""]
[null,null,null,null,null,null,null,null,null,"",""]
[null,null,null,null,null,null,null,null,null,"",{"$f":"IF(OR(I2120=\"\",J2120=\"\"),\"\",PRODUCT(I2120,J2120))","v":""}]
[null,null,null,null,null,null,null,null,null,"",""]
[null,null,null,null,null,null,null,null,null,"",""]
[null,null,null,null,null,null,null,null,null,"",""]
[null,null,null,null,null,null,null,null,null,"",""]
[null,null,null,null,null,null,null,null,null,"",""]
[null,null,null,null,null,null,null,null,null,"",""]
[null,null,null,null,null,null,null,null,null,"",""]
[null,null,null,null,null,null,null,null,null,"",""]
[null,null,null,null,null,null,null,null,null,"",""]
[null,null,null,null,null,null,null,null,null,"",""]
[null,null,null,null,null,null,null,null,null,"",""]
[null,null,null,null,null,null,null,null,null,"",""]
[null,null,null,null,null,null,null,null,null,"",""]
[null,null,null,null,null,null,null,null,null,"",""]
[null,null,null,null,null,null,null,null,null,"",""]
[null,null,null,null,null,null,null,null,null,"",""]
[null,null,null,null,null,null,null,null,null,"",""]
[null,null,null,null,null,null,null,null,null,"",""]
[null,null,null,null,null,null,null,null,null,"",""]
[null,null,null,null,null,null,null,null,null,"",""]
[null,null,null,null,null,null,null,null,null,{"$f":"IFERROR(IF(H2141<>\"\",7.05,\"\"),\"\")","v":""},""]
[null,null,null,null,null,null,null,null,null,"",""]
[null,null,null,null,null,null,null,null,null,"",""]
[null,null,null,null,null,null,null,null,null,"",""]
[null,null,null,null,null,null,null,null,null,"",""]
[null,null,null,null,null,null,null,null,null,"",""]
[null,null,null,null,null,null,null,null,null,"",""]
[null,null,null,null,null,null,null,null,null,"",""]
[null,null,null,null,null,null,null,null,null,"",""]
[null,null,null,null,null,null,null,null,null,"",""]
[null,null,null,null,null,null,null,null,null,"",""]
[null,null,null,null,null,null,null,null,null,"",""]
[null,null,null,null,null,null,null,null,null,"",""]
[null,null,null,null,null,null,null,null,null,"",""]
[null,null,null,null,null,null,null,null,null,"",""]
[null,null,null,null,null,null,null,null,null,"",""]
[null,null,null,null,null,null,null,null,null,"",""]
[null,null,null,null,null,null,null,null,null,"",""]
[null,null,null,null,null,null,null,null,null,"",""]
[null,null,null,null,null,null,null,null,null,"",""]
[null,null,null,null,null,null,null,null,null,"",""]
[null,null,null,null,null,null,null,null,null,"",""]
[null,null,null,null,null,null,null,null,null,"",""]
[null,null,null,null,null,null,null,null,null,"",""]
[null,null,null,null,null,null,null,null,null,"",""]
[null,null,null,null,null,null,null,null,null,"",""]
[null,null,null,null,null,null,null,null,null,"",""]
[null,null,null,null,null,null,null,null,null,"",""]
[null,null,null,null,null,null,null,null,null,"",""]
[null,null,null,null,null,null,null,null,null,"",""]
[null,null,null,null,null,null,null,null,null,"",""]
[null,null,null,null,null,null,null,null,null,"",""]
[null,null,null,null,null,null,null,null,null,"",""]
[null,null,null,null,null,null,null,null,null,"",""]
[null,null,null,null,null,null,null,null,null,"",""]
[null,null,null,null,null,null,null,null,null,"",""]
[null,null,null,null,null,null,null,null,null,"",""]
[null,null,null,null,null,null,null,null,null,"",""]
[null,null,null,null,null,null,null,null,null,"",""]
[null,null,null,null,null,null,null,null,null,"",""]
[null,null,null,null,null,null,null,null,null,"",""]
[null,null,null,null,null,null,null,null,null,"",""]
[null,null,null,null,null,null,null,null,null,"",""]
[null,null,null,null,null,null,null,null,null,"",{"$f":"IF(OR(I2184=\"\",J2184=\"\"),\"\",PRODUCT(I2184,J2184))","v":""}]
[null,null,null,null,null,null,null,null,null,"",""]
[null,null,null,null,null,null,null,null,null,"",""]
[null,null,null,null,null,null,null,null,null,"",""]
[null,null,null,null,null,null,null,null,null,"",""]
[null,null,null,null,null,null,null,null,null,"",""]
[null,null,null,null,null,null,null,null,null,"",""]
[null,null,null,null,null,null,null,null,null,"",""]
[null,null,null,null,null,null,null,null,null,"",""]
[null,null,null,null,null,null,null,null,null,"",""]
[null,null,null,null,null,null,null,null,null,"",""]
[null,null,null,null,null,null,null,null,null,"",""]
[null,null,null,null,null,null,null,null,null,"",""]
[null,null,null,null,null,null,null,null,null,"",""]
[null,null,null,null,null,null,null,null,null,"",""]
[null,null,null,null,null,null,null,null,null,"",""]
[null,null,null,null,null,null,null,null,null,"",""]
[null,null,null,null,null,null,null,null,null,"",""]
[null,null,null,null,null,null,null,null,null,"",""]
[null,null,null,null,null,null,null,null,null,"",""]
[null,null,null,null,null,null,null,null,null,"",""]
[null,null,null,null,null,null,null,null,null,{"$f":"IFERROR(IF(H2205<>\"\",7.05,\"\"),\"\")","v":""},""]
[null,null,null,null,null,null,null,null,null,"",""]
[null,null,null,null,null,null,null,null,null,"",""]
[null,null,null,null,null,null,null,null,null,"",""]
[null,null,null,null,null,null,null,null,null,"",""]
[null,null,null,null,null,null,null,null,null,"",""]
[null,null,null,null,null,null,null,null,null,"",""]
[null,null,null,null,null,null,null,null,null,"",""]
[null,null,null,null,null,null,null,null,null,"",""]
[null,null,null,null,null,null,null,null,null,"",""]
[null,null,null,null,null,null,null,null,null,"",""]
[null,null,null,null,null,null,null,null,null,"",""]
[null,null,null,null,null,null,null,null,null,"",""]
[null,null,null,null,null,null,null,null,null,"",""]
[null,null,null,null,null,null,null,null,null,"",""]
[null,null,null,null,null,null,null,null,null,"",""]
[null,null,null,null,null,null,null,null,null,"",""]
[null,null,null,null,null,null,null,null,null,"",""]
[null,null,null,null,null,null,null,null,null,"",""]
[null,null,null,null,null,null,null,null,null,"",""]
[null,null,null,null,null,null,null,null,null,"",""]
[null,null,null,null,null,null,null,null,null,"",""]
[null,null,null,null,null,null,null,null,null,"",""]
[null,null,null,null,null,null,null,null,null,"",""]
[null,null,null,null,null,null,null,null,null,"",""]
[null,null,null,null,null,null,null,null,null,"",""]
[null,null,null,null,null,null,null,null,null,"",""]
[null,null,null,null,null,null,null,null,null,"",""]
[null,null,null,null,null,null,null,null,null,"",""]
[null,null,null,null,null,null,null,null,null,"",""]
[null,null,null,null,null,null,null,null,null,"",""]
[null,null,null,null,null,null,null,null,null,"",""]
[null,null,null,null,null,null,null,null,null,"",""]
[null,null,null,null,null,null,null,null,null,"",""]
[null,null,null,null,null,null,null,null,null,"",""]
[null,null,null,null,null,null,null,null,null,"",""]
[null,null,null,null,null,null,null,null,null,"",""]
[null,null,null,null,null,null,null,null,null,"",""]
[null,null,null,null,null,null,null,null,null,"",""]
[null,null,null,null,null,null,null,null,null,"",""]
[null,null,null,null,null,null,null,null,null,"",""]
[null,null,null,null,null,null,null,null,null,"",""]
[null,null,null,null,null,null,null,null,null,"",""]
[null,null,null,null,null,null,null,null,null,"",{"$f":"IF(OR(I2248=\"\",J2248=\"\"),\"\",PRODUCT(I2248,J2248))","v":""}]
[null,null,null,null,null,null,null,null,null,"",""]
[null,null,null,null,null,null,null,null,null,"",""]
[null,null,null,null,null,null,null,null,null,"",""]
[null,null,null,null,null,null,null,null,null,"",""]
[null,null,null,null,null,null,null,null,null,"",""]
[null,null,null,null,null,null,null,null,null,"",""]
[null,null,null,null,null,null,null,null,null,"",""]
[null,null,null,null,null,null,null,null,null,"",""]
[null,null,null,null,null,null,null,null,null,"",""]
[null,null,null,null,null,null,null,null,null,"",""]
[null,null,null,null,null,null,null,null,null,"",""]
[null,null,null,null,null,null,null,null,null,"",""]
[null,null,null,null,null,null,null,null,null,"",""]
[null,null,null,null,null,null,null,null,null,"",""]
[null,null,null,null,null,null,null,null,null,"",""]
[null,null,null,null,null,null,null,null,null,"",""]
[null,null,null,null,null,null,null,null,null,"",""]
[null,null,null,null,null,null,null,null,null,"",""]
[null,null,null,null,null,null,null,null,null,"",""]
[null,null,null,null,null,null,null,null,null,"",""]
[null,null,null,null,null,null,null,null,null,{"$f":"IFERROR(IF(H2269<>\"\",7.05,\"\"),\"\")","v":""},""]
[null,null,null,null,null,null,null,null,null,"",""]
[null,null,null,null,null,null,null,null,null,"",""]
[null,null,null,null,null,null,null,null,null,"",""]
[null,null,null,null,null,null,null,null,null,"",""]
[null,null,null,null,null,null,null,null,null,"",""]
[null,null,null,null,null,null,null,null,null,"",""]
[null,null,null,null,null,null,null,null,null,"",""]
[null,null,null,null,null,null,null,null,null,"",""]
[null,null,null,null,null,null,null,null,null,"",""]
[null,null,null,null,null,null,null,null,null,"",""]
[null,null,null,null,null,null,null,null,null,"",""]
[null,null,null,null,null,null,null,null,null,"",""]
[null,null,null,null,null,null,null,null,null,"",""]
[null,null,null,null,null,null,null,null,null,"",""]
[null,null,null,null,null,null,null,null,null,"",""]
[null,null,null,null,null,null,null,null,null,"",""]
[null,null,null,null,null,null,null,null,null,"",""]
[null,null,null,null,null,null,null,null,null,"",""]
[null,null,null,null,null,null,null,null,null,"",""]
[null,null,null,null,null,null,null,null,null,"",""]
[null,null,null,null,null,null,null,null,null,"",""]
[null,null,null,null,null,null,null,null,null,"",""]
[null,null,null,null,null,null,null,null,null,"",""]
[null,null,null,null,null,null,null,null,null,"",""]
[null,null,null,null,null,null,null,null,null,"",""]
[null,null,null,null,null,null,null,null,null,"",""]
[null,null,null,null,null,null,null,null,null,"",""]
[null,null,null,null,null,null,null,null,null,"",""]
[null,null,null,null,null,null,null,null,null,"",""]
[null,null,null,null,null,null,null,null,null,"",""]
[null,null,null,null,null,null,null,null,null,"",""]
[null,null,null,null,null,null,null,null,null,"",""]
[null,null,null,null,null,null,null,null,null,"",""]
[null,null,null,null,null,null,null,null,null,"",""]
[null,null,null,null,null,null,null,null,null,"",""]
[null,null,null,null,null,null,null,null,null,"",""]
[null,null,null,null,null,null,null,null,null,"",""]
[null,null,null,null,null,null,null,null,null,"",""]
[null,null,null,null,null,null,null,null,null,"",""]
[null,null,null,null,null,null,null,null,null,"",""]
[null,null,null,null,null,null,null,null,null,"",""]
[null,null,null,null,null,null,null,null,null,"",""]
[null,null,null,null,null,null,null,null,null,"",{"$f":"IF(OR(I2312=\"\",J2312=\"\"),\"\",PRODUCT(I2312,J2312))","v":""}]
[null,null,null,null,null,null,null,null,null,"",""]
[null,null,null,null,null,null,null,null,null,"",""]
[null,null,null,null,null,null,null,null,null,"",""]
[null,null,null,null,null,null,null,null,null,"",""]
[null,null,null,null,null,null,null,null,null,"",""]
[null,null,null,null,null,null,null,null,null,"",""]
[null,null,null,null,null,null,null,null,null,"",""]
[null,null,null,null,null,null,null,null,null,"",""]
[null,null,null,null,null,null,null,null,null,"",""]
[null,null,null,null,null,null,null,null,null,"",""]
[null,null,null,null,null,null,null,null,null,"",""]
[null,null,null,null,null,null,null,null,null,"",""]
[null,null,null,null,null,null,null,null,null,"",""]
[null,null,null,null,null,null,null,null,null,"",""]
[null,null,null,null,null,null,null,null,null,"",""]
[null,null,null,null,null,null,null,null,null,"",""]
[null,null,null,null,null,null,null,null,null,"",""]
[null,null,null,null,null,null,null,null,null,"",""]
[null,null,null,null,null,null,null,null,null,"",""]
[null,null,null,null,null,null,null,null,null,"",""]
[null,null,null,null,null,null,null,null,null,{"$f":"IFERROR(IF(H2333<>\"\",7.05,\"\"),\"\")","v":""},""]
[null,null,null,null,null,null,null,null,null,"",""]
[null,null,null,null,null,null,null,null,null,"",""]
[null,null,null,null,null,null,null,null,null,"",""]
[null,null,null,null,null,null,null,null,null,"",""]
[null,null,null,null,null,null,null,null,null,"",""]
[null,null,null,null,null,null,null,null,null,"",""]
[null,null,null,null,null,null,null,null,null,"",""]
[null,null,null,null,null,null,null,null,null,"",""]
[null,null,null,null,null,null,null,null,null,"",""]
[null,null,null,null,null,null,null,null,null,"",""]
[null,null,null,null,null,null,null,null,null,"",""]
[null,null,null,null,null,null,null,null,null,"",""]
[null,null,null,null,null,null,null,null,null,"",""]
[null,null,null,null,null,null,null,null,null,"",""]
[null,null,null,null,null,null,null,null,null,"",""]
[null,null,null,null,null,null,null,null,null,"",""]
[null,null,null,null,null,null,null,null,null,"",""]
[null,null,null,null,null,null,null,null,null,"",""]
[null,null,null,null,null,null,null,null,null,"",""]
[null,null,null,null,null,null,null,null,null,"",""]
[null,null,null,null,null,null,null,null,null,"",""]
[null,null,null,null,null,null,null,null,null,"",""]
[null,null,null,null,null,null,null,null,null,"",""]
[null,null,null,null,null,null,null,null,null,"",""]
[null,null,null,null,null,null,null,null,null,"",""]
[null,null,null,null,null,null,null,null,null,"",""]
[null,null,null,null,null,null,null,null,null,"",""]
[null,null,null,null,null,null,null,null,null,"",""]
[null,null,null,null,null,null,null,null,null,"",""]
[null,null,null,null,null,null,null,null,null,"",""]
[null,null,null,null,null,null,null,null,null,"",""]
[null,null,null,null,null,null,null,null,null,"",""]
[null,null,null,null,null,null,null,null,null,"",""]
[null,null,null,null,null,null,null,null,null,"",""]
[null,null,null,null,null,null,null,null,null,"",""]
[null,null,null,null,null,null,null,null,null,"",""]
[null,null,null,null,null,null,null,null,null,"",""]
[null,null,null,null,null,null,null,null,null,"",""]
[null,null,null,null,null,null,null,null,null,"",""]
[null,null,null,null,null,null,null,null,null,"",""]
[null,null,null,null,null,null,null,null,null,"",""]
[null,null,null,null,null,null,null,null,null,"",""]
[null,null,null,null,null,null,null,null,null,"",{"$f":"IF(OR(I2376=\"\",J2376=\"\"),\"\",PRODUCT(I2376,J2376))","v":""}]
[null,null,null,null,null,null,null,null,null,"",""]
[null,null,null,null,null,null,null,null,null,"",""]
[null,null,null,null,null,null,null,null,null,"",""]
[null,null,null,null,null,null,null,null,null,"",""]
[null,null,null,null,null,null,null,null,null,"",""]
[null,null,null,null,null,null,null,null,null,"",""]
[null,null,null,null,null,null,null,null,null,"",""]
[null,null,null,null,null,null,null,null,null,"",""]
[null,null,null,null,null,null,null,null,null,"",""]
[null,null,null,null,null,null,null,null,null,"",""]
[null,null,null,null,null,null,null,null,null,"",""]
[null,null,null,null,null,null,null,null,null,"",""]
[null,null,null,null,null,null,null,null,null,"",""]
[null,null,null,null,null,null,null,null,null,"",""]
[null,null,null,null,null,null,null,null,null,"",""]
[null,null,null,null,null,null,null,null,null,"",""]
[null,null,null,null,null,null,null,null,null,"",""]
[null,null,null,null,null,null,null,null,null,"",""]
[null,null,null,null,null,null,null,null,null,"",""]
[null,null,null,null,null,null,null,null,null,"",""]
[null,null,null,null,null,null,null,null,null,{"$f":"IFERROR(IF(H2397<>\"\",7.05,\"\"),\"\")","v":""},""]
[null,null,null,null,null,null,null,null,null,"",""]
[null,null,null,null,null,null,null,null,null,"",""]
[null,null,null,null,null,null,null,null,null,"",""]
[null,null,null,null,null,null,null,null,null,"",""]
[null,null,null,null,null,null,null,null,null,"",""]
[null,null,null,null,null,null,null,null,null,"",""]
[null,null,null,null,null,null,null,null,null,"",""]
[null,null,null,null,null,null,null,null,null,"",""]
[null,null,null,null,null,null,null,null,null,"",""]
[null,null,null,null,null,null,null,null,null,"",""]
[null,null,null,null,null,null,null,null,null,"",""]
[null,null,null,null,null,null,null,null,null,"",""]
[null,null,null,null,null,null,null,null,null,"",""]
[null,null,null,null,null,null,null,null,null,"",""]
[null,null,null,null,null,null,null,null,null,"",""]
[null,null,null,null,null,null,null,null,null,"",""]
[null,null,null,null,null,null,null,null,null,"",""]
[null,null,null,null,null,null,null,null,null,"",""]
[null,null,null,null,null,null,null,null,null,"",""]
[null,null,null,null,null,null,null,null,null,"",""]
[null,null,null,null,null,null,null,null,null,"",""]
[null,null,null,null,null,null,null,null,null,"",""]
[null,null,null,null,null,null,null,null,null,"",""]
[null,null,null,null,null,null,null,null,null,"",""]
[null,null,null,null,null,null,null,null,null,"",""]
[null,null,null,null,null,null,null,null,null,"",""]
[null,null,null,null,null,null,null,null,null,"",""]
[null,null,null,null,null,null,null,null,null,"",""]
[null,null,null,null,null,null,null,null,null,"",""]
[null,null,null,null,null,null,null,null,null,"",""]
[null,null,null,null,null,null,null,null,null,"",""]
[null,null,null,null,null,null,null,null,null,"",""]
[null,null,null,null,null,null,null,null,null,"",""]
[null,null,null,null,null,null,null,null,null,"",""]
[null,null,null,null,null,null,null,null,null,"",""]
[null,null,null,null,null,null,null,null,null,"",""]
[null,null,null,null,null,null,null,null,null,"",""]
[null,null,null,null,null,null,null,null,null,"",""]
[null,null,null,null,null,null,null,null,null,"",""]
[null,null,null,null,null,null,null,null,null,"",""]
[null,null,null,null,null,null,null,null,null,"",""]
[null,null,null,null,null,null,null,null,null,"",""]
[null,null,null,null,null,null,null,null,null,"",{"$f":"IF(OR(I2440=\"\",J2440=\"\"),\"\",PRODUCT(I2440,J2440))","v":""}]
[null,null,null,null,null,null,null,null,null,"",""]
[null,null,null,null,null,null,null,null,null,"",""]
[null,null,null,null,null,null,null,null,null,"",""]
[null,null,null,null,null,null,null,null,null,"",""]
[null,null,null,null,null,null,null,null,null,"",""]
[null,null,null,null,null,null,null,null,null,"",""]
[null,null,null,null,null,null,null,null,null,"",""]
[null,null,null,null,null,null,null,null,null,"",""]
[null,null,null,null,null,null,null,null,null,"",""]
[null,null,null,null,null,null,null,null,null,"",""]
[null,null,null,null,null,null,null,null,null,"",""]
[null,null,null,null,null,null,null,null,null,"",""]
[null,null,null,null,null,null,null,null,null,"",""]
[null,null,null,null,null,null,null,null,null,"",""]
[null,null,null,null,null,null,null,null,null,"",""]
[null,null,null,null,null,null,null,null,null,"",""]
[null,null,null,null,null,null,null,null,null,"",""]
[null,null,null,null,null,null,null,null,null,"",""]
[null,null,null,null,null,null,null,null,null,"",""]
[null,null,null,null,null,null,null,null,null,"",""]
[null,null,null,null,null,null,null,null,null,{"$f":"IFERROR(IF(H2461<>\"\",7.05,\"\"),\"\")","v":""},""]
[null,null,null,null,null,null,null,null,null,"",""]
[null,null,null,null,null,null,null,null,null,"",""]
[null,null,null,null,null,null,null,null,null,"",""]
[null,null,null,null,null,null,null,null,null,"",""]
[null,null,null,null,null,null,null,null,null,"",""]
[null,null,null,null,null,null,null,null,null,"",""]
[null,null,null,null,null,null,null,null,null,"",""]
[null,null,null,null,null,null,null,null,null,"",""]
[null,null,null,null,null,null,null,null,null,"",""]
[null,null,null,null,null,null,null,null,null,"",""]
[null,null,null,null,null,null,null,null,null,"",""]
[null,null,null,null,null,null,null,null,null,"",""]
[null,null,null,null,null,null,null,null,null,"",""]
[null,null,null,null,null,null,null,null,null,"",""]
[null,null,null,null,null,null,null,null,null,"",""]
[null,null,null,null,null,null,null,null,null,"",""]
[null,null,null,null,null,null,null,null,null,"",""]
[null,null,null,null,null,null,null,null,null,"",""]
[null,null,null,null,null,null,null,null,null,"",""]
[null,null,null,null,null,null,null,null,null,"",""]
[null,null,null,null,null,null,null,null,null,"",""]
[null,null,null,null,null,null,null,null,null,"",""]
[null,null,null,null,null,null,null,null,null,"",""]
[null,null,null,null,null,null,null,null,null,"",""]
[null,null,null,null,null,null,null,null,null,"",""]
[null,null,null,null,null,null,null,null,null,"",""]
[null,null,null,null,null,null,null,null,null,"",""]
[null,null,null,null,null,null,null,null,null,"",""]
[null,null,null,null,null,null,null,null,null,"",""]
[null,null,null,null,null,null,null,null,null,"",""]
[null,null,null,null,null,null,null,null,null,"",""]
[null,null,null,null,null,null,null,null,null,"",""]
[null,null,null,null,null,null,null,null,null,"",""]
[null,null,null,null,null,null,null,null,null,"",""]
[null,null,null,null,null,null,null,null,null,"",""]
[null,null,null,null,null,null,null,null,null,"",""]
[null,null,null,null,null,null,null,null,null,"",""]
[null,null,null,null,null,null,null,null,null,"",""]
[null,null,null,null,null,null,null,null,null,"",""]
[null,null,null,null,null,null,null,null,null,"",""]
[null,null,null,null,null,null,null,null,null,"",""]
[null,null,null,null,null,null,null,null,null,"",""]
[null,null,null,null,null,null,null,null,null,"",{"$f":"IF(OR(I2504=\"\",J2504=\"\"),\"\",PRODUCT(I2504,J2504))","v":""}]
[null,null,null,null,null,null,null,null,null,"",""]
[null,null,null,null,null,null,null,null,null,"",""]
[null,null,null,null,null,null,null,null,null,"",""]
[null,null,null,null,null,null,null,null,null,"",""]
[null,null,null,null,null,null,null,null,null,"",""]
[null,null,null,null,null,null,null,null,null,"",""]
[null,null,null,null,null,null,null,null,null,"",""]
[null,null,null,null,null,null,null,null,null,"",""]
[null,null,null,null,null,null,null,null,null,"",""]
[null,null,null,null,null,null,null,null,null,"",""]
[null,null,null,null,null,null,null,null,null,"",""]
[null,null,null,null,null,null,null,null,null,"",""]
[null,null,null,null,null,null,null,null,null,"",""]
[null,null,null,null,null,null,null,null,null,"",""]
[null,null,null,null,null,null,null,null,null,"",""]
[null,null,null,null,null,null,null,null,null,"",""]
[null,null,null,null,null,null,null,null,null,"",""]
[null,null,null,null,null,null,null,null,null,"",""]
[null,null,null,null,null,null,null,null,null,"",""]
[null,null,null,null,null,null,null,null,null,"",""]
[null,null,null,null,null,null,null,null,null,{"$f":"IFERROR(IF(H2525<>\"\",7.05,\"\"),\"\")","v":""},""]
[null,null,null,null,null,null,null,null,null,"",""]
[null,null,null,null,null,null,null,null,null,"",""]
[null,null,null,null,null,null,null,null,null,"",""]
[null,null,null,null,null,null,null,null,null,"",""]
[null,null,null,null,null,null,null,null,null,"",""]
[null,null,null,null,null,null,null,null,null,"",""]
[null,null,null,null,null,null,null,null,null,"",""]
[null,null,null,null,null,null,null,null,null,"",""]
[null,null,null,null,null,null,null,null,null,"",""]
[null,null,null,null,null,null,null,null,null,"",""]
[null,null,null,null,null,null,null,null,null,"",""]
[null,null,null,null,null,null,null,null,null,"",""]
[null,null,null,null,null,null,null,null,null,"",""]
[null,null,null,null,null,null,null,null,null,"",""]
[null,null,null,null,null,null,null,null,null,"",""]
[null,null,null,null,null,null,null,null,null,"",""]
[null,null,null,null,null,null,null,null,null,"",""]
[null,null,null,null,null,null,null,null,null,"",""]
[null,null,null,null,null,null,null,null,null,"",""]
[null,null,null,null,null,null,null,null,null,"",""]
[null,null,null,null,null,null,null,null,null,"",""]
[null,null,null,null,null,null,null,null,null,"",""]
[null,null,null,null,null,null,null,null,null,"",""]
[null,null,null,null,null,null,null,null,null,"",""]
[null,null,null,null,null,null,null,null,null,"",""]
[null,null,null,null,null,null,null,null,null,"",""]
[null,null,null,null,null,null,null,null,null,"",""]
[null,null,null,null,null,null,null,null,null,"",""]
[null,null,null,null,null,null,null,null,null,"",""]
[null,null,null,null,null,null,null,null,null,"",""]
[null,null,null,null,null,null,null,null,null,"",""]
[null,null,null,null,null,null,null,null,null,"",""]
[null,null,null,null,null,null,null,null,null,"",""]
[null,null,null,null,null,null,null,null,null,"",""]
[null,null,null,null,null,null,null,null,null,"",""]
[null,null,null,null,null,null,null,null,null,"",""]
[null,null,null,null,null,null,null,null,null,"",""]
[null,null,null,null,null,null,null,null,null,"",""]
[null,null,null,null,null,null,null,null,null,"",""]
[null,null,null,null,null,null,null,null,null,"",""]
[null,null,null,null,null,null,null,null,null,"",""]
[null,null,null,null,null,null,null,null,null,"",""]
[null,null,null,null,null,null,null,null,null,"",{"$f":"IF(OR(I2568=\"\",J2568=\"\"),\"\",PRODUCT(I2568,J2568))","v":""}]
[null,null,null,null,null,null,null,null,null,"",""]
[null,null,null,null,null,null,null,null,null,"",""]
[null,null,null,null,null,null,null,null,null,"",""]
[null,null,null,null,null,null,null,null,null,"",""]
[null,null,null,null,null,null,null,null,null,"",""]
[null,null,null,null,null,null,null,null,null,"",""]
[null,null,null,null,null,null,null,null,null,"",""]
[null,null,null,null,null,null,null,null,null,"",""]
[null,null,null,null,null,null,null,null,null,"",""]
[null,null,null,null,null,null,null,null,null,"",""]
[null,null,null,null,null,null,null,null,null,"",""]
[null,null,null,null,null,null,null,null,null,"",""]
[null,null,null,null,null,null,null,null,null,"",""]
[null,null,null,null,null,null,null,null,null,"",""]
[null,null,null,null,null,null,null,null,null,"",""]
[null,null,null,null,null,null,null,null,null,"",""]
[null,null,null,null,null,null,null,null,null,"",""]
[null,null,null,null,null,null,null,null,null,"",""]
[null,null,null,null,null,null,null,null,null,"",""]
[null,null,null,null,null,null,null,null,null,"",""]
[null,null,null,null,null,null,null,null,null,{"$f":"IFERROR(IF(H2589<>\"\",7.05,\"\"),\"\")","v":""},""]
[null,null,null,null,null,null,null,null,null,"",""]
[null,null,null,null,null,null,null,null,null,"",""]
[null,null,null,null,null,null,null,null,null,"",""]
[null,null,null,null,null,null,null,null,null,"",""]
[null,null,null,null,null,null,null,null,null,"",""]
[null,null,null,null,null,null,null,null,null,"",""]
[null,null,null,null,null,null,null,null,null,"",""]
[null,null,null,null,null,null,null,null,null,"",""]
[null,null,null,null,null,null,null,null,null,"",""]
[null,null,null,null,null,null,null,null,null,"",""]
[null,null,null,null,null,null,null,null,null,"",""]
[null,null,null,null,null,null,null,null,null,"",""]
[null,null,null,null,null,null,null,null,null,"",""]
[null,null,null,null,null,null,null,null,null,"",""]
[null,null,null,null,null,null,null,null,null,"",""]
[null,null,null,null,null,null,null,null,null,"",""]
[null,null,null,null,null,null,null,null,null,"",""]
[null,null,null,null,null,null,null,null,null,"",""]
[null,null,null,null,null,null,null,null,null,"",""]
[null,null,null,null,null,null,null,null,null,"",""]
[null,null,null,null,null,null,null,null,null,"",""]
[null,null,null,null,null,null,null,null,null,"",""]
[null,null,null,null,null,null,null,null,null,"",""]
[null,null,null,null,null,null,null,null,null,"",""]
[null,null,null,null,null,null,null,null,null,"",""]
[null,null,null,null,null,null,null,null,null,"",""]
[null,null,null,null,null,null,null,null,null,"",""]
[null,null,null,null,null,null,null,null,null,"",""]
[null,null,null,null,null,null,null,null,null,"",""]
[null,null,null,null,null,null,null,null,null,"",""]
[null,null,null,null,null,null,null,null,null,"",""]
[null,null,null,null,null,null,null,null,null,"",""]
[null,null,null,null,null,null,null,null,null,"",""]
[null,null,null,null,null,null,null,null,null,"",""]
[null,null,null,null,null,null,null,null,null,"",""]
[null,null,null,null,null,null,null,null,null,"",""]
[null,null,null,null,null,null,null,null,null,"",""]
[null,null,null,null,null,null,null,null,null,"",""]
[null,null,null,null,null,null,null,null,null,"",""]
[null,null,null,null,null,null,null,null,null,"",""]
[null,null,null,null,null,null,null,null,null,"",""]
[null,null,null,null,null,null,null,null,null,"",""]
[null,null,null,null,null,null,null,null,null,"",{"$f":"IF(OR(I2632=\"\",J2632=\"\"),\"\",PRODUCT(I2632,J2632))","v":""}]
[null,null,null,null,null,null,null,null,null,"",""]
[null,null,null,null,null,null,null,null,null,"",""]
[null,null,null,null,null,null,null,null,null,"",""]
[null,null,null,null,null,null,null,null,null,"",""]
[null,null,null,null,null,null,null,null,null,"",""]
[null,null,null,null,null,null,null,null,null,"",""]
[null,null,null,null,null,null,null,null,null,"",""]
[null,null,null,null,null,null,null,null,null,"",""]
[null,null,null,null,null,null,null,null,null,"",""]
[null,null,null,null,null,null,null,null,null,"",""]
[null,null,null,null,null,null,null,null,null,"",""]
[null,null,null,null,null,null,null,null,null,"",""]
[null,null,null,null,null,null,null,null,null,"",""]
[null,null,null,null,null,null,null,null,null,"",""]
[null,null,null,null,null,null,null,null,null,"",""]
[null,null,null,null,null,null,null,null,null,"",""]
[null,null,null,null,null,null,null,null,null,"",""]
[null,null,null,null,null,null,null,null,null,"",""]
[null,null,null,null,null,null,null,null,null,"",""]
[null,null,null,null,null,null,null,null,null,"",""]
[null,null,null,null,null,null,null,null,null,{"$f":"IFERROR(IF(H2653<>\"\",7.05,\"\"),\"\")","v":""},""]
[null,null,null,null,null,null,null,null,null,"",""]
[null,null,null,null,null,null,null,null,null,"",""]
[null,null,null,null,null,null,null,null,null,"",""]
[null,null,null,null,null,null,null,null,null,"",""]
[null,null,null,null,null,null,null,null,null,"",""]
[null,null,null,null,null,null,null,null,null,"",""]
[null,null,null,null,null,null,null,null,null,"",""]
[null,null,null,null,null,null,null,null,null,"",""]
[null,null,null,null,null,null,null,null,null,"",""]
[null,null,null,null,null,null,null,null,null,"",""]
[null,null,null,null,null,null,null,null,null,"",""]
[null,null,null,null,null,null,null,null,null,"",""]
[null,null,null,null,null,null,null,null,null,"",""]
[null,null,null,null,null,null,null,null,null,"",""]
[null,null,null,null,null,null,null,null,null,"",""]
[null,null,null,null,null,null,null,null,null,"",""]
[null,null,null,null,null,null,null,null,null,"",""]
[null,null,null,null,null,null,null,null,null,"",""]
[null,null,null,null,null,null,null,null,null,"",""]
[null,null,null,null,null,null,null,null,null,"",""]
[null,null,null,null,null,null,null,null,null,"",""]
[null,null,null,null,null,null,null,null,null,"",""]
[null,null,null,null,null,null,null,null,null,"",""]
[null,null,null,null,null,null,null,null,null,"",""]
[null,null,null,null,null,null,null,null,null,"",""]
[null,null,null,null,null,null,null,null,null,"",""]
[null,null,null,null,null,null,null,null,null,"",""]
[null,null,null,null,null,null,null,null,null,"",""]
[null,null,null,null,null,null,null,null,null,"",""]
[null,null,null,null,null,null,null,null,null,"",""]
[null,null,null,null,null,null,null,null,null,"",""]
[null,null,null,null,null,null,null,null,null,"",""]
[null,null,null,null,null,null,null,null,null,"",""]
[null,null,null,null,null,null,null,null,null,"",""]
[null,null,null,null,null,null,null,null,null,"",""]
[null,null,null,null,null,null,null,null,null,"",""]
[null,null,null,null,null,null,null,null,null,"",""]
[null,null,null,null,null,null,null,null,null,"",""]
[null,null,null,null,null,null,null,null,null,"",""]
[null,null,null,null,null,null,null,null,null,"",""]
[null,null,null,null,null,null,null,null,null,"",""]
[null,null,null,null,null,null,null,null,null,"",""]
[null,null,null,null,null,null,null,null,null,"",{"$f":"IF(OR(I2696=\"\",J2696=\"\"),\"\",PRODUCT(I2696,J2696))","v":""}]
[null,null,null,null,null,null,null,null,null,"",""]
[null,null,null,null,null,null,null,null,null,"",""]
[null,null,null,null,null,null,null,null,null,"",""]
[null,null,null,null,null,null,null,null,null,"",""]
[null,null,null,null,null,null,null,null,null,"",""]
[null,null,null,null,null,null,null,null,null,"",""]
[null,null,null,null,null,null,null,null,null,"",""]
[null,null,null,null,null,null,null,null,null,"",""]
[null,null,null,null,null,null,null,null,null,"",""]
[null,null,null,null,null,null,null,null,null,"",""]
[null,null,null,null,null,null,null,null,null,"",""]
[null,null,null,null,null,null,null,null,null,"",""]
[null,null,null,null,null,null,null,null,null,"",""]
[null,null,null,null,null,null,null,null,null,"",""]
[null,null,null,null,null,null,null,null,null,"",""]
[null,null,null,null,null,null,null,null,null,"",""]
[null,null,null,null,null,null,null,null,null,"",""]
[null,null,null,null,null,null,null,null,null,"",""]
[null,null,null,null,null,null,null,null,null,"",""]
[null,null,null,null,null,null,null,null,null,"",""]
[null,null,null,null,null,null,null,null,null,{"$f":"IFERROR(IF(H2717<>\"\",7.05,\"\"),\"\")","v":""},""]
[null,null,null,null,null,null,null,null,null,"",""]
[null,null,null,null,null,null,null,null,null,"",""]
[null,null,null,null,null,null,null,null,null,"",""]
[null,null,null,null,null,null,null,null,null,"",""]
[null,null,null,null,null,null,null,null,null,"",""]
[null,null,null,null,null,null,null,null,null,"",""]
[null,null,null,null,null,null,null,null,null,"",""]
[null,null,null,null,null,null,null,null,null,"",""]
[null,null,null,null,null,null,null,null,null,"",""]
[null,null,null,null,null,null,null,null,null,"",""]
[null,null,null,null,null,null,null,null,null,"",""]
[null,null,null,null,null,null,null,null,null,"",""]
[null,null,null,null,null,null,null,null,null,"",""]
[null,null,null,null,null,null,null,null,null,"",""]
[null,null,null,null,null,null,null,null,null,"",""]
[null,null,null,null,null,null,null,null,null,"",""]
[null,null,null,null,null,null,null,null,null,"",""]
[null,null,null,null,null,null,null,null,null,"",""]
[null,null,null,null,null,null,null,null,null,"",""]
[null,null,null,null,null,null,null,null,null,"",""]
[null,null,null,null,null,null,null,null,null,"",""]
[null,null,null,null,null,null,null,null,null,"",""]
[null,null,null,null,null,null,null,null,null,"",""]
[null,null,null,null,null,null,null,null,null,"",""]
[null,null,null,null,null,null,null,null,null,"",""]
[null,null,null,null,null,null,null,null,null,"",""]
[null,null,null,null,null,null,null,null,null,"",""]
[null,null,null,null,null,null,null,null,null,"",""]
[null,null,null,null,null,null,null,null,null,"",""]
[null,null,null,null,null,null,null,null,null,"",""]
[null,null,null,null,null,null,null,null,null,"",""]
[null,null,null,null,null,null,null,null,null,"",""]
[null,null,null,null,null,null,null,null,null,"",""]
[null,null,null,null,null,null,null,null,null,"",""]
[null,null,null,null,null,null,null,null,null,"",""]
[null,null,null,null,null,null,null,null,null,"",""]
[null,null,null,null,null,null,null,null,null,"",""]
[null,null,null,null,null,null,null,null,null,"",""]
[null,null,null,null,null,null,null,null,null,"",""]
[null,null,null,null,null,null,null,null,null,"",""]
[null,null,null,null,null,null,null,null,null,"",""]
[null,null,null,null,null,null,null,null,null,"",""]
[null,null,null,null,null,null,null,null,null,"",{"$f":"IF(OR(I2760=\"\",J2760=\"\"),\"\",PRODUCT(I2760,J2760))","v":""}]
[null,null,null,null,null,null,null,null,null,"",""]
[null,null,null,null,null,null,null,null,null,"",""]
[null,null,null,null,null,null,null,null,null,"",""]
[null,null,null,null,null,null,null,null,null,"",""]
[null,null,null,null,null,null,null,null,null,"",""]
[null,null,null,null,null,null,null,null,null,"",""]
[null,null,null,null,null,null,null,null,null,"",""]
[null,null,null,null,null,null,null,null,null,"",""]
[null,null,null,null,null,null,null,null,null,"",""]
[null,null,null,null,null,null,null,null,null,"",""]
[null,null,null,null,null,null,null,null,null,"",""]
[null,null,null,null,null,null,null,null,null,"",""]
[null,null,null,null,null,null,null,null,null,"",""]
[null,null,null,null,null,null,null,null,null,"",""]
[null,null,null,null,null,null,null,null,null,"",""]
[null,null,null,null,null,null,null,null,null,"",""]
[null,null,null,null,null,null,null,null,null,"",""]
[null,null,null,null,null,null,null,null,null,"",""]
[null,null,null,null,null,null,null,null,null,"",""]
[null,null,null,null,null,null,null,null,null,"",""]
[null,null,null,null,null,null,null,null,null,{"$f":"IFERROR(IF(H2781<>\"\",7.05,\"\"),\"\")","v":""},""]
[null,null,null,null,null,null,null,null,null,"",""]
[null,null,null,null,null,null,null,null,null,"",""]
[null,null,null,null,null,null,null,null,null,"",""]
[null,null,null,null,null,null,null,null,null,"",""]
[null,null,null,null,null,null,null,null,null,"",""]
[null,null,null,null,null,null,null,null,null,"",""]
[null,null,null,null,null,null,null,null,null,"",""]
[null,null,null,null,null,null,null,null,null,"",""]
[null,null,null,null,null,null,null,null,null,"",""]
[null,null,null,null,null,null,null,null,null,"",""]
[null,null,null,null,null,null,null,null,null,"",""]
[null,null,null,null,null,null,null,null,null,"",""]
[null,null,null,null,null,null,null,null,null,"",""]
[null,null,null,null,null,null,null,null,null,"",""]
[null,null,null,null,null,null,null,null,null,"",""]
[null,null,null,null,null,null,null,null,null,"",""]
[null,null,null,null,null,null,null,null,null,"",""]
[null,null,null,null,null,null,null,null,null,"",""]
[null,null,null,null,null,null,null,null,null,"",""]
[null,null,null,null,null,null,null,null,null,"",""]
[null,null,null,null,null,null,null,null,null,"",""]
[null,null,null,null,null,null,null,null,null,"",""]
[null,null,null,null,null,null,null,null,null,"",""]
[null,null,null,null,null,null,null,null,null,"",""]
[null,null,null,null,null,null,null,null,null,"",""]
[null,null,null,null,null,null,null,null,null,"",""]
[null,null,null,null,null,null,null,null,null,"",""]
[null,null,null,null,null,null,null,null,null,"",""]
[null,null,null,null,null,null,null,null,null,"",""]
[null,null,null,null,null,null,null,null,null,"",""]
[null,null,null,null,null,null,null,null,null,"",""]
[null,null,null,null,null,null,null,null,null,"",""]
[null,null,null,null,null,null,null,null,null,"",""]
[null,null,null,null,null,null,null,null,null,"",""]
[null,null,null,null,null,null,null,null,null,"",""]
[null,null,null,null,null,null,null,null,null,"",""]
[null,null,null,null,null,null,null,null,null,"",""]
[null,null,null,null,null,null,null,null,null,"",""]
[null,null,null,null,null,null,null,null,null,"",""]
[null,null,null,null,null,null,null,null,null,"",""]
[null,null,null,null,null,null,null,null,null,"",""]
[null,null,null,null,null,null,null,null,null,"",""]
[null,null,null,null,null,null,null,null,null,"",{"$f":"IF(OR(I2824=\"\",J2824=\"\"),\"\",PRODUCT(I2824,J2824))","v":""}]
[null,null,null,null,null,null,null,null,null,"",""]
[null,null,null,null,null,null,null,null,null,"",""]
[null,null,null,null,null,null,null,null,null,"",""]
[null,null,null,null,null,null,null,null,null,"",""]
[null,null,null,null,null,null,null,null,null,"",""]
[null,null,null,null,null,null,null,null,null,"",""]
[null,null,null,null,null,null,null,null,null,"",""]
[null,null,null,null,null,null,null,null,null,"",""]
[null,null,null,null,null,null,null,null,null,"",""]
[null,null,null,null,null,null,null,null,null,"",""]
[null,null,null,null,null,null,null,null,null,"",""]
[null,null,null,null,null,null,null,null,null,"",""]
[null,null,null,null,null,null,null,null,null,"",""]
[null,null,null,null,null,null,null,null,null,"",""]
[null,null,null,null,null,null,null,null,null,"",""]
[null,null,null,null,null,null,null,null,null,"",""]
[null,null,null,null,null,null,null,null,null,"",""]
[null,null,null,null,null,null,null,null,null,"",""]
[null,null,null,null,null,null,null,null,null,"",""]
[null,null,null,null,null,null,null,null,null,"",""]
[null,null,null,null,null,null,null,null,null,{"$f":"IFERROR(IF(H2845<>\"\",7.05,\"\"),\"\")","v":""},""]
[null,null,null,null,null,null,null,null,null,"",""]
[null,null,null,null,null,null,null,null,null,"",""]
[null,null,null,null,null,null,null,null,null,"",""]
[null,null,null,null,null,null,null,null,null,"",""]
[null,null,null,null,null,null,null,null,null,"",""]
[null,null,null,null,null,null,null,null,null,"",""]
[null,null,null,null,null,null,null,null,null,"",""]
[null,null,null,null,null,null,null,null,null,"",""]
[null,null,null,null,null,null,null,null,null,"",""]
[null,null,null,null,null,null,null,null,null,"",""]
[null,null,null,null,null,null,null,null,null,"",""]
[null,null,null,null,null,null,null,null,null,"",""]
[null,null,null,null,null,null,null,null,null,"",""]
[null,null,null,null,null,null,null,null,null,"",""]
[null,null,null,null,null,null,null,null,null,"",""]
[null,null,null,null,null,null,null,null,null,"",""]
[null,null,null,null,null,null,null,null,null,"",""]
[null,null,null,null,null,null,null,null,null,"",""]
[null,null,null,null,null,null,null,null,null,"",""]
[null,null,null,null,null,null,null,null,null,"",""]
[null,null,null,null,null,null,null,null,null,"",""]
[null,null,null,null,null,null,null,null,null,"",""]
[null,null,null,null,null,null,null,null,null,"",""]
[null,null,null,null,null,null,null,null,null,"",""]
[null,null,null,null,null,null,null,null,null,"",""]
[null,null,null,null,null,null,null,null,null,"",""]
[null,null,null,null,null,null,null,null,null,"",""]
[null,null,null,null,null,null,null,null,null,"",""]
[null,null,null,null,null,null,null,null,null,"",""]
[null,null,null,null,null,null,null,null,null,"",""]
[null,null,null,null,null,null,null,null,null,"",""]
[null,null,null,null,null,null,null,null,null,"",""]
[null,null,null,null,null,null,null,null,null,"",""]
[null,null,null,null,null,null,null,null,null,"",""]
[null,null,null,null,null,null,null,null,null,"",""]
[null,null,null,null,null,null,null,null,null,"",""]
[null,null,null,null,null,null,null,null,null,"",""]
[null,null,null,null,null,null,null,null,null,"",""]
[null,null,null,null,null,null,null,null,null,"",""]
[null,null,null,null,null,null,null,null,null,"",""]
[null,null,null,null,null,null,null,null,null,"",""]
[null,null,null,null,null,null,null,null,null,"",""]
[null,null,null,null,null,null,null,null,null,"",{"$f":"IF(OR(I2888=\"\",J2888=\"\"),\"\",PRODUCT(I2888,J2888))","v":""}]
[null,null,null,null,null,null,null,null,null,"",""]
[null,null,null,null,null,null,null,null,null,"",""]
[null,null,null,null,null,null,null,null,null,"",""]
[null,null,null,null,null,null,null,null,null,"",""]
[null,null,null,null,null,null,null,null,null,"",""]
[null,null,null,null,null,null,null,null,null,"",""]
[null,null,null,null,null,null,null,null,null,"",""]
[null,null,null,null,null,null,null,null,null,"",""]
[null,null,null,null,null,null,null,null,null,"",""]
[null,null,null,null,null,null,null,null,null,"",""]
[null,null,null,null,null,null,null,null,null,"",""]
[null,null,null,null,null,null,null,null,null,"",""]
[null,null,null,null,null,null,null,null,null,"",""]
[null,null,null,null,null,null,null,null,null,"",""]
[null,null,null,null,null,null,null,null,null,"",""]
[null,null,null,null,null,null,null,null,null,"",""]
[null,null,null,null,null,null,null,null,null,"",""]
[null,null,null,null,null,null,null,null,null,"",""]
[null,null,null,null,null,null,null,null,null,"",""]
[null,null,null,null,null,null,null,null,null,"",""]
[null,null,null,null,null,null,null,null,null,{"$f":"IFERROR(IF(H2909<>\"\",7.05,\"\"),\"\")","v":""},""]
[null,null,null,null,null,null,null,null,null,"",""]
[null,null,null,null,null,null,null,null,null,"",""]
[null,null,null,null,null,null,null,null,null,"",""]
[null,null,null,null,null,null,null,null,null,"",""]
[null,null,null,null,null,null,null,null,null,"",""]
[null,null,null,null,null,null,null,null,null,"",""]
[null,null,null,null,null,null,null,null,null,"",""]
[null,null,null,null,null,null,null,null,null,"",""]
[null,null,null,null,null,null,null,null,null,"",""]
[null,null,null,null,null,null,null,null,null,"",""]
[null,null,null,null,null,null,null,null,null,"",""]
[null,null,null,null,null,null,null,null,null,"",""]
[null,null,null,null,null,null,null,null,null,"",""]
[null,null,null,null,null,null,null,null,null,"",""]
[null,null,null,null,null,null,null,null,null,"",""]
[null,null,null,null,null,null,null,null,null,"",""]
[null,null,null,null,null,null,null,null,null,"",""]
[null,null,null,null,null,null,null,null,null,"",""]
[null,null,null,null,null,null,null,null,null,"",""]
[null,null,null,null,null,null,null,null,null,"",""]
[null,null,null,null,null,null,null,null,null,"",""]
[null,null,null,null,null,null,null,null,null,"",""]
[null,null,null,null,null,null,null,null,null,"",""]
[null,null,null,null,null,null,null,null,null,"",""]
[null,null,null,null,null,null,null,null,null,"",""]
[null,null,null,null,null,null,null,null,null,"",""]
[null,null,null,null,null,null,null,null,null,"",""]
[null,null,null,null,null,null,null,null,null,"",""]
[null,null,null,null,null,null,null,null,null,"",""]
[null,null,null,null,null,null,null,null,null,"",""]
[null,null,null,null,null,null,null,null,null,"",""]
[null,null,null,null,null,null,null,null,null,"",""]
[null,null,null,null,null,null,null,null,null,"",""]
[null,null,null,null,null,null,null,null,null,"",""]
[null,null,null,null,null,null,null,null,null,"",""]
[null,null,null,null,null,null,null,null,null,"",""]
[null,null,null,null,null,null,null,null,null,"",""]
[null,null,null,null,null,null,null,null,null,"",""]
[null,null,null,null,null,null,null,null,null,"",""]
[null,null,null,null,null,null,null,null,null,"",""]
[null,null,null,null,null,null,null,null,null,"",""]
[null,null,null,null,null,null,null,null,null,"",""]
[null,null,null,null,null,null,null,null,null,"",{"$f":"IF(OR(I2952=\"\",J2952=\"\"),\"\",PRODUCT(I2952,J2952))","v":""}]
[null,null,null,null,null,null,null,null,null,"",""]
[null,null,null,null,null,null,null,null,null,"",""]
[null,null,null,null,null,null,null,null,null,"",""]
[null,null,null,null,null,null,null,null,null,"",""]
[null,null,null,null,null,null,null,null,null,"",""]
[null,null,null,null,null,null,null,null,null,"",""]
[null,null,null,null,null,null,null,null,null,"",""]
[null,null,null,null,null,null,null,null,null,"",""]
[null,null,null,null,null,null,null,null,null,"",""]
[null,null,null,null,null,null,null,null,null,"",""]
[null,null,null,null,null,null,null,null,null,"",""]
[null,null,null,null,null,null,null,null,null,"",""]
[null,null,null,null,null,null,null,null,null,"",""]
[null,null,null,null,null,null,null,null,null,"",""]
[null,null,null,null,null,null,null,null,null,"",""]
[null,null,null,null,null,null,null,null,null,"",""]
[null,null,null,null,null,null,null,null,null,"",""]
[null,null,null,null,null,null,null,null,null,"",""]
[null,null,null,null,null,null,null,null,null,"",""]
[null,null,null,null,null,null,null,null,null,"",""]
[null,null,null,null,null,null,null,null,null,{"$f":"IFERROR(IF(H2973<>\"\",7.05,\"\"),\"\")","v":""},""]
[null,null,null,null,null,null,null,null,null,"",""]
[null,null,null,null,null,null,null,null,null,"",""]
[null,null,null,null,null,null,null,null,null,"",""]
[null,null,null,null,null,null,null,null,null,"",""]
[null,null,null,null,null,null,null,null,null,"",""]
[null,null,null,null,null,null,null,null,null,"",""]
[null,null,null,null,null,null,null,null,null,"",""]
[null,null,null,null,null,null,null,null,null,"",""]
[null,null,null,null,null,null,null,null,null,"",""]
[null,null,null,null,null,null,null,null,null,"",""]
[null,null,null,null,null,null,null,null,null,"",""]
[null,null,null,null,null,null,null,null,null,"",""]
[null,null,null,null,null,null,null,null,null,"",""]
[null,null,null,null,null,null,null,null,null,"",""]
[null,null,null,null,null,null,null,null,null,"",""]
[null,null,null,null,null,null,null,null,null,"",""]
[null,null,null,null,null,null,null,null,null,"",""]
[null,null,null,null,null,null,null,null,null,"",""]
[null,null,null,null,null,null,null,null,null,"",""]
[null,null,null,null,null,null,null,null,null,"",""]
[null,null,null,null,null,null,null,null,null,"",""]
[null,null,null,null,null,null,null,null,null,"",""]
[null,null,null,null,null,null,null,null,null,"",""]
[null,null,null,null,null,null,null,null,null,"",""]
[null,null,null,null,null,null,null,null,null,"",""]
[null,null,null,null,null,null,null,null,null,"",""]
[null,null,null,null,null,null,null,null,null,"",""]
[null,null,null,null,null,null,null,null,null,"",""]
[null,null,null,null,null,null,null,null,null,"",""]
[null,null,null,null,null,null,null,null,null,"",""]
[null,null,null,null,null,null,null,null,null,"",""]
[null,null,null,null,null,null,null,null,null,"",""]
[null,null,null,null,null,null,null,null,null,"",""]
[null,null,null,null,null,null,null,null,null,"",""]
[null,null,null,null,null,null,null,null,null,"",""]
[null,null,null,null,null,null,null,null,null,"",""]
[null,null,null,null,null,null,null,null,null,"",""]
[null,null,null,null,null,null,null,null,null,"",""]
[null,null,null,null,null,null,null,null,null,"",""]
[null,null,null,null,null,null,null,null,null,"",""]
[null,null,null,null,null,null,null,null,null,"",""]
[null,null,null,null,null,null,null,null,null,"",""]
[null,null,null,null,null,null,null,null,null,"",{"$f":"IF(OR(I3016=\"\",J3016=\"\"),\"\",PRODUCT(I3016,J3016))","v":""}]
[null,null,null,null,null,null,null,null,null,"",""]
[null,null,null,null,null,null,null,null,null,"",""]
[null,null,null,null,null,null,null,null,null,"",""]
[null,null,null,null,null,null,null,null,null,"",""]
[null,null,null,null,null,null,null,null,null,"",""]
[null,null,null,null,null,null,null,null,null,"",""]
[null,null,null,null,null,null,null,null,null,"",""]
[null,null,null,null,null,null,null,null,null,"",""]
[null,null,null,null,null,null,null,null,null,"",""]
[null,null,null,null,null,null,null,null,null,"",""]
[null,null,null,null,null,null,null,null,null,"",""]
[null,null,null,null,null,null,null,null,null,"",""]
[null,null,null,null,null,null,null,null,null,"",""]
[null,null,null,null,null,null,null,null,null,"",""]
[null,null,null,null,null,null,null,null,null,"",""]
[null,null,null,null,null,null,null,null,null,"",""]
[null,null,null,null,null,null,null,null,null,"",""]
[null,null,null,null,null,null,null,null,null,"",""]
[null,null,null,null,null,null,null,null,null,"",""]
[null,null,null,null,null,null,null,null,null,"",""]
[null,null,null,null,null,null,null,null,null,{"$f":"IFERROR(IF(H3037<>\"\",7.05,\"\"),\"\")","v":""},""]
[null,null,null,null,null,null,null,null,null,"",""]
[null,null,null,null,null,null,null,null,null,"",""]
[null,null,null,null,null,null,null,null,null,"",""]
[null,null,null,null,null,null,null,null,null,"",""]
[null,null,null,null,null,null,null,null,null,"",""]
[null,null,null,null,null,null,null,null,null,"",""]
[null,null,null,null,null,null,null,null,null,"",""]
[null,null,null,null,null,null,null,null,null,"",""]
[null,null,null,null,null,null,null,null,null,"",""]
[null,null,null,null,null,null,null,null,null,"",""]
[null,null,null,null,null,null,null,null,null,"",""]
[null,null,null,null,null,null,null,null,null,"",""]
[null,null,null,null,null,null,null,null,null,"",""]
[null,null,null,null,null,null,null,null,null,"",""]
[null,null,null,null,null,null,null,null,null,"",""]
[null,null,null,null,null,null,null,null,null,"",""]
[null,null,null,null,null,null,null,null,null,"",""]
[null,null,null,null,null,null,null,null,null,"",""]
[null,null,null,null,null,null,null,null,null,"",""]
[null,null,null,null,null,null,null,null,null,"",""]
[null,null,null,null,null,null,null,null,null,"",""]
[null,null,null,null,null,null,null,null,null,"",""]
[null,null,null,null,null,null,null,null,null,"",""]
[null,null,null,null,null,null,null,null,null,"",""]
[null,null,null,null,null,null,null,null,null,"",""]
[null,null,null,null,null,null,null,null,null,"",""]
[null,null,null,null,null,null,null,null,null,"",""]
[null,null,null,null,null,null,null,null,null,"",""]
[null,null,null,null,null,null,null,null,null,"",""]
[null,null,null,null,null,null,null,null,null,"",""]
[null,null,null,null,null,null,null,null,null,"",""]
[null,null,null,null,null,null,null,null,null,"",""]
[null,null,null,null,null,null,null,null,null,"",""]
[null,null,null,null,null,null,null,null,null,"",""]
[null,null,null,null,null,null,null,null,null,"",""]
[null,null,null,null,null,null,null,null,null,"",""]
[null,null,null,null,null,null,null,null,null,"",""]
[null,null,null,null,null,null,null,null,null,"",""]
[null,null,null,null,null,null,null,null,null,"",""]
[null,null,null,null,null,null,null,null,null,"",""]
[null,null,null,null,null,null,null,null,null,"",""]
[null,null,null,null,null,null,null,null,null,"",""]
[null,null,null,null,null,null,null,null,null,"",{"$f":"IF(OR(I3080=\"\",J3080=\"\"),\"\",PRODUCT(I3080,J3080))","v":""}]
[null,null,null,null,null,null,null,null,null,"",""]
[null,null,null,null,null,null,null,null,null,"",""]
[null,null,null,null,null,null,null,null,null,"",""]
[null,null,null,null,null,null,null,null,null,"",""]
[null,null,null,null,null,null,null,null,null,"",""]
[null,null,null,null,null,null,null,null,null,"",""]
[null,null,null,null,null,null,null,null,null,"",""]
[null,null,null,null,null,null,null,null,null,"",""]
[null,null,null,null,null,null,null,null,null,"",""]
[null,null,null,null,null,null,null,null,null,"",""]
[null,null,null,null,null,null,null,null,null,"",""]
[null,null,null,null,null,null,null,null,null,"",""]
[null,null,null,null,null,null,null,null,null,"",""]
[null,null,null,null,null,null,null,null,null,"",""]
[null,null,null,null,null,null,null,null,null,"",""]
[null,null,null,null,null,null,null,null,null,"",""]
[null,null,null,null,null,null,null,null,null,"",""]
[null,null,null,null,null,null,null,null,null,"",""]
[null,null,null,null,null,null,null,null,null,"",""]
[null,null,null,null,null,null,null,null,null,"",""]
[null,null,null,null,null,null,null,null,null,{"$f":"IFERROR(IF(H3101<>\"\",7.05,\"\"),\"\")","v":""},""]
[null,null,null,null,null,null,null,null,null,"",""]
[null,null,null,null,null,null,null,null,null,"",""]
[null,null,null,null,null,null,null,null,null,"",""]
[null,null,null,null,null,null,null,null,null,"",""]
[null,null,null,null,null,null,null,null,null,"",""]
[null,null,null,null,null,null,null,null,null,"",""]
[null,null,null,null,null,null,null,null,null,"",""]
[null,null,null,null,null,null,null,null,null,"",""]
[null,null,null,null,null,null,null,null,null,"",""]
[null,null,null,null,null,null,null,null,null,"",""]
[null,null,null,null,null,null,null,null,null,"",""]
[null,null,null,null,null,null,null,null,null,"",""]
[null,null,null,null,null,null,null,null,null,"",""]
[null,null,null,null,null,null,null,null,null,"",""]
[null,null,null,null,null,null,null,null,null,"",""]
[null,null,null,null,null,null,null,null,null,"",""]
[null,null,null,null,null,null,null,null,null,"",""]
[null,null,null,null,null,null,null,null,null,"",""]
[null,null,null,null,null,null,null,null,null,"",""]
[null,null,null,null,null,null,null,null,null,"",""]
[null,null,null,null,null,null,null,null,null,"",""]
[null,null,null,null,null,null,null,null,null,"",""]
[null,null,null,null,null,null,null,null,null,"",""]
[null,null,null,null,null,null,null,null,null,"",""]
[null,null,null,null,null,null,null,null,null,"",""]
[null,null,null,null,null,null,null,null,null,"",""]
[null,null,null,null,null,null,null,null,null,"",""]
[null,null,null,null,null,null,null,null,null,"",""]
[null,null,null,null,null,null,null,null,null,"",""]
[null,null,null,null,null,null,null,null,null,"",""]
[null,null,null,null,null,null,null,null,null,"",""]
[null,null,null,null,null,null,null,null,null,"",""]
[null,null,null,null,null,null,null,null,null,"",""]
[null,null,null,null,null,null,null,null,null,"",""]
[null,null,null,null,null,null,null,null,null,"",""]
[null,null,null,null,null,null,null,null,null,"",""]
[null,null,null,null,null,null,null,null,null,"",""]
[null,null,null,null,null,null,null,null,null,"",""]
[null,null,null,null,null,null,null,null,null,"",""]
[null,null,null,null,null,null,null,null,null,"",""]
[null,null,null,null,null,null,null,null,null,"",""]
[null,null,null,null,null,null,null,null,null,"",""]
[null,null,null,null,null,null,null,null,null,"",{"$f":"IF(OR(I3144=\"\",J3144=\"\"),\"\",PRODUCT(I3144,J3144))","v":""}]
[null,null,null,null,null,null,null,null,null,"",""]
[null,null,null,null,null,null,null,null,null,"",""]
[null,null,null,null,null,null,null,null,null,"",""]
[null,null,null,null,null,null,null,null,null,"",""]
[null,null,null,null,null,null,null,null,null,"",""]
[null,null,null,null,null,null,null,null,null,"",""]
[null,null,null,null,null,null,null,null,null,"",""]
[null,null,null,null,null,null,null,null,null,"",""]
[null,null,null,null,null,null,null,null,null,"",""]
[null,null,null,null,null,null,null,null,null,"",""]
[null,null,null,null,null,null,null,null,null,"",""]
[null,null,null,null,null,null,null,null,null,"",""]
[null,null,null,null,null,null,null,null,null,"",""]
[null,null,null,null,null,null,null,null,null,"",""]
[null,null,null,null,null,null,null,null,null,"",""]
[null,null,null,null,null,null,null,null,null,"",""]
[null,null,null,null,null,null,null,null,null,"",""]
[null,null,null,null,null,null,null,null,null,"",""]
[null,null,null,null,null,null,null,null,null,"",""]
[null,null,null,null,null,null,null,null,null,"",""]
[null,null,null,null,null,null,null,null,null,{"$f":"IFERROR(IF(H3165<>\"\",7.05,\"\"),\"\")","v":""},""]
[null,null,null,null,null,null,null,null,null,"",""]
[null,null,null,null,null,null,null,null,null,"",""]
[null,null,null,null,null,null,null,null,null,"",""]
[null,null,null,null,null,null,null,null,null,"",""]
[null,null,null,null,null,null,null,null,null,"",""]
[null,null,null,null,null,null,null,null,null,"",""]
[null,null,null,null,null,null,null,null,null,"",""]
[null,null,null,null,null,null,null,null,null,"",""]
[null,null,null,null,null,null,null,null,null,"",""]
[null,null,null,null,null,null,null,null,null,"",""]
[null,null,null,null,null,null,null,null,null,"",""]
[null,null,null,null,null,null,null,null,null,"",""]
[null,null,null,null,null,null,null,null,null,"",""]
[null,null,null,null,null,null,null,null,null,"",""]
[null,null,null,null,null,null,null,null,null,"",""]
[null,null,null,null,null,null,null,null,null,"",""]
[null,null,null,null,null,null,null,null,null,"",""]
[null,null,null,null,null,null,null,null,null,"",""]
[null,null,null,null,null,null,null,null,null,"",""]
[null,null,null,null,null,null,null,null,null,"",""]
[null,null,null,null,null,null,null,null,null,"",""]
[null,null,null,null,null,null,null,null,null,"",""]
[null,null,null,null,null,null,null,null,null,"",""]
[null,null,null,null,null,null,null,null,null,"",""]
[null,null,null,null,null,null,null,null,null,"",""]
[null,null,null,null,null,null,null,null,null,"",""]
[null,null,null,null,null,null,null,null,null,"",""]
[null,null,null,null,null,null,null,null,null,"",""]
[null,null,null,null,null,null,null,null,null,"",""]
[null,null,null,null,null,null,null,null,null,"",""]
[null,null,null,null,null,null,null,null,null,"",""]
[null,null,null,null,null,null,null,null,null,"",""]
[null,null,null,null,null,null,null,null,null,"",""]
[null,null,null,null,null,null,null,null,null,"",""]
[null,null,null,null,null,null,null,null,null,"",""]
[null,null,null,null,null,null,null,null,null,"",""]
[null,null,null,null,null,null,null,null,null,"",""]
[null,null,null,null,null,null,null,null,null,"",""]
[null,null,null,null,null,null,null,null,null,"",""]
[null,null,null,null,null,null,null,null,null,"",""]
[null,null,null,null,null,null,null,null,null,"",""]
[null,null,null,null,null,null,null,null,null,"",""]
[null,null,null,null,null,null,null,null,null,"",{"$f":"IF(OR(I3208=\"\",J3208=\"\"),\"\",PRODUCT(I3208,J3208))","v":""}]
[null,null,null,null,null,null,null,null,null,"",""]
[null,null,null,null,null,null,null,null,null,"",""]
[null,null,null,null,null,null,null,null,null,"",""]
[null,null,null,null,null,null,null,null,null,"",""]
[null,null,null,null,null,null,null,null,null,"",""]
[null,null,null,null,null,null,null,null,null,"",""]
[null,null,null,null,null,null,null,null,null,"",""]
[null,null,null,null,null,null,null,null,null,"",""]
[null,null,null,null,null,null,null,null,null,"",""]
[null,null,null,null,null,null,null,null,null,"",""]
[null,null,null,null,null,null,null,null,null,"",""]
[null,null,null,null,null,null,null,null,null,"",""]
[null,null,null,null,null,null,null,null,null,"",""]
[null,null,null,null,null,null,null,null,null,"",""]
[null,null,null,null,null,null,null,null,null,"",""]
[null,null,null,null,null,null,null,null,null,"",""]
[null,null,null,null,null,null,null,null,null,"",""]
[null,null,null,null,null,null,null,null,null,"",""]
[null,null,null,null,null,null,null,null,null,"",""]
[null,null,null,null,null,null,null,null,null,"",""]
[null,null,null,null,null,null,null,null,null,{"$f":"IFERROR(IF(H3229<>\"\",7.05,\"\"),\"\")","v":""},""]
[null,null,null,null,null,null,null,null,null,"",""]
[null,null,null,null,null,null,null,null,null,"",""]
[null,null,null,null,null,null,null,null,null,"",""]
[null,null,null,null,null,null,null,null,null,"",""]
[null,null,null,null,null,null,null,null,null,"",""]
[null,null,null,null,null,null,null,null,null,"",""]
[null,null,null,null,null,null,null,null,null,"",""]
[null,null,null,null,null,null,null,null,null,"",""]
[null,null,null,null,null,null,null,null,null,"",""]
[null,null,null,null,null,null,null,null,null,"",""]
[null,null,null,null,null,null,null,null,null,"",""]
[null,null,null,null,null,null,null,null,null,"",""]
[null,null,null,null,null,null,null,null,null,"",""]
[null,null,null,null,null,null,null,null,null,"",""]
[null,null,null,null,null,null,null,null,null,"",""]
[null,null,null,null,null,null,null,null,null,"",""]
[null,null,null,null,null,null,null,null,null,"",""]
[null,null,null,null,null,null,null,null,null,"",""]
[null,null,null,null,null,null,null,null,null,"",""]
[null,null,null,null,null,null,null,null,null,"",""]
[null,null,null,null,null,null,null,null,null,"",""]
[null,null,null,null,null,null,null,null,null,"",""]
[null,null,null,null,null,null,null,null,null,"",""]
[null,null,null,null,null,null,null,null,null,"",""]
[null,null,null,null,null,null,null,null,null,"",""]
[null,null,null,null,null,null,null,null,null,"",""]
[null,null,null,null,null,null,null,null,null,"",""]
[null,null,null,null,null,null,null,null,null,"",""]
[null,null,null,null,null,null,null,null,null,"",""]
[null,null,null,null,null,null,null,null,null,"",""]
[null,null,null,null,null,null,null,null,null,"",""]
[null,null,null,null,null,null,null,null,null,"",""]
[null,null,null,null,null,null,null,null,null,"",""]
[null,null,null,null,null,null,null,null,null,"",""]
[null,null,null,null,null,null,null,null,null,"",""]
[null,null,null,null,null,null,null,null,null,"",""]
[null,null,null,null,null,null,null,null,null,"",""]
[null,null,null,null,null,null,null,null,null,"",""]
[null,null,null,null,null,null,null,null,null,"",""]
[null,null,null,null,null,null,null,null,null,"",""]
[null,null,null,null,null,null,null,null,null,"",""]
[null,null,null,null,null,null,null,null,null,"",""]
[null,null,null,null,null,null,null,null,null,"",{"$f":"IF(OR(I3272=\"\",J3272=\"\"),\"\",PRODUCT(I3272,J3272))","v":""}]
[null,null,null,null,null,null,null,null,null,"",""]
[null,null,null,null,null,null,null,null,null,"",""]
[null,null,null,null,null,null,null,null,null,"",""]
[null,null,null,null,null,null,null,null,null,"",""]
[null,null,null,null,null,null,null,null,null,"",""]
[null,null,null,null,null,null,null,null,null,"",""]
[null,null,null,null,null,null,null,null,null,"",""]
[null,null,null,null,null,null,null,null,null,"",""]
[null,null,null,null,null,null,null,null,null,"",""]
[null,null,null,null,null,null,null,null,null,"",""]
[null,null,null,null,null,null,null,null,null,"",""]
[null,null,null,null,null,null,null,null,null,"",""]
[null,null,null,null,null,null,null,null,null,"",""]
[null,null,null,null,null,null,null,null,null,"",""]
[null,null,null,null,null,null,null,null,null,"",""]
[null,null,null,null,null,null,null,null,null,"",""]
[null,null,null,null,null,null,null,null,null,"",""]
[null,null,null,null,null,null,null,null,null,"",""]
[null,null,null,null,null,null,null,null,null,"",""]
[null,null,null,null,null,null,null,null,null,"",""]
[null,null,null,null,null,null,null,null,null,{"$f":"IFERROR(IF(H3293<>\"\",7.05,\"\"),\"\")","v":""},""]
[null,null,null,null,null,null,null,null,null,"",""]
[null,null,null,null,null,null,null,null,null,"",""]
[null,null,null,null,null,null,null,null,null,"",""]
[null,null,null,null,null,null,null,null,null,"",""]
[null,null,null,null,null,null,null,null,null,"",""]
[null,null,null,null,null,null,null,null,null,"",""]
[null,null,null,null,null,null,null,null,null,"",""]
[null,null,null,null,null,null,null,null,null,"",""]
[null,null,null,null,null,null,null,null,null,"",""]
[null,null,null,null,null,null,null,null,null,"",""]
[null,null,null,null,null,null,null,null,null,"",""]
[null,null,null,null,null,null,null,null,null,"",""]
[null,null,null,null,null,null,null,null,null,"",""]
[null,null,null,null,null,null,null,null,null,"",""]
[null,null,null,null,null,null,null,null,null,"",""]
[null,null,null,null,null,null,null,null,null,"",""]
[null,null,null,null,null,null,null,null,null,"",""]
[null,null,null,null,null,null,null,null,null,"",""]
[null,null,null,null,null,null,null,null,null,"",""]
[null,null,null,null,null,null,null,null,null,"",""]
[null,null,null,null,null,null,null,null,null,"",""]
[null,null,null,null,null,null,null,null,null,"",""]
[null,null,null,null,null,null,null,null,null,"",""]
[null,null,null,null,null,null,null,null,null,"",""]
[null,null,null,null,null,null,null,null,null,"",""]
[null,null,null,null,null,null,null,null,null,"",""]
[null,null,null,null,null,null,null,null,null,"",""]
[null,null,null,null,null,null,null,null,null,"",""]
[null,null,null,null,null,null,null,null,null,"",""]
[null,null,null,null,null,null,null,null,null,"",""]
[null,null,null,null,null,null,null,null,null,"",""]
[null,null,null,null,null,null,null,null,null,"",""]
[null,null,null,null,null,null,null,null,null,"",""]
[null,null,null,null,null,null,null,null,null,"",""]
[null,null,null,null,null,null,null,null,null,"",""]
[null,null,null,null,null,null,null,null,null,"",""]
[null,null,null,null,null,null,null,null,null,"",""]
[null,null,null,null,null,null,null,null,null,"",""]
[null,null,null,null,null,null,null,null,null,"",""]
[null,null,null,null,null,null,null,null,null,"",""]
[null,null,null,null,null,null,null,null,null,"",""]
[null,null,null,null,null,null,null,null,null,"",""]
[null,null,null,null,null,null,null,null,null,"",{"$f":"IF(OR(I3336=\"\",J3336=\"\"),\"\",PRODUCT(I3336,J3336))","v":""}]
[null,null,null,null,null,null,null,null,null,"",""]
[null,null,null,null,null,null,null,null,null,"",""]
[null,null,null,null,null,null,null,null,null,"",""]
[null,null,null,null,null,null,null,null,null,"",""]
[null,null,null,null,null,null,null,null,null,"",""]
[null,null,null,null,null,null,null,null,null,"",""]
[null,null,null,null,null,null,null,null,null,"",""]
[null,null,null,null,null,null,null,null,null,"",""]
[null,null,null,null,null,null,null,null,null,"",""]
[null,null,null,null,null,null,null,null,null,"",""]
[null,null,null,null,null,null,null,null,null,"",""]
[null,null,null,null,null,null,null,null,null,"",""]
[null,null,null,null,null,null,null,null,null,"",""]
[null,null,null,null,null,null,null,null,null,"",""]
[null,null,null,null,null,null,null,null,null,"",""]
[null,null,null,null,null,null,null,null,null,"",""]
[null,null,null,null,null,null,null,null,null,"",""]
[null,null,null,null,null,null,null,null,null,"",""]
[null,null,null,null,null,null,null,null,null,"",""]
[null,null,null,null,null,null,null,null,null,"",""]
[null,null,null,null,null,null,null,null,null,{"$f":"IFERROR(IF(H3357<>\"\",7.05,\"\"),\"\")","v":""},""]
[null,null,null,null,null,null,null,null,null,"",""]
[null,null,null,null,null,null,null,null,null,"",""]
[null,null,null,null,null,null,null,null,null,"",""]
[null,null,null,null,null,null,null,null,null,"",""]
[null,null,null,null,null,null,null,null,null,"",""]
[null,null,null,null,null,null,null,null,null,"",""]
[null,null,null,null,null,null,null,null,null,"",""]
[null,null,null,null,null,null,null,null,null,"",""]
[null,null,null,null,null,null,null,null,null,"",""]
[null,null,null,null,null,null,null,null,null,"",""]
[null,null,null,null,null,null,null,null,null,"",""]
[null,null,null,null,null,null,null,null,null,"",""]
[null,null,null,null,null,null,null,null,null,"",""]
[null,null,null,null,null,null,null,null,null,"",""]
[null,null,null,null,null,null,null,null,null,"",""]
[null,null,null,null,null,null,null,null,null,"",""]
[null,null,null,null,null,null,null,null,null,"",""]
[null,null,null,null,null,null,null,null,null,"",""]
[null,null,null,null,null,null,null,null,null,"",""]
[null,null,null,null,null,null,null,null,null,"",""]
[null,null,null,null,null,null,null,null,null,"",""]
[null,null,null,null,null,null,null,null,null,"",""]
[null,null,null,null,null,null,null,null,null,"",""]
[null,null,null,null,null,null,null,null,null,"",""]
[null,null,null,null,null,null,null,null,null,"",""]
[null,null,null,null,null,null,null,null,null,"",""]
[null,null,null,null,null,null,null,null,null,"",""]
[null,null,null,null,null,null,null,null,null,"",""]
[null,null,null,null,null,null,null,null,null,"",""]
[null,null,null,null,null,null,null,null,null,"",""]
[null,null,null,null,null,null,null,null,null,"",""]
[null,null,null,null,null,null,null,null,null,"",""]
[null,null,null,null,null,null,null,null,null,"",""]
[null,null,null,null,null,null,null,null,null,"",""]
[null,null,null,null,null,null,null,null,null,"",""]
[null,null,null,null,null,null,null,null,null,"",""]
[null,null,null,null,null,null,null,null,null,"",""]
[null,null,null,null,null,null,null,null,null,"",""]
[null,null,null,null,null,null,null,null,null,"",""]
[null,null,null,null,null,null,null,null,null,"",""]
[null,null,null,null,null,null,null,null,null,"",""]
[null,null,null,null,null,null,null,null,null,"",""]
[null,null,null,null,null,null,null,null,null,"",{"$f":"IF(OR(I3400=\"\",J3400=\"\"),\"\",PRODUCT(I3400,J3400))","v":""}]
[null,null,null,null,null,null,null,null,null,"",""]
[null,null,null,null,null,null,null,null,null,"",""]
[null,null,null,null,null,null,null,null,null,"",""]
[null,null,null,null,null,null,null,null,null,"",""]
[null,null,null,null,null,null,null,null,null,"",""]
[null,null,null,null,null,null,null,null,null,"",""]
[null,null,null,null,null,null,null,null,null,"",""]
[null,null,null,null,null,null,null,null,null,"",""]
[null,null,null,null,null,null,null,null,null,"",""]
[null,null,null,null,null,null,null,null,null,"",""]
[null,null,null,null,null,null,null,null,null,"",""]
[null,null,null,null,null,null,null,null,null,"",""]
[null,null,null,null,null,null,null,null,null,"",""]
[null,null,null,null,null,null,null,null,null,"",""]
[null,null,null,null,null,null,null,null,null,"",""]
[null,null,null,null,null,null,null,null,null,"",""]
[null,null,null,null,null,null,null,null,null,"",""]
[null,null,null,null,null,null,null,null,null,"",""]
[null,null,null,null,null,null,null,null,null,"",""]
[null,null,null,null,null,null,null,null,null,"",""]
[null,null,null,null,null,null,null,null,null,{"$f":"IFERROR(IF(H3421<>\"\",7.05,\"\"),\"\")","v":""},""]
[null,null,null,null,null,null,null,null,null,"",""]
[null,null,null,null,null,null,null,null,null,"",""]
[null,null,null,null,null,null,null,null,null,"",""]
[null,null,null,null,null,null,null,null,null,"",""]
[null,null,null,null,null,null,null,null,null,"",""]
[null,null,null,null,null,null,null,null,null,"",""]
[null,null,null,null,null,null,null,null,null,"",""]
[null,null,null,null,null,null,null,null,null,"",""]
[null,null,null,null,null,null,null,null,null,"",""]
[null,null,null,null,null,null,null,null,null,"",""]
[null,null,null,null,null,null,null,null,null,"",""]
[null,null,null,null,null,null,null,null,null,"",""]
[null,null,null,null,null,null,null,null,null,"",""]
[null,null,null,null,null,null,null,null,null,"",""]
[null,null,null,null,null,null,null,null,null,"",""]
[null,null,null,null,null,null,null,null,null,"",""]
[null,null,null,null,null,null,null,null,null,"",""]
[null,null,null,null,null,null,null,null,null,"",""]
[null,null,null,null,null,null,null,null,null,"",""]
[null,null,null,null,null,null,null,null,null,"",""]
[null,null,null,null,null,null,null,null,null,"",""]
[null,null,null,null,null,null,null,null,null,"",""]
[null,null,null,null,null,null,null,null,null,"",""]
[null,null,null,null,null,null,null,null,null,"",""]
[null,null,null,null,null,null,null,null,null,"",""]
[null,null,null,null,null,null,null,null,null,"",""]
[null,null,null,null,null,null,null,null,null,"",""]
[null,null,null,null,null,null,null,null,null,"",""]
[null,null,null,null,null,null,null,null,null,"",""]
[null,null,null,null,null,null,null,null,null,"",""]
[null,null,null,null,null,null,null,null,null,"",""]
[null,null,null,null,null,null,null,null,null,"",""]
[null,null,null,null,null,null,null,null,null,"",""]
[null,null,null,null,null,null,null,null,null,"",""]
[null,null,null,null,null,null,null,null,null,"",""]
[null,null,null,null,null,null,null,null,null,"",""]
[null,null,null,null,null,null,null,null,null,"",""]
[null,null,null,null,null,null,null,null,null,"",""]
[null,null,null,null,null,null,null,null,null,"",""]
[null,null,null,null,null,null,null,null,null,"",""]
[null,null,null,null,null,null,null,null,null,"",""]
[null,null,null,null,null,null,null,null,null,"",""]
[null,null,null,null,null,null,null,null,null,"",{"$f":"IF(OR(I3464=\"\",J3464=\"\"),\"\",PRODUCT(I3464,J3464))","v":""}]
[null,null,null,null,null,null,null,null,null,"",""]
[null,null,null,null,null,null,null,null,null,"",""]
[null,null,null,null,null,null,null,null,null,"",""]
[null,null,null,null,null,null,null,null,null,"",""]
[null,null,null,null,null,null,null,null,null,"",""]
[null,null,null,null,null,null,null,null,null,"",""]
[null,null,null,null,null,null,null,null,null,"",""]
[null,null,null,null,null,null,null,null,null,"",""]
[null,null,null,null,null,null,null,null,null,"",""]
[null,null,null,null,null,null,null,null,null,"",""]
[null,null,null,null,null,null,null,null,null,"",""]
[null,null,null,null,null,null,null,null,null,"",""]
[null,null,null,null,null,null,null,null,null,"",""]
[null,null,null,null,null,null,null,null,null,"",""]
[null,null,null,null,null,null,null,null,null,"",""]
[null,null,null,null,null,null,null,null,null,"",""]
[null,null,null,null,null,null,null,null,null,"",""]
[null,null,null,null,null,null,null,null,null,"",""]
[null,null,null,null,null,null,null,null,null,"",""]
[null,null,null,null,null,null,null,null,null,"",""]
[null,null,null,null,null,null,null,null,null,{"$f":"IFERROR(IF(H3485<>\"\",7.05,\"\"),\"\")","v":""},""]
[null,null,null,null,null,null,null,null,null,"",""]
[null,null,null,null,null,null,null,null,null,"",""]
[null,null,null,null,null,null,null,null,null,"",""]
[null,null,null,null,null,null,null,null,null,"",""]
[null,null,null,null,null,null,null,null,null,"",""]
[null,null,null,null,null,null,null,null,null,"",""]
[null,null,null,null,null,null,null,null,null,"",""]
[null,null,null,null,null,null,null,null,null,"",""]
[null,null,null,null,null,null,null,null,null,"",""]
[null,null,null,null,null,null,null,null,null,"",""]
[null,null,null,null,null,null,null,null,null,"",""]
[null,null,null,null,null,null,null,null,null,"",""]
[null,null,null,null,null,null,null,null,null,"",""]
[null,null,null,null,null,null,null,null,null,"",""]
[null,null,null,null,null,null,null,null,null,"",""]
[null,null,null,null,null,null,null,null,null,"",""]
[null,null,null,null,null,null,null,null,null,"",""]
[null,null,null,null,null,null,null,null,null,"",""]
[null,null,null,null,null,null,null,null,null,"",""]
[null,null,null,null,null,null,null,null,null,"",""]
[null,null,null,null,null,null,null,null,null,"",""]
[null,null,null,null,null,null,null,null,null,"",""]
[null,null,null,null,null,null,null,null,null,"",""]
[null,null,null,null,null,null,null,null,null,"",""]
[null,null,null,null,null,null,null,null,null,"",""]
[null,null,null,null,null,null,null,null,null,"",""]
[null,null,null,null,null,null,null,null,null,"",""]
[null,null,null,null,null,null,null,null,null,"",""]
[null,null,null,null,null,null,null,null,null,"",""]
[null,null,null,null,null,null,null,null,null,"",""]
[null,null,null,null,null,null,null,null,null,"",""]
[null,null,null,null,null,null,null,null,null,"",""]
[null,null,null,null,null,null,null,null,null,"",""]
[null,null,null,null,null,null,null,null,null,"",""]
[null,null,null,null,null,null,null,null,null,"",""]
[null,null,null,null,null,null,null,null,null,"",""]
[null,null,null,null,null,null,null,null,null,"",""]
[null,null,null,null,null,null,null,null,null,"",""]
[null,null,null,null,null,null,null,null,null,"",""]
[null,null,null,null,null,null,null,null,null,"",""]
[null,null,null,null,null,null,null,null,null,"",""]
[null,null,null,null,null,null,null,null,null,"",""]
[null,null,null,null,null,null,null,null,null,"",{"$f":"IF(OR(I3528=\"\",J3528=\"\"),\"\",PRODUCT(I3528,J3528))","v":""}]
[null,null,null,null,null,null,null,null,null,"",""]
[null,null,null,null,null,null,null,null,null,"",""]
[null,null,null,null,null,null,null,null,null,"",""]
[null,null,null,null,null,null,null,null,null,"",""]
[null,null,null,null,null,null,null,null,null,"",""]
[null,null,null,null,null,null,null,null,null,"",""]
[null,null,null,null,null,null,null,null,null,"",""]
[null,null,null,null,null,null,null,null,null,"",""]
[null,null,null,null,null,null,null,null,null,"",""]
[null,null,null,null,null,null,null,null,null,"",""]
[null,null,null,null,null,null,null,null,null,"",""]
[null,null,null,null,null,null,null,null,null,"",""]
[null,null,null,null,null,null,null,null,null,"",""]
[null,null,null,null,null,null,null,null,null,"",""]
[null,null,null,null,null,null,null,null,null,"",""]
[null,null,null,null,null,null,null,null,null,"",""]
[null,null,null,null,null,null,null,null,null,"",""]
[null,null,null,null,null,null,null,null,null,"",""]
[null,null,null,null,null,null,null,null,null,"",""]
[null,null,null,null,null,null,null,null,null,"",""]
[null,null,null,null,null,null,null,null,null,{"$f":"IFERROR(IF(H3549<>\"\",7.05,\"\"),\"\")","v":""},""]
[null,null,null,null,null,null,null,null,null,"",""]
[null,null,null,null,null,null,null,null,null,"",""]
[null,null,null,null,null,null,null,null,null,"",""]
[null,null,null,null,null,null,null,null,null,"",""]
[null,null,null,null,null,null,null,null,null,"",""]
[null,null,null,null,null,null,null,null,null,"",""]
[null,null,null,null,null,null,null,null,null,"",""]
[null,null,null,null,null,null,null,null,null,"",""]
[null,null,null,null,null,null,null,null,null,"",""]
[null,null,null,null,null,null,null,null,null,"",""]
[null,null,null,null,null,null,null,null,null,"",""]
[null,null,null,null,null,null,null,null,null,"",""]
[null,null,null,null,null,null,null,null,null,"",""]
[null,null,null,null,null,null,null,null,null,"",""]
[null,null,null,null,null,null,null,null,null,"",""]
[null,null,null,null,null,null,null,null,null,"",""]
[null,null,null,null,null,null,null,null,null,"",""]
[null,null,null,null,null,null,null,null,null,"",""]
[null,null,null,null,null,null,null,null,null,"",""]
[null,null,null,null,null,null,null,null,null,"",""]
[null,null,null,null,null,null,null,null,null,"",""]
[null,null,null,null,null,null,null,null,null,"",""]
[null,null,null,null,null,null,null,null,null,"",""]
[null,null,null,null,null,null,null,null,null,"",""]
[null,null,null,null,null,null,null,null,null,"",""]
[null,null,null,null,null,null,null,null,null,"",""]
[null,null,null,null,null,null,null,null,null,"",""]
[null,null,null,null,null,null,null,null,null,"",""]
[null,null,null,null,null,null,null,null,null,"",""]
[null,null,null,null,null,null,null,null,null,"",""]
[null,null,null,null,null,null,null,null,null,"",""]
[null,null,null,null,null,null,null,null,null,"",""]
[null,null,null,null,null,null,null,null,null,"",""]
[null,null,null,null,null,null,null,null,null,"",""]
[null,null,null,null,null,null,null,null,null,"",""]
[null,null,null,null,null,null,null,null,null,"",""]
[null,null,null,null,null,null,null,null,null,"",""]
[null,null,null,null,null,null,null,null,null,"",""]
[null,null,null,null,null,null,null,null,null,"",""]
[null,null,null,null,null,null,null,null,null,"",""]
[null,null,null,null,null,null,null,null,null,"",""]
[null,null,null,null,null,null,null,null,null,"",""]
[null,null,null,null,null,null,null,null,null,"",{"$f":"IF(OR(I3592=\"\",J3592=\"\"),\"\",PRODUCT(I3592,J3592))","v":""}]
[null,null,null,null,null,null,null,null,null,"",""]
[null,null,null,null,null,null,null,null,null,"",""]
[null,null,null,null,null,null,null,null,null,"",""]
[null,null,null,null,null,null,null,null,null,"",""]
[null,null,null,null,null,null,null,null,null,"",""]
[null,null,null,null,null,null,null,null,null,"",""]
[null,null,null,null,null,null,null,null,null,"",""]
[null,null,null,null,null,null,null,null,null,"",""]
[null,null,null,null,null,null,null,null,null,"",""]
[null,null,null,null,null,null,null,null,null,"",""]
[null,null,null,null,null,null,null,null,null,"",""]
[null,null,null,null,null,null,null,null,null,"",""]
[null,null,null,null,null,null,null,null,null,"",""]
[null,null,null,null,null,null,null,null,null,"",""]
[null,null,null,null,null,null,null,null,null,"",""]
[null,null,null,null,null,null,null,null,null,"",""]
[null,null,null,null,null,null,null,null,null,"",""]
[null,null,null,null,null,null,null,null,null,"",""]
[null,null,null,null,null,null,null,null,null,"",""]
[null,null,null,null,null,null,null,null,null,"",""]
[null,null,null,null,null,null,null,null,null,{"$f":"IFERROR(IF(H3613<>\"\",7.05,\"\"),\"\")","v":""},""]
[null,null,null,null,null,null,null,null,null,"",""]
[null,null,null,null,null,null,null,null,null,"",""]
[null,null,null,null,null,null,null,null,null,"",""]
[null,null,null,null,null,null,null,null,null,"",""]
[null,null,null,null,null,null,null,null,null,"",""]
[null,null,null,null,null,null,null,null,null,"",""]
[null,null,null,null,null,null,null,null,null,"",""]
[null,null,null,null,null,null,null,null,null,"",""]
[null,null,null,null,null,null,null,null,null,"",""]
[null,null,null,null,null,null,null,null,null,"",""]
[null,null,null,null,null,null,null,null,null,"",""]
[null,null,null,null,null,null,null,null,null,"",""]
[null,null,null,null,null,null,null,null,null,"",""]
[null,null,null,null,null,null,null,null,null,"",""]
[null,null,null,null,null,null,null,null,null,"",""]
[null,null,null,null,null,null,null,null,null,"",""]
[null,null,null,null,null,null,null,null,null,"",""]
[null,null,null,null,null,null,null,null,null,"",""]
[null,null,null,null,null,null,null,null,null,"",""]
[null,null,null,null,null,null,null,null,null,"",""]
[null,null,null,null,null,null,null,null,null,"",""]
[null,null,null,null,null,null,null,null,null,"",""]
[null,null,null,null,null,null,null,null,null,"",""]
[null,null,null,null,null,null,null,null,null,"",""]
[null,null,null,null,null,null,null,null,null,"",""]
[null,null,null,null,null,null,null,null,null,"",""]
[null,null,null,null,null,null,null,null,null,"",""]
[null,null,null,null,null,null,null,null,null,"",""]
[null,null,null,null,null,null,null,null,null,"",""]
[null,null,null,null,null,null,null,null,null,"",""]
[null,null,null,null,null,null,null,null,null,"",""]
[null,null,null,null,null,null,null,null,null,"",""]
[null,null,null,null,null,null,null,null,null,"",""]
[null,null,null,null,null,null,null,null,null,"",""]
[null,null,null,null,null,null,null,null,null,"",""]
[null,null,null,null,null,null,null,null,null,"",""]
[null,null,null,null,null,null,null,null,null,"",""]
[null,null,null,null,null,null,null,null,null,"",""]
[null,null,null,null,null,null,null,null,null,"",""]
[null,null,null,null,null,null,null,null,null,null,""]
[null,null,null,null,null,null,null,null,null,null,""]
[null,null,null,null,null,null,null,null,null,null,""]
[null,null,null,null,null,null,null,null,null,null,{"$f":"IF(OR(I3656=\"\",J3656=\"\"),\"\",PRODUCT(I3656,J3656))","v":""}]
[null,null,null,null,null,null,null,null,null,null,""]
[null,null,null,null,null,null,null,null,null,null,""]
[null,null,null,null,null,null,null,null,null,null,""]
[null,null,null,null,null,null,null,null,null,null,""]
[null,null,null,null,null,null,null,null,null,null,""]
[null,null,null,null,null,null,null,null,null,null,""]
[null,null,null,null,null,null,null,null,null,null,""]
[null,null,null,null,null,null,null,null,null,null,""]
[null,null,null,null,null,null,null,null,null,null,""]
[null,null,null,null,null,null,null,null,null,null,""]
[null,null,null,null,null,null,null,null,null,null,""]
[null,null,null,null,null,null,null,null,null,null,""]
[null,null,null,null,null,null,null,null,null,null,""]
[null,null,null,null,null,null,null,null,null,null,""]
[null,null,null,null,null,null,null,null,null,null,""]
[null,null,null,null,null,null,null,null,null,null,""]
[null,null,null,null,null,null,null,null,null,null,""]
[null,null,null,null,null,null,null,null,null,null,""]
[null,null,null,null,null,null,null,null,null,null,""]
[null,null,null,null,null,null,null,null,null,null,""]
[null,null,null,null,null,null,null,null,null,null,""]
[null,null,null,null,null,null,null,null,null,null,""]
[null,null,null,null,null,null,null,null,null,null,""]
[null,null,null,null,null,null,null,null,null,null,""]
[null,null,null,null,null,null,null,null,null,null,""]
[null,null,null,null,null,null,null,null,null,null,""]
[null,null,null,null,null,null,null,null,null,null,""]
[null,null,null,null,null,null,null,null,null,null,""]
[null,null,null,null,null,null,null,null,null,null,""]
[null,null,null,null,null,null,null,null,null,null,""]
[null,null,null,null,null,null,null,null,null,null,""]
[null,null,null,null,null,null,null,null,null,null,""]
[null,null,null,null,null,null,null,null,null,null,""]
[null,null,null,null,null,null,null,null,null,null,""]
[null,null,null,null,null,null,null,null,null,null,""]
[null,null,null,null,null,null,null,null,null,null,""]
[null,null,null,null,null,null,null,null,null,null,""]
[null,null,null,null,null,null,null,null,null,null,""]
[null,null,null,null,null,null,null,null,null,null,""]
[null,null,null,null,null,null,null,null,null,null,""]
[null,null,null,null,null,null,null,null,null,null,""]
[null,null,null,null,null,null,null,null,null,null,""]
[null,null,null,null,null,null,null,null,null,null,""]
[null,null,null,null,null,null,null,null,null,null,""]
[null,null,null,null,null,null,null,null,null,null,""]
[null,null,null,null,null,null,null,null,null,null,""]
[null,null,null,null,null,null,null,null,null,null,""]
[null,null,null,null,null,null,null,null,null,null,""]
[null,null,null,null,null,null,null,null,null,null,""]
[null,null,null,null,null,null,null,null,null,null,""]
[null,null,null,null,null,null,null,null,null,null,""]
[null,null,null,null,null,null,null,null,null,null,""]
[null,null,null,null,null,null,null,null,null,null,""]
[null,null,null,null,null,null,null,null,null,null,""]
[null,null,null,null,null,null,null,null,null,null,""]
[null,null,null,null,null,null,null,null,null,null,""]
[null,null,null,null,null,null,null,null,null,null,""]
[null,null,null,null,null,null,null,null,null,null,""]
[null,null,null,null,null,null,null,null,null,null,""]
[null,null,null,null,null,null,null,null,null,null,""]
[null,null,null,null,null,null,null,null,null,null,""]
[null,null,null,null,null,null,null,null,null,null,""]
[null,null,null,null,null,null,null,null,null,null,""]
[null,null,null,null,null,null,null,null,null,null,{"$f":"IF(OR(I3720=\"\",J3720=\"\"),\"\",PRODUCT(I3720,J3720))","v":""}]
[null,null,null,null,null,null,null,null,null,null,""]
[null,null,null,null,null,null,null,null,null,null,""]
[null,null,null,null,null,null,null,null,null,null,""]
[null,null,null,null,null,null,null,null,null,null,""]
[null,null,null,null,null,null,null,null,null,null,""]
[null,null,null,null,null,null,null,null,null,null,""]
[null,null,null,null,null,null,null,null,null,null,""]
[null,null,null,null,null,null,null,null,null,null,""]
[null,null,null,null,null,null,null,null,null,null,""]
[null,null,null,null,null,null,null,null,null,null,""]
[null,null,null,null,null,null,null,null,null,null,""]
[null,null,null,null,null,null,null,null,null,null,""]
[null,null,null,null,null,null,null,null,null,null,""]
[null,null,null,null,null,null,null,null,null,null,""]
[null,null,null,null,null,null,null,null,null,null,""]
[null,null,null,null,null,null,null,null,null,null,""]
[null,null,null,null,null,null,null,null,null,null,""]
[null,null,null,null,null,null,null,null,null,null,""]
[null,null,null,null,null,null,null,null,null,null,""]
[null,null,null,null,null,null,null,null,null,null,""]
[null,null,null,null,null,null,null,null,null,null,""]
[null,null,null,null,null,null,null,null,null,null,""]
[null,null,null,null,null,null,null,null,null,null,""]
[null,null,null,null,null,null,null,null,null,null,""]
[null,null,null,null,null,null,null,null,null,null,""]
[null,null,null,null,null,null,null,null,null,null,""]
[null,null,null,null,null,null,null,null,null,null,""]
[null,null,null,null,null,null,null,null,null,null,""]
[null,null,null,null,null,null,null,null,null,null,""]
[null,null,null,null,null,null,null,null,null,null,""]
[null,null,null,null,null,null,null,null,null,null,""]
[null,null,null,null,null,null,null,null,null,null,""]
[null,null,null,null,null,null,null,null,null,null,""]
[null,null,null,null,null,null,null,null,null,null,""]
[null,null,null,null,null,null,null,null,null,null,""]
[null,null,null,null,null,null,null,null,null,null,""]
[null,null,null,null,null,null,null,null,null,null,""]
[null,null,null,null,null,null,null,null,null,null,""]
[null,null,null,null,null,null,null,null,null,null,""]
[null,null,null,null,null,null,null,null,null,null,""]
[null,null,null,null,null,null,null,null,null,null,""]
[null,null,null,null,null,null,null,null,null,null,""]
[null,null,null,null,null,null,null,null,null,null,""]
[null,null,null,null,null,null,null,null,null,null,""]
[null,null,null,null,null,null,null,null,null,null,""]
[null,null,null,null,null,null,null,null,null,null,""]
[null,null,null,null,null,null,null,null,null,null,""]
[null,null,null,null,null,null,null,null,null,null,""]
[null,null,null,null,null,null,null,null,null,null,""]
[null,null,null,null,null,null,null,null,null,null,""]
[null,null,null,null,null,null,null,null,null,null,""]
[null,null,null,null,null,null,null,null,null,null,""]
[null,null,null,null,null,null,null,null,null,null,""]
[null,null,null,null,null,null,null,null,null,null,""]
[null,null,null,null,null,null,null,null,null,null,""]
[null,null,null,null,null,null,null,null,null,null,""]
[null,null,null,null,null,null,null,null,null,null,""]
[null,null,null,null,null,null,null,null,null,null,""]
[null,null,null,null,null,null,null,null,null,null,""]
[null,null,null,null,null,null,null,null,null,null,""]
[null,null,null,null,null,null,null,null,null,null,""]
[null,null,null,null,null,null,null,null,null,null,""]
[null,null,null,null,null,null,null,null,null,null,""]
[null,null,null,null,null,null,null,null,null,null,{"$f":"IF(OR(I3784=\"\",J3784=\"\"),\"\",PRODUCT(I3784,J3784))","v":""}]
[null,null,null,null,null,null,null,null,null,null,""]
[null,null,null,null,null,null,null,null,null,null,""]
[null,null,null,null,null,null,null,null,null,null,""]
[null,null,null,null,null,null,null,null,null,null,""]
[null,null,null,null,null,null,null,null,null,null,""]
[null,null,null,null,null,null,null,null,null,null,""]
[null,null,null,null,null,null,null,null,null,null,""]
[null,null,null,null,null,null,null,null,null,null,""]
[null,null,null,null,null,null,null,null,null,null,""]
[null,null,null,null,null,null,null,null,null,null,""]
[null,null,null,null,null,null,null,null,null,null,""]
[null,null,null,null,null,null,null,null,null,null,""]
[null,null,null,null,null,null,null,null,null,null,""]
[null,null,null,null,null,null,null,null,null,null,""]
[null,null,null,null,null,null,null,null,null,null,""]
[null,null,null,null,null,null,null,null,null,null,""]
[null,null,null,null,null,null,null,null,null,null,""]
[null,null,null,null,null,null,null,null,null,null,""]
[null,null,null,null,null,null,null,null,null,null,""]
[null,null,null,null,null,null,null,null,null,null,""]
[null,null,null,null,null,null,null,null,null,null,""]
[null,null,null,null,null,null,null,null,null,null,""]
[null,null,null,null,null,null,null,null,null,null,""]
[null,null,null,null,null,null,null,null,null,null,""]
[null,null,null,null,null,null,null,null,null,null,""]
[null,null,null,null,null,null,null,null,null,null,""]
[null,null,null,null,null,null,null,null,null,null,""]
[null,null,null,null,null,null,null,null,null,null,""]
[null,null,null,null,null,null,null,null,null,null,""]
[null,null,null,null,null,null,null,null,null,null,""]
[null,null,null,null,null,null,null,null,null,null,""]
[null,null,null,null,null,null,null,null,null,null,""]
[null,null,null,null,null,null,null,null,null,null,""]
[null,null,null,null,null,null,null,null,null,null,""]
[null,null,null,null,null,null,null,null,null,null,""]
[null,null,null,null,null,null,null,null,null,null,""]
[null,null,null,null,null,null,null,null,null,null,""]
[null,null,null,null,null,null,null,null,null,null,""]
[null,null,null,null,null,null,null,null,null,null,""]
[null,null,null,null,null,null,null,null,null,null,""]
[null,null,null,null,null,null,null,null,null,null,""]
[null,null,null,null,null,null,null,null,null,null,""]
[null,null,null,null,null,null,null,null,null,null,""]
[null,null,null,null,null,null,null,null,null,null,""]
[null,null,null,null,null,null,null,null,null,null,""]
[null,null,null,null,null,null,null,null,null,null,""]
[null,null,null,null,null,null,null,null,null,null,""]
[null,null,null,null,null,null,null,null,null,null,""]
[null,null,null,null,null,null,null,null,null,null,""]
[null,null,null,null,null,null,null,null,null,null,""]
[null,null,null,null,null,null,null,null,null,null,""]
[null,null,null,null,null,null,null,null,null,null,""]
[null,null,null,null,null,null,null,null,null,null,""]
[null,null,null,null,null,null,null,null,null,null,""]
[null,null,null,null,null,null,null,null,null,null,""]
[null,null,null,null,null,null,null,null,null,null,""]
[null,null,null,null,null,null,null,null,null,null,""]
[null,null,null,null,null,null,null,null,null,null,""]
[null,null,null,null,null,null,null,null,null,null,""]
[null,null,null,null,null,null,null,null,null,null,""]
[null,null,null,null,null,null,null,null,null,null,""]
[null,null,null,null,null,null,null,null,null,null,""]
[null,null,null,null,null,null,null,null,null,null,""]
[null,null,null,null,null,null,null,null,null,null,{"$f":"IF(OR(I3848=\"\",J3848=\"\"),\"\",PRODUCT(I3848,J3848))","v":""}]
[null,null,null,null,null,null,null,null,null,null,""]
[null,null,null,null,null,null,null,null,null,null,""]
[null,null,null,null,null,null,null,null,null,null,""]
[null,null,null,null,null,null,null,null,null,null,""]
[null,null,null,null,null,null,null,null,null,null,""]
[null,null,null,null,null,null,null,null,null,null,""]
[null,null,null,null,null,null,null,null,null,null,""]
[null,null,null,null,null,null,null,null,null,null,""]
[null,null,null,null,null,null,null,null,null,null,""]
[null,null,null,null,null,null,null,null,null,null,""]
[null,null,null,null,null,null,null,null,null,null,""]
[null,null,null,null,null,null,null,null,null,null,""]
[null,null,null,null,null,null,null,null,null,null,""]
[null,null,null,null,null,null,null,null,null,null,""]
[null,null,null,null,null,null,null,null,null,null,""]
[null,null,null,null,null,null,null,null,null,null,""]
[null,null,null,null,null,null,null,null,null,null,""]
[null,null,null,null,null,null,null,null,null,null,""]
[null,null,null,null,null,null,null,null,null,null,""]
[null,null,null,null,null,null,null,null,null,null,""]
[null,null,null,null,null,null,null,null,null,null,""]
[null,null,null,null,null,null,null,null,null,null,""]
[null,null,null,null,null,null,null,null,null,null,""]
[null,null,null,null,null,null,null,null,null,null,""]
[null,null,null,null,null,null,null,null,null,null,""]
[null,null,null,null,null,null,null,null,null,null,""]
[null,null,null,null,null,null,null,null,null,null,""]
[null,null,null,null,null,null,null,null,null,null,""]
[null,null,null,null,null,null,null,null,null,null,""]
[null,null,null,null,null,null,null,null,null,null,""]
[null,null,null,null,null,null,null,null,null,null,""]
[null,null,null,null,null,null,null,null,null,null,""]
[null,null,null,null,null,null,null,null,null,null,""]
[null,null,null,null,null,null,null,null,null,null,""]
[null,null,null,null,null,null,null,null,null,null,""]
[null,null,null,null,null,null,null,null,null,null,""]
[null,null,null,null,null,null,null,null,null,null,""]
[null,null,null,null,null,null,null,null,null,null,""]
[null,null,null,null,null,null,null,null,null,null,""]
[null,null,null,null,null,null,null,null,null,null,""]
[null,null,null,null,null,null,null,null,null,null,""]
[null,null,null,null,null,null,null,null,null,null,""]
[null,null,null,null,null,null,null,null,null,null,""]
[null,null,null,null,null,null,null,null,null,null,""]
[null,null,null,null,null,null,null,null,null,null,""]
[null,null,null,null,null,null,null,null,null,null,""]
[null,null,null,null,null,null,null,null,null,null,""]
[null,null,null,null,null,null,null,null,null,null,""]
[null,null,null,null,null,null,null,null,null,null,""]
[null,null,null,null,null,null,null,null,null,null,""]
[null,null,null,null,null,null,null,null,null,null,""]
[null,null,null,null,null,null,null,null,null,null,""]
[null,null,null,null,null,null,null,null,null,null,""]
[null,null,null,null,null,null,null,null,null,null,""]
[null,null,null,null,null,null,null,null,null,null,""]
[null,null,null,null,null,null,null,null,null,null,""]
[null,null,null,null,null,null,null,null,null,null,""]
[null,null,null,null,null,null,null,null,null,null,""]
[null,null,null,null,null,null,null,null,null,null,""]
[null,null,null,null,null,null,null,null,null,null,""]
[null,null,null,null,null,null,null,null,null,null,""]
[null,null,null,null,null,null,null,null,null,null,""]
[null,null,null,null,null,null,null,null,null,null,""]
[null,null,null,null,null,null,null,null,null,null,{"$f":"IF(OR(I3912=\"\",J3912=\"\"),\"\",PRODUCT(I3912,J3912))","v":""}]
[null,null,null,null,null,null,null,null,null,null,""]
[null,null,null,null,null,null,null,null,null,null,""]
[null,null,null,null,null,null,null,null,null,null,""]
[null,null,null,null,null,null,null,null,null,null,""]
[null,null,null,null,null,null,null,null,null,null,""]
[null,null,null,null,null,null,null,null,null,null,""]
[null,null,null,null,null,null,null,null,null,null,""]
[null,null,null,null,null,null,null,null,null,null,""]
[null,null,null,null,null,null,null,null,null,null,""]
[null,null,null,null,null,null,null,null,null,null,""]
[null,null,null,null,null,null,null,null,null,null,""]
[null,null,null,null,null,null,null,null,null,null,""]
[null,null,null,null,null,null,null,null,null,null,""]
[null,null,null,null,null,null,null,null,null,null,""]
[null,null,null,null,null,null,null,null,null,null,""]
[null,null,null,null,null,null,null,null,null,null,""]
[null,null,null,null,null,null,null,null,null,null,""]
[null,null,null,null,null,null,null,null,null,null,""]
[null,null,null,null,null,null,null,null,null,null,""]
[null,null,null,null,null,null,null,null,null,null,""]
[null,null,null,null,null,null,null,null,null,null,""]
[null,null,null,null,null,null,null,null,null,null,""]
[null,null,null,null,null,null,null,null,null,null,""]
[null,null,null,null,null,null,null,null,null,null,""]
[null,null,null,null,null,null,null,null,null,null,""]
[null,null,null,null,null,null,null,null,null,null,""]
[null,null,null,null,null,null,null,null,null,null,""]
[null,null,null,null,null,null,null,null,null,null,""]
[null,null,null,null,null,null,null,null,null,null,""]
[null,null,null,null,null,null,null,null,null,null,""]
[null,null,null,null,null,null,null,null,null,null,""]
[null,null,null,null,null,null,null,null,null,null,""]
[null,null,null,null,null,null,null,null,null,null,""]
[null,null,null,null,null,null,null,null,null,null,""]
[null,null,null,null,null,null,null,null,null,null,""]
[null,null,null,null,null,null,null,null,null,null,""]
[null,null,null,null,null,null,null,null,null,null,""]
[null,null,null,null,null,null,null,null,null,null,""]
[null,null,null,null,null,null,null,null,null,null,""]
[null,null,null,null,null,null,null,null,null,null,""]
[null,null,null,null,null,null,null,null,null,null,""]
[null,null,null,null,null,null,null,null,null,null,""]
[null,null,null,null,null,null,null,null,null,null,""]
[null,null,null,null,null,null,null,null,null,null,""]
[null,null,null,null,null,null,null,null,null,null,""]
[null,null,null,null,null,null,null,null,null,null,""]
[null,null,null,null,null,null,null,null,null,null,""]
[null,null,null,null,null,null,null,null,null,null,""]
[null,null,null,null,null,null,null,null,null,null,""]
[null,null,null,null,null,null,null,null,null,null,""]
[null,null,null,null,null,null,null,null,null,null,""]
[null,null,null,null,null,null,null,null,null,null,""]
[null,null,null,null,null,null,null,null,null,null,""]
[null,null,null,null,null,null,null,null,null,null,""]
[null,null,null,null,null,null,null,null,null,null,""]
[null,null,null,null,null,null,null,null,null,null,""]
[null,null,null,null,null,null,null,null,null,null,""]
[null,null,null,null,null,null,null,null,null,null,""]
[null,null,null,null,null,null,null,null,null,null,""]
[null,null,null,null,null,null,null,null,null,null,""]
[null,null,null,null,null,null,null,null,null,null,""]
[null,null,null,null,null,null,null,null,null,null,""]
[null,null,null,null,null,null,null,null,null,null,""]
[null,null,null,null,null,null,null,null,null,null,{"$f":"IF(OR(I3976=\"\",J3976=\"\"),\"\",PRODUCT(I3976,J3976))","v":""}]
[null,null,null,null,null,null,null,null,null,null,""]
[null,null,null,null,null,null,null,null,null,null,""]
[null,null,null,null,null,null,null,null,null,null,""]
[null,null,null,null,null,null,null,null,null,null,""]
[null,null,null,null,null,null,null,null,null,null,""]
[null,null,null,null,null,null,null,null,null,null,""]
[null,null,null,null,null,null,null,null,null,null,""]
[null,null,null,null,null,null,null,null,null,null,""]
[null,null,null,null,null,null,null,null,null,null,""]
[null,null,null,null,null,null,null,null,null,null,""]
[null,null,null,null,null,null,null,null,null,null,""]
[null,null,null,null,null,null,null,null,null,null,""]
[null,null,null,null,null,null,null,null,null,null,""]
[null,null,null,null,null,null,null,null,null,null,""]
[null,null,null,null,null,null,null,null,null,null,""]
[null,null,null,null,null,null,null,null,null,null,""]
[null,null,null,null,null,null,null,null,null,null,""]
[null,null,null,null,null,null,null,null,null,null,""]
[null,null,null,null,null,null,null,null,null,null,""]
[null,null,null,null,null,null,null,null,null,null,""]
[null,null,null,null,null,null,null,null,null,null,""]
[null,null,null,null,null,null,null,null,null,null,""]
[null,null,null,null,null,null,null,null,null,null,""]
[null,null,null,null,null,null,null,null,null,null,""]
[null,null,null,null,null,null,null,null,null,null,""]
[null,null,null,null,null,null,null,null,null,null,""]
[null,null,null,null,null,null,null,null,null,null,""]
[null,null,null,null,null,null,null,null,null,null,""]
[null,null,null,null,null,null,null,null,null,null,""]
[null,null,null,null,null,null,null,null,null,null,""]
[null,null,null,null,null,null,null,null,null,null,""]
[null,null,null,null,null,null,null,null,null,null,""]
[null,null,null,null,null,null,null,null,null,null,""]
[null,null,null,null,null,null,null,null,null,null,""]
[null,null,null,null,null,null,null,null,null,null,""]
[null,null,null,null,null,null,null,null,null,null,""]
[null,null,null,null,null,null,null,null,null,null,""]
[null,null,null,null,null,null,null,null,null,null,""]
[null,null,null,null,null,null,null,null,null,null,""]
[null,null,null,null,null,null,null,null,null,null,""]
[null,null,null,null,null,null,null,null,null,null,""]
[null,null,null,null,null,null,null,null,null,null,""]
[null,null,null,null,null,null,null,null,null,null,""]
[null,null,null,null,null,null,null,null,null,null,""]
[null,null,null,null,null,null,null,null,null,null,""]
[null,null,null,null,null,null,null,null,null,null,""]
[null,null,null,null,null,null,null,null,null,null,""]
[null,null,null,null,null,null,null,null,null,null,""]
[null,null,null,null,null,null,null,null,null,null,""]
[null,null,null,null,null,null,null,null,null,null,""]
[null,null,null,null,null,null,null,null,null,null,""]
[null,null,null,null,null,null,null,null,null,null,""]
[null,null,null,null,null,null,null,null,null,null,""]
[null,null,null,null,null,null,null,null,null,null,""]
[null,null,null,null,null,null,null,null,null,null,""]
[null,null,null,null,null,null,null,null,null,null,""]
[null,null,null,null,null,null,null,null,null,null,""]
[null,null,null,null,null,null,null,null,null,null,""]
[null,null,null,null,null,null,null,null,null,null,""]
[null,null,null,null,null,null,null,null,null,null,""]
[null,null,null,null,null,null,null,null,null,null,""]
[null,null,null,null,null,null,null,null,null,null,""]
[null,null,null,null,null,null,null,null,null,null,""]
[null,null,null,null,null,null,null,null,null,null,{"$f":"IF(OR(I4040=\"\",J4040=\"\"),\"\",PRODUCT(I4040,J4040))","v":""}]
[null,null,null,null,null,null,null,null,null,null,""]
[null,null,null,null,null,null,null,null,null,null,""]
[null,null,null,null,null,null,null,null,null,null,""]
[null,null,null,null,null,null,null,null,null,null,""]
[null,null,null,null,null,null,null,null,null,null,""]
[null,null,null,null,null,null,null,null,null,null,""]
[null,null,null,null,null,null,null,null,null,null,""]
[null,null,null,null,null,null,null,null,null,null,""]
[null,null,null,null,null,null,null,null,null,null,""]
[null,null,null,null,null,null,null,null,null,null,""]
[null,null,null,null,null,null,null,null,null,null,""]
[null,null,null,null,null,null,null,null,null,null,""]
[null,null,null,null,null,null,null,null,null,null,""]
[null,null,null,null,null,null,null,null,null,null,""]
[null,null,null,null,null,null,null,null,null,null,""]
[null,null,null,null,null,null,null,null,null,null,""]
[null,null,null,null,null,null,null,null,null,null,""]
[null,null,null,null,null,null,null,null,null,null,""]
[null,null,null,null,null,null,null,null,null,null,""]
[null,null,null,null,null,null,null,null,null,null,""]
[null,null,null,null,null,null,null,null,null,null,""]
[null,null,null,null,null,null,null,null,null,null,""]
[null,null,null,null,null,null,null,null,null,null,""]
[null,null,null,null,null,null,null,null,null,null,""]
[null,null,null,null,null,null,null,null,null,null,""]
[null,null,null,null,null,null,null,null,null,null,""]
[null,null,null,null,null,null,null,null,null,null,""]
[null,null,null,null,null,null,null,null,null,null,""]
[null,null,null,null,null,null,null,null,null,null,""]
[null,null,null,null,null,null,null,null,null,null,""]
[null,null,null,null,null,null,null,null,null,null,""]
[null,null,null,null,null,null,null,null,null,null,""]
[null,null,null,null,null,null,null,null,null,null,""]
[null,null,null,null,null,null,null,null,null,null,""]
[null,null,null,null,null,null,null,null,null,null,""]
[null,null,null,null,null,null,null,null,null,null,""]
[null,null,null,null,null,null,null,null,null,null,""]
[null,null,null,null,null,null,null,null,null,null,""]
[null,null,null,null,null,null,null,null,null,null,""]
[null,null,null,null,null,null,null,null,null,null,""]
[null,null,null,null,null,null,null,null,null,null,""]
[null,null,null,null,null,null,null,null,null,null,""]
[null,null,null,null,null,null,null,null,null,null,""]
[null,null,null,null,null,null,null,null,null,null,""]
[null,null,null,null,null,null,null,null,null,null,""]
[null,null,null,null,null,null,null,null,null,null,""]
[null,null,null,null,null,null,null,null,null,null,""]
[null,null,null,null,null,null,null,null,null,null,""]
[null,null,null,null,null,null,null,null,null,null,""]
[null,null,null,null,null,null,null,null,null,null,""]
[null,null,null,null,null,null,null,null,null,null,""]
[null,null,null,null,null,null,null,null,null,null,""]
[null,null,null,null,null,null,null,null,null,null,""]
[null,null,null,null,null,null,null,null,null,null,""]
[null,null,null,null,null,null,null,null,null,null,""]
[null,null,null,null,null,null,null,null,null,null,""]
[null,null,null,null,null,null,null,null,null,null,""]
[null,null,null,null,null,null,null,null,null,null,""]
[null,null,null,null,null,null,null,null,null,null,""]
[null,null,null,null,null,null,null,null,null,null,""]
[null,null,null,null,null,null,null,null,null,null,""]
[null,null,null,null,null,null,null,null,null,null,""]
[null,null,null,null,null,null,null,null,null,null,""]
[null,null,null,null,null,null,null,null,null,null,{"$f":"IF(OR(I4104=\"\",J4104=\"\"),\"\",PRODUCT(I4104,J4104))","v":""}]
[null,null,null,null,null,null,null,null,null,null,""]
[null,null,null,null,null,null,null,null,null,null,""]
[null,null,null,null,null,null,null,null,null,null,""]
[null,null,null,null,null,null,null,null,null,null,""]
[null,null,null,null,null,null,null,null,null,null,""]
[null,null,null,null,null,null,null,null,null,null,""]
[null,null,null,null,null,null,null,null,null,null,""]
[null,null,null,null,null,null,null,null,null,null,""]
[null,null,null,null,null,null,null,null,null,null,""]
[null,null,null,null,null,null,null,null,null,null,""]
[null,null,null,null,null,null,null,null,null,null,""]
[null,null,null,null,null,null,null,null,null,null,""]
[null,null,null,null,null,null,null,null,null,null,""]
[null,null,null,null,null,null,null,null,null,null,""]
[null,null,null,null,null,null,null,null,null,null,""]
[null,null,null,null,null,null,null,null,null,null,""]
[null,null,null,null,null,null,null,null,null,null,""]
[null,null,null,null,null,null,null,null,null,null,""]
[null,null,null,null,null,null,null,null,null,null,""]
[null,null,null,null,null,null,null,null,null,null,""]
[null,null,null,null,null,null,null,null,null,null,""]
[null,null,null,null,null,null,null,null,null,null,""]
[null,null,null,null,null,null,null,null,null,null,""]
[null,null,null,null,null,null,null,null,null,null,""]
[null,null,null,null,null,null,null,null,null,null,""]
[null,null,null,null,null,null,null,null,null,null,""]
[null,null,null,null,null,null,null,null,null,null,""]
[null,null,null,null,null,null,null,null,null,null,""]
[null,null,null,null,null,null,null,null,null,null,""]
[null,null,null,null,null,null,null,null,null,null,""]
[null,null,null,null,null,null,null,null,null,null,""]
[null,null,null,null,null,null,null,null,null,null,""]
[null,null,null,null,null,null,null,null,null,null,""]
[null,null,null,null,null,null,null,null,null,null,""]
[null,null,null,null,null,null,null,null,null,null,""]
[null,null,null,null,null,null,null,null,null,null,""]
[null,null,null,null,null,null,null,null,null,null,""]
[null,null,null,null,null,null,null,null,null,null,""]
[null,null,null,null,null,null,null,null,null,null,""]
[null,null,null,null,null,null,null,null,null,null,""]
[null,null,null,null,null,null,null,null,null,null,""]
[null,null,null,null,null,null,null,null,null,null,""]
[null,null,null,null,null,null,null,null,null,null,""]
[null,null,null,null,null,null,null,null,null,null,""]
[null,null,null,null,null,null,null,null,null,null,""]
[null,null,null,null,null,null,null,null,null,null,""]
[null,null,null,null,null,null,null,null,null,null,""]
[null,null,null,null,null,null,null,null,null,null,""]
[null,null,null,null,null,null,null,null,null,null,""]
[null,null,null,null,null,null,null,null,null,null,""]
[null,null,null,null,null,null,null,null,null,null,""]
[null,null,null,null,null,null,null,null,null,null,""]
[null,null,null,null,null,null,null,null,null,null,""]
[null,null,null,null,null,null,null,null,null,null,""]
[null,null,null,null,null,null,null,null,null,null,""]
[null,null,null,null,null,null,null,null,null,null,""]
[null,null,null,null,null,null,null,null,null,null,""]
[null,null,null,null,null,null,null,null,null,null,""]
[null,null,null,null,null,null,null,null,null,null,""]
[null,null,null,null,null,null,null,null,null,null,""]
[null,null,null,null,null,null,null,null,null,null,""]
[null,null,null,null,null,null,null,null,null,null,""]
[null,null,null,null,null,null,null,null,null,null,""]
[null,null,null,null,null,null,null,null,null,null,{"$f":"IF(OR(I4168=\"\",J4168=\"\"),\"\",PRODUCT(I4168,J4168))","v":""}]
[null,null,null,null,null,null,null,null,null,null,""]
[null,null,null,null,null,null,null,null,null,null,""]
[null,null,null,null,null,null,null,null,null,null,""]
[null,null,null,null,null,null,null,null,null,null,""]
[null,null,null,null,null,null,null,null,null,null,""]
[null,null,null,null,null,null,null,null,null,null,""]
[null,null,null,null,null,null,null,null,null,null,""]
[null,null,null,null,null,null,null,null,null,null,""]
[null,null,null,null,null,null,null,null,null,null,""]
[null,null,null,null,null,null,null,null,null,null,""]
[null,null,null,null,null,null,null,null,null,null,""]
[null,null,null,null,null,null,null,null,null,null,""]
[null,null,null,null,null,null,null,null,null,null,""]
[null,null,null,null,null,null,null,null,null,null,""]
[null,null,null,null,null,null,null,null,null,null,""]
[null,null,null,null,null,null,null,null,null,null,""]
[null,null,null,null,null,null,null,null,null,null,""]
[null,null,null,null,null,null,null,null,null,null,""]
[null,null,null,null,null,null,null,null,null,null,""]
[null,null,null,null,null,null,null,null,null,null,""]
[null,null,null,null,null,null,null,null,null,null,""]
[null,null,null,null,null,null,null,null,null,null,""]
[null,null,null,null,null,null,null,null,null,null,""]
[null,null,null,null,null,null,null,null,null,null,""]
[null,null,null,null,null,null,null,null,null,null,""]
[null,null,null,null,null,null,null,null,null,null,""]
[null,null,null,null,null,null,null,null,null,null,""]
[null,null,null,null,null,null,null,null,null,null,""]
[null,null,null,null,null,null,null,null,null,null,""]
[null,null,null,null,null,null,null,null,null,null,""]
[null,null,null,null,null,null,null,null,null,null,""]
[null,null,null,null,null,null,null,null,null,null,""]
[null,null,null,null,null,null,null,null,null,null,""]
[null,null,null,null,null,null,null,null,null,null,""]
[null,null,null,null,null,null,null,null,null,null,""]
[null,null,null,null,null,null,null,null,null,null,""]
[null,null,null,null,null,null,null,null,null,null,""]
[null,null,null,null,null,null,null,null,null,null,""]
[null,null,null,null,null,null,null,null,null,null,""]
[null,null,null,null,null,null,null,null,null,null,""]
[null,null,null,null,null,null,null,null,null,null,""]
[null,null,null,null,null,null,null,null,null,null,""]
[null,null,null,null,null,null,null,null,null,null,""]
[null,null,null,null,null,null,null,null,null,null,""]
[null,null,null,null,null,null,null,null,null,null,""]
[null,null,null,null,null,null,null,null,null,null,""]
[null,null,null,null,null,null,null,null,null,null,""]
[null,null,null,null,null,null,null,null,null,null,""]
[null,null,null,null,null,null,null,null,null,null,""]
[null,null,null,null,null,null,null,null,null,null,""]
[null,null,null,null,null,null,null,null,null,null,""]
[null,null,null,null,null,null,null,null,null,null,""]
[null,null,null,null,null,null,null,null,null,null,""]
[null,null,null,null,null,null,null,null,null,null,""]
[null,null,null,null,null,null,null,null,null,null,""]
[null,null,null,null,null,null,null,null,null,null,""]
[null,null,null,null,null,null,null,null,null,null,""]
[null,null,null,null,null,null,null,null,null,null,""]
[null,null,null,null,null,null,null,null,null,null,""]
[null,null,null,null,null,null,null,null,null,null,""]
[null,null,null,null,null,null,null,null,null,null,""]
[null,null,null,null,null,null,null,null,null,null,""]
[null,null,null,null,null,null,null,null,null,null,""]
[null,null,null,null,null,null,null,null,null,null,{"$f":"IF(OR(I4232=\"\",J4232=\"\"),\"\",PRODUCT(I4232,J4232))","v":""}]
[null,null,null,null,null,null,null,null,null,null,""]
[null,null,null,null,null,null,null,null,null,null,""]
[null,null,null,null,null,null,null,null,null,null,""]
[null,null,null,null,null,null,null,null,null,null,""]
[null,null,null,null,null,null,null,null,null,null,""]
[null,null,null,null,null,null,null,null,null,null,""]
[null,null,null,null,null,null,null,null,null,null,""]
[null,null,null,null,null,null,null,null,null,null,""]
[null,null,null,null,null,null,null,null,null,null,""]
[null,null,null,null,null,null,null,null,null,null,""]
[null,null,null,null,null,null,null,null,null,null,""]
[null,null,null,null,null,null,null,null,null,null,""]
[null,null,null,null,null,null,null,null,null,null,""]
[null,null,null,null,null,null,null,null,null,null,""]
[null,null,null,null,null,null,null,null,null,null,""]
[null,null,null,null,null,null,null,null,null,null,""]
[null,null,null,null,null,null,null,null,null,null,""]
[null,null,null,null,null,null,null,null,null,null,""]
[null,null,null,null,null,null,null,null,null,null,""]
[null,null,null,null,null,null,null,null,null,null,""]
[null,null,null,null,null,null,null,null,null,null,""]
[null,null,null,null,null,null,null,null,null,null,""]
[null,null,null,null,null,null,null,null,null,null,""]
[null,null,null,null,null,null,null,null,null,null,""]
[null,null,null,null,null,null,null,null,null,null,""]
[null,null,null,null,null,null,null,null,null,null,""]
[null,null,null,null,null,null,null,null,null,null,""]
[null,null,null,null,null,null,null,null,null,null,""]
[null,null,null,null,null,null,null,null,null,null,""]
[null,null,null,null,null,null,null,null,null,null,""]
[null,null,null,null,null,null,null,null,null,null,""]
[null,null,null,null,null,null,null,null,null,null,""]
[null,null,null,null,null,null,null,null,null,null,""]
[null,null,null,null,null,null,null,null,null,null,""]
[null,null,null,null,null,null,null,null,null,null,""]
[null,null,null,null,null,null,null,null,null,null,""]
[null,null,null,null,null,null,null,null,null,null,""]
[null,null,null,null,null,null,null,null,null,null,""]
[null,null,null,null,null,null,null,null,null,null,""]
[null,null,null,null,null,null,null,null,null,null,""]
[null,null,null,null,null,null,null,null,null,null,""]
[null,null,null,null,null,null,null,null,null,null,""]
[null,null,null,null,null,null,null,null,null,null,""]
[null,null,null,null,null,null,null,null,null,null,""]
[null,null,null,null,null,null,null,null,null,null,""]
[null,null,null,null,null,null,null,null,null,null,""]
[null,null,null,null,null,null,null,null,null,null,""]
[null,null,null,null,null,null,null,null,null,null,""]
[null,null,null,null,null,null,null,null,null,null,""]
[null,null,null,null,null,null,null,null,null,null,""]
[null,null,null,null,null,null,null,null,null,null,""]
[null,null,null,null,null,null,null,null,null,null,""]
[null,null,null,null,null,null,null,null,null,null,""]
[null,null,null,null,null,null,null,null,null,null,""]
[null,null,null,null,null,null,null,null,null,null,""]
[null,null,null,null,null,null,null,null,null,null,""]
[null,null,null,null,null,null,null,null,null,null,""]
[null,null,null,null,null,null,null,null,null,null,""]
[null,null,null,null,null,null,null,null,null,null,""]
[null,null,null,null,null,null,null,null,null,null,""]
[null,null,null,null,null,null,null,null,null,null,""]
[null,null,null,null,null,null,null,null,null,null,""]
[null,null,null,null,null,null,null,null,null,null,""]
[null,null,null,null,null,null,null,null,null,null,{"$f":"IF(OR(I4296=\"\",J4296=\"\"),\"\",PRODUCT(I4296,J4296))","v":""}]
[null,null,null,null,null,null,null,null,null,null,""]
[null,null,null,null,null,null,null,null,null,null,""]
[null,null,null,null,null,null,null,null,null,null,""]
[null,null,null,null,null,null,null,null,null,null,""]
[null,null,null,null,null,null,null,null,null,null,""]
[null,null,null,null,null,null,null,null,null,null,""]
[null,null,null,null,null,null,null,null,null,null,""]
[null,null,null,null,null,null,null,null,null,null,""]
[null,null,null,null,null,null,null,null,null,null,""]
[null,null,null,null,null,null,null,null,null,null,""]
[null,null,null,null,null,null,null,null,null,null,""]
[null,null,null,null,null,null,null,null,null,null,""]
[null,null,null,null,null,null,null,null,null,null,""]
[null,null,null,null,null,null,null,null,null,null,""]
[null,null,null,null,null,null,null,null,null,null,""]
[null,null,null,null,null,null,null,null,null,null,""]
[null,null,null,null,null,null,null,null,null,null,""]
[null,null,null,null,null,null,null,null,null,null,""]
[null,null,null,null,null,null,null,null,null,null,""]
[null,null,null,null,null,null,null,null,null,null,""]
[null,null,null,null,null,null,null,null,null,null,""]
[null,null,null,null,null,null,null,null,null,null,""]
[null,null,null,null,null,null,null,null,null,null,""]
[null,null,null,null,null,null,null,null,null,null,""]
[null,null,null,null,null,null,null,null,null,null,""]
[null,null,null,null,null,null,null,null,null,null,""]
[null,null,null,null,null,null,null,null,null,null,""]
[null,null,null,null,null,null,null,null,null,null,""]
[null,null,null,null,null,null,null,null,null,null,""]
[null,null,null,null,null,null,null,null,null,null,""]
[null,null,null,null,null,null,null,null,null,null,""]
[null,null,null,null,null,null,null,null,null,null,""]
[null,null,null,null,null,null,null,null,null,null,""]
[null,null,null,null,null,null,null,null,null,null,""]
[null,null,null,null,null,null,null,null,null,null,""]
[null,null,null,null,null,null,null,null,null,null,""]
[null,null,null,null,null,null,null,null,null,null,""]
[null,null,null,null,null,null,null,null,null,null,""]
[null,null,null,null,null,null,null,null,null,null,""]
[null,null,null,null,null,null,null,null,null,null,""]
[null,null,null,null,null,null,null,null,null,null,""]
[null,null,null,null,null,null,null,null,null,null,""]
[null,null,null,null,null,null,null,null,null,null,""]
[null,null,null,null,null,null,null,null,null,null,""]
[null,null,null,null,null,null,null,null,null,null,""]
[null,null,null,null,null,null,null,null,null,null,""]
[null,null,null,null,null,null,null,null,null,null,""]
[null,null,null,null,null,null,null,null,null,null,""]
[null,null,null,null,null,null,null,null,null,null,""]
[null,null,null,null,null,null,null,null,null,null,""]
[null,null,null,null,null,null,null,null,null,null,""]
[null,null,null,null,null,null,null,null,null,null,""]
[null,null,null,null,null,null,null,null,null,null,""]
[null,null,null,null,null,null,null,null,null,null,""]
[null,null,null,null,null,null,null,null,null,null,""]
[null,null,null,null,null,null,null,null,null,null,""]
[null,null,null,null,null,null,null,null,null,null,""]
[null,null,null,null,null,null,null,null,null,null,""]
[null,null,null,null,null,null,null,null,null,null,""]
[null,null,null,null,null,null,null,null,null,null,""]
[null,null,null,null,null,null,null,null,null,null,""]
[null,null,null,null,null,null,null,null,null,null,""]
[null,null,null,null,null,null,null,null,null,null,""]
[null,null,null,null,null,null,null,null,null,null,{"$f":"IF(OR(I4360=\"\",J4360=\"\"),\"\",PRODUCT(I4360,J4360))","v":""}]
[null,null,null,null,null,null,null,null,null,null,""]
[null,null,null,null,null,null,null,null,null,null,""]
[null,null,null,null,null,null,null,null,null,null,""]
[null,null,null,null,null,null,null,null,null,null,""]
[null,null,null,null,null,null,null,null,null,null,""]
[null,null,null,null,null,null,null,null,null,null,""]
[null,null,null,null,null,null,null,null,null,null,""]
[null,null,null,null,null,null,null,null,null,null,""]
[null,null,null,null,null,null,null,null,null,null,""]
[null,null,null,null,null,null,null,null,null,null,""]
[null,null,null,null,null,null,null,null,null,null,""]
[null,null,null,null,null,null,null,null,null,null,""]
[null,null,null,null,null,null,null,null,null,null,""]
[null,null,null,null,null,null,null,null,null,null,""]
[null,null,null,null,null,null,null,null,null,null,""]
[null,null,null,null,null,null,null,null,null,null,""]
[null,null,null,null,null,null,null,null,null,null,""]
[null,null,null,null,null,null,null,null,null,null,""]
[null,null,null,null,null,null,null,null,null,null,""]
[null,null,null,null,null,null,null,null,null,null,""]
[null,null,null,null,null,null,null,null,null,null,""]
[null,null,null,null,null,null,null,null,null,null,""]
[null,null,null,null,null,null,null,null,null,null,""]
[null,null,null,null,null,null,null,null,null,null,""]
[null,null,null,null,null,null,null,null,null,null,""]
[null,null,null,null,null,null,null,null,null,null,""]
[null,null,null,null,null,null,null,null,null,null,""]
[null,null,null,null,null,null,null,null,null,null,""]
[null,null,null,null,null,null,null,null,null,null,""]
[null,null,null,null,null,null,null,null,null,null,""]
[null,null,null,null,null,null,null,null,null,null,""]
[null,null,null,null,null,null,null,null,null,null,""]
[null,null,null,null,null,null,null,null,null,null,""]
[null,null,null,null,null,null,null,null,null,null,""]
[null,null,null,null,null,null,null,null,null,null,""]
[null,null,null,null,null,null,null,null,null,null,""]
[null,null,null,null,null,null,null,null,null,null,""]
[null,null,null,null,null,null,null,null,null,null,""]
[null,null,null,null,null,null,null,null,null,null,""]
[null,null,null,null,null,null,null,null,null,null,""]
[null,null,null,null,null,null,null,null,null,null,""]
[null,null,null,null,null,null,null,null,null,null,""]
[null,null,null,null,null,null,null,null,null,null,""]
[null,null,null,null,null,null,null,null,null,null,""]
[null,null,null,null,null,null,null,null,null,null,""]
[null,null,null,null,null,null,null,null,null,null,""]
[null,null,null,null,null,null,null,null,null,null,""]
[null,null,null,null,null,null,null,null,null,null,""]
[null,null,null,null,null,null,null,null,null,null,""]
[null,null,null,null,null,null,null,null,null,null,""]
[null,null,null,null,null,null,null,null,null,null,""]
[null,null,null,null,null,null,null,null,null,null,""]
[null,null,null,null,null,null,null,null,null,null,""]
[null,null,null,null,null,null,null,null,null,null,""]
[null,null,null,null,null,null,null,null,null,null,""]
[null,null,null,null,null,null,null,null,null,null,""]
[null,null,null,null,null,null,null,null,null,null,""]
[null,null,null,null,null,null,null,null,null,null,""]
[null,null,null,null,null,null,null,null,null,null,""]
[null,null,null,null,null,null,null,null,null,null,""]
[null,null,null,null,null,null,null,null,null,null,""]
[null,null,null,null,null,null,null,null,null,null,""]
[null,null,null,null,null,null,null,null,null,null,""]
[null,null,null,null,null,null,null,null,null,null,{"$f":"IF(OR(I4424=\"\",J4424=\"\"),\"\",PRODUCT(I4424,J4424))","v":""}]
[null,null,null,null,null,null,null,null,null,null,""]
[null,null,null,null,null,null,null,null,null,null,""]
[null,null,null,null,null,null,null,null,null,null,""]
[null,null,null,null,null,null,null,null,null,null,""]
[null,null,null,null,null,null,null,null,null,null,""]
[null,null,null,null,null,null,null,null,null,null,""]
[null,null,null,null,null,null,null,null,null,null,""]
[null,null,null,null,null,null,null,null,null,null,""]
[null,null,null,null,null,null,null,null,null,null,""]
[null,null,null,null,null,null,null,null,null,null,""]
[null,null,null,null,null,null,null,null,null,null,""]
[null,null,null,null,null,null,null,null,null,null,""]
[null,null,null,null,null,null,null,null,null,null,""]
[null,null,null,null,null,null,null,null,null,null,""]
[null,null,null,null,null,null,null,null,null,null,""]
[null,null,null,null,null,null,null,null,null,null,""]
[null,null,null,null,null,null,null,null,null,null,""]
[null,null,null,null,null,null,null,null,null,null,""]
[null,null,null,null,null,null,null,null,null,null,""]
[null,null,null,null,null,null,null,null,null,null,""]
[null,null,null,null,null,null,null,null,null,null,""]
[null,null,null,null,null,null,null,null,null,null,""]
[null,null,null,null,null,null,null,null,null,null,""]
[null,null,null,null,null,null,null,null,null,null,""]
[null,null,null,null,null,null,null,null,null,null,""]
[null,null,null,null,null,null,null,null,null,null,""]
[null,null,null,null,null,null,null,null,null,null,""]
[null,null,null,null,null,null,null,null,null,null,""]
[null,null,null,null,null,null,null,null,null,null,""]
[null,null,null,null,null,null,null,null,null,null,""]
[null,null,null,null,null,null,null,null,null,null,""]
[null,null,null,null,null,null,null,null,null,null,""]
[null,null,null,null,null,null,null,null,null,null,""]
[null,null,null,null,null,null,null,null,null,null,""]
[null,null,null,null,null,null,null,null,null,null,""]
[null,null,null,null,null,null,null,null,null,null,""]
[null,null,null,null,null,null,null,null,null,null,""]
[null,null,null,null,null,null,null,null,null,null,""]
[null,null,null,null,null,null,null,null,null,null,""]
[null,null,null,null,null,null,null,null,null,null,""]
[null,null,null,null,null,null,null,null,null,null,""]
[null,null,null,null,null,null,null,null,null,null,""]
[null,null,null,null,null,null,null,null,null,null,""]
[null,null,null,null,null,null,null,null,null,null,""]
[null,null,null,null,null,null,null,null,null,null,""]
[null,null,null,null,null,null,null,null,null,null,""]
[null,null,null,null,null,null,null,null,null,null,""]
[null,null,null,null,null,null,null,null,null,null,""]
[null,null,null,null,null,null,null,null,null,null,""]
[null,null,null,null,null,null,null,null,null,null,""]
[null,null,null,null,null,null,null,null,null,null,""]
[null,null,null,null,null,null,null,null,null,null,""]
[null,null,null,null,null,null,null,null,null,null,""]
[null,null,null,null,null,null,null,null,null,null,""]
[null,null,null,null,null,null,null,null,null,null,""]
[null,null,null,null,null,null,null,null,null,null,""]
[null,null,null,null,null,null,null,null,null,null,""]
[null,null,null,null,null,null,null,null,null,null,""]
[null,null,null,null,null,null,null,null,null,null,""]
[null,null,null,null,null,null,null,null,null,null,""]
[null,null,null,null,null,null,null,null,null,null,""]
[null,null,null,null,null,null,null,null,null,null,""]
[null,null,null,null,null,null,null,null,null,null,""]
[null,null,null,null,null,null,null,null,null,null,{"$f":"IF(OR(I4488=\"\",J4488=\"\"),\"\",PRODUCT(I4488,J4488))","v":""}]
[null,null,null,null,null,null,null,null,null,null,""]
[null,null,null,null,null,null,null,null,null,null,""]
[null,null,null,null,null,null,null,null,null,null,""]
[null,null,null,null,null,null,null,null,null,null,""]
[null,null,null,null,null,null,null,null,null,null,""]
[null,null,null,null,null,null,null,null,null,null,""]
[null,null,null,null,null,null,null,null,null,null,""]
[null,null,null,null,null,null,null,null,null,null,""]
[null,null,null,null,null,null,null,null,null,null,""]
[null,null,null,null,null,null,null,null,null,null,""]
[null,null,null,null,null,null,null,null,null,null,""]
[null,null,null,null,null,null,null,null,null,null,""]
[null,null,null,null,null,null,null,null,null,null,""]
[null,null,null,null,null,null,null,null,null,null,""]
[null,null,null,null,null,null,null,null,null,null,""]
[null,null,null,null,null,null,null,null,null,null,""]
[null,null,null,null,null,null,null,null,null,null,""]
[null,null,null,null,null,null,null,null,null,null,""]
[null,null,null,null,null,null,null,null,null,null,""]
[null,null,null,null,null,null,null,null,null,null,""]
[null,null,null,null,null,null,null,null,null,null,""]
[null,null,null,null,null,null,null,null,null,null,""]
[null,null,null,null,null,null,null,null,null,null,""]
[null,null,null,null,null,null,null,null,null,null,""]
[null,null,null,null,null,null,null,null,null,null,""]
[null,null,null,null,null,null,null,null,null,null,""]
[null,null,null,null,null,null,null,null,null,null,""]
[null,null,null,null,null,null,null,null,null,null,""]
[null,null,null,null,null,null,null,null,null,null,""]
[null,null,null,null,null,null,null,null,null,null,""]
[null,null,null,null,null,null,null,null,null,null,""]
[null,null,null,null,null,null,null,null,null,null,""]
[null,null,null,null,null,null,null,null,null,null,""]
[null,null,null,null,null,null,null,null,null,null,""]
[null,null,null,null,null,null,null,null,null,null,""]
[null,null,null,null,null,null,null,null,null,null,""]
[null,null,null,null,null,null,null,null,null,null,""]
[null,null,null,null,null,null,null,null,null,null,""]
[null,null,null,null,null,null,null,null,null,null,""]
[null,null,null,null,null,null,null,null,null,null,""]
[null,null,null,null,null,null,null,null,null,null,""]
[null,null,null,null,null,null,null,null,null,null,""]
[null,null,null,null,null,null,null,null,null,null,""]
[null,null,null,null,null,null,null,null,null,null,""]
[null,null,null,null,null,null,null,null,null,null,""]
[null,null,null,null,null,null,null,null,null,null,""]
[null,null,null,null,null,null,null,null,null,null,""]
[null,null,null,null,null,null,null,null,null,null,""]
[null,null,null,null,null,null,null,null,null,null,""]
[null,null,null,null,null,null,null,null,null,null,""]
[null,null,null,null,null,null,null,null,null,null,""]
[null,null,null,null,null,null,null,null,null,null,""]
[null,null,null,null,null,null,null,null,null,null,""]
[null,null,null,null,null,null,null,null,null,null,""]
[null,null,null,null,null,null,null,null,null,null,""]
[null,null,null,null,null,null,null,null,null,null,""]
[null,null,null,null,null,null,null,null,null,null,""]
[null,null,null,null,null,null,null,null,null,null,""]
[null,null,null,null,null,null,null,null,null,null,""]
[null,null,null,null,null,null,null,null,null,null,""]
[null,null,null,null,null,null,null,null,null,null,""]
[null,null,null,null,null,null,null,null,null,null,""]
[null,null,null,null,null,null,null,null,null,null,""]
[null,null,null,null,null,null,null,null,null,null,{"$f":"IF(OR(I4552=\"\",J4552=\"\"),\"\",PRODUCT(I4552,J4552))","v":""}]
[null,null,null,null,null,null,null,null,null,null,""]
[null,null,null,null,null,null,null,null,null,null,""]
[null,null,null,null,null,null,null,null,null,null,""]
[null,null,null,null,null,null,null,null,null,null,""]
[null,null,null,null,null,null,null,null,null,null,""]
[null,null,null,null,null,null,null,null,null,null,""]
[null,null,null,null,null,null,null,null,null,null,""]
[null,null,null,null,null,null,null,null,null,null,""]
[null,null,null,null,null,null,null,null,null,null,""]
[null,null,null,null,null,null,null,null,null,null,""]
[null,null,null,null,null,null,null,null,null,null,""]
[null,null,null,null,null,null,null,null,null,null,""]
[null,null,null,null,null,null,null,null,null,null,""]
[null,null,null,null,null,null,null,null,null,null,""]
[null,null,null,null,null,null,null,null,null,null,""]
[null,null,null,null,null,null,null,null,null,null,""]
[null,null,null,null,null,null,null,null,null,null,""]
[null,null,null,null,null,null,null,null,null,null,""]
[null,null,null,null,null,null,null,null,null,null,""]
[null,null,null,null,null,null,null,null,null,null,""]
[null,null,null,null,null,null,null,null,null,null,""]
[null,null,null,null,null,null,null,null,null,null,""]
[null,null,null,null,null,null,null,null,null,null,""]
[null,null,null,null,null,null,null,null,null,null,""]
[null,null,null,null,null,null,null,null,null,null,""]
[null,null,null,null,null,null,null,null,null,null,""]
[null,null,null,null,null,null,null,null,null,null,""]
[null,null,null,null,null,null,null,null,null,null,""]
[null,null,null,null,null,null,null,null,null,null,""]
[null,null,null,null,null,null,null,null,null,null,""]
[null,null,null,null,null,null,null,null,null,null,""]
[null,null,null,null,null,null,null,null,null,null,""]
[null,null,null,null,null,null,null,null,null,null,""]
[null,null,null,null,null,null,null,null,null,null,""]
[null,null,null,null,null,null,null,null,null,null,""]
[null,null,null,null,null,null,null,null,null,null,""]
[null,null,null,null,null,null,null,null,null,null,""]
[null,null,null,null,null,null,null,null,null,null,""]
[null,null,null,null,null,null,null,null,null,null,""]
[null,null,null,null,null,null,null,null,null,null,""]
[null,null,null,null,null,null,null,null,null,null,""]
[null,null,null,null,null,null,null,null,null,null,""]
[null,null,null,null,null,null,null,null,null,null,""]
[null,null,null,null,null,null,null,null,null,null,""]
[null,null,null,null,null,null,null,null,null,null,""]
[null,null,null,null,null,null,null,null,null,null,""]
[null,null,null,null,null,null,null,null,null,null,""]
[null,null,null,null,null,null,null,null,null,null,""]
[null,null,null,null,null,null,null,null,null,null,""]
[null,null,null,null,null,null,null,null,null,null,""]
[null,null,null,null,null,null,null,null,null,null,""]
[null,null,null,null,null,null,null,null,null,null,""]
[null,null,null,null,null,null,null,null,null,null,""]
[null,null,null,null,null,null,null,null,null,null,""]
[null,null,null,null,null,null,null,null,null,null,""]
[null,null,null,null,null,null,null,null,null,null,""]
[null,null,null,null,null,null,null,null,null,null,""]
[null,null,null,null,null,null,null,null,null,null,""]
[null,null,null,null,null,null,null,null,null,null,""]
[null,null,null,null,null,null,null,null,null,null,""]
[null,null,null,null,null,null,null,null,null,null,""]
[null,null,null,null,null,null,null,null,null,null,""]
[null,null,null,null,null,null,null,null,null,null,""]
[null,null,null,null,null,null,null,null,null,null,{"$f":"IF(OR(I4616=\"\",J4616=\"\"),\"\",PRODUCT(I4616,J4616))","v":""}]
[null,null,null,null,null,null,null,null,null,null,""]
[null,null,null,null,null,null,null,null,null,null,""]
[null,null,null,null,null,null,null,null,null,null,""]
[null,null,null,null,null,null,null,null,null,null,""]
[null,null,null,null,null,null,null,null,null,null,""]
[null,null,null,null,null,null,null,null,null,null,""]
[null,null,null,null,null,null,null,null,null,null,""]
[null,null,null,null,null,null,null,null,null,null,""]
[null,null,null,null,null,null,null,null,null,null,""]
[null,null,null,null,null,null,null,null,null,null,""]
[null,null,null,null,null,null,null,null,null,null,""]
[null,null,null,null,null,null,null,null,null,null,""]
[null,null,null,null,null,null,null,null,null,null,""]
[null,null,null,null,null,null,null,null,null,null,""]
[null,null,null,null,null,null,null,null,null,null,""]
[null,null,null,null,null,null,null,null,null,null,""]
[null,null,null,null,null,null,null,null,null,null,""]
[null,null,null,null,null,null,null,null,null,null,""]
[null,null,null,null,null,null,null,null,null,null,""]
[null,null,null,null,null,null,null,null,null,null,""]
[null,null,null,null,null,null,null,null,null,null,""]
[null,null,null,null,null,null,null,null,null,null,""]
[null,null,null,null,null,null,null,null,null,null,""]
[null,null,null,null,null,null,null,null,null,null,""]
[null,null,null,null,null,null,null,null,null,null,""]
[null,null,null,null,null,null,null,null,null,null,""]
[null,null,null,null,null,null,null,null,null,null,""]
[null,null,null,null,null,null,null,null,null,null,""]
[null,null,null,null,null,null,null,null,null,null,""]
[null,null,null,null,null,null,null,null,null,null,""]
[null,null,null,null,null,null,null,null,null,null,""]
[null,null,null,null,null,null,null,null,null,null,""]
[null,null,null,null,null,null,null,null,null,null,""]
[null,null,null,null,null,null,null,null,null,null,""]
[null,null,null,null,null,null,null,null,null,null,""]
[null,null,null,null,null,null,null,null,null,null,""]
[null,null,null,null,null,null,null,null,null,null,""]
[null,null,null,null,null,null,null,null,null,null,""]
[null,null,null,null,null,null,null,null,null,null,""]
[null,null,null,null,null,null,null,null,null,null,""]
[null,null,null,null,null,null,null,null,null,null,""]
[null,null,null,null,null,null,null,null,null,null,""]
[null,null,null,null,null,null,null,null,null,null,""]
[null,null,null,null,null,null,null,null,null,null,""]
[null,null,null,null,null,null,null,null,null,null,""]
[null,null,null,null,null,null,null,null,null,null,""]
[null,null,null,null,null,null,null,null,null,null,""]
[null,null,null,null,null,null,null,null,null,null,""]
[null,null,null,null,null,null,null,null,null,null,""]
[null,null,null,null,null,null,null,null,null,null,""]
[null,null,null,null,null,null,null,null,null,null,""]
[null,null,null,null,null,null,null,null,null,null,""]
[null,null,null,null,null,null,null,null,null,null,""]
[null,null,null,null,null,null,null,null,null,null,""]
[null,null,null,null,null,null,null,null,null,null,""]
[null,null,null,null,null,null,null,null,null,null,""]
[null,null,null,null,null,null,null,null,null,null,""]
[null,null,null,null,null,null,null,null,null,null,""]
[null,null,null,null,null,null,null,null,null,null,""]
[null,null,null,null,null,null,null,null,null,null,""]
[null,null,null,null,null,null,null,null,null,null,""]
[null,null,null,null,null,null,null,null,null,null,""]
[null,null,null,null,null,null,null,null,null,null,""]
[null,null,null,null,null,null,null,null,null,null,{"$f":"IF(OR(I4680=\"\",J4680=\"\"),\"\",PRODUCT(I4680,J4680))","v":""}]
[null,null,null,null,null,null,null,null,null,null,""]
[null,null,null,null,null,null,null,null,null,null,""]
[null,null,null,null,null,null,null,null,null,null,""]
[null,null,null,null,null,null,null,null,null,null,""]
[null,null,null,null,null,null,null,null,null,null,""]
[null,null,null,null,null,null,null,null,null,null,""]
[null,null,null,null,null,null,null,null,null,null,""]
[null,null,null,null,null,null,null,null,null,null,""]
[null,null,null,null,null,null,null,null,null,null,""]
[null,null,null,null,null,null,null,null,null,null,""]
[null,null,null,null,null,null,null,null,null,null,""]
[null,null,null,null,null,null,null,null,null,null,""]
[null,null,null,null,null,null,null,null,null,null,""]
[null,null,null,null,null,null,null,null,null,null,""]
[null,null,null,null,null,null,null,null,null,null,""]
[null,null,null,null,null,null,null,null,null,null,""]
[null,null,null,null,null,null,null,null,null,null,""]
[null,null,null,null,null,null,null,null,null,null,""]
[null,null,null,null,null,null,null,null,null,null,""]
[null,null,null,null,null,null,null,null,null,null,""]
[null,null,null,null,null,null,null,null,null,null,""]
[null,null,null,null,null,null,null,null,null,null,""]
[null,null,null,null,null,null,null,null,null,null,""]
[null,null,null,null,null,null,null,null,null,null,""]
[null,null,null,null,null,null,null,null,null,null,""]
[null,null,null,null,null,null,null,null,null,null,""]
[null,null,null,null,null,null,null,null,null,null,""]
[null,null,null,null,null,null,null,null,null,null,""]
[null,null,null,null,null,null,null,null,null,null,""]
[null,null,null,null,null,null,null,null,null,null,""]
[null,null,null,null,null,null,null,null,null,null,""]
[null,null,null,null,null,null,null,null,null,null,""]
[null,null,null,null,null,null,null,null,null,null,""]
[null,null,null,null,null,null,null,null,null,null,""]
[null,null,null,null,null,null,null,null,null,null,""]
[null,null,null,null,null,null,null,null,null,null,""]
[null,null,null,null,null,null,null,null,null,null,""]
[null,null,null,null,null,null,null,null,null,null,""]
[null,null,null,null,null,null,null,null,null,null,""]
[null,null,null,null,null,null,null,null,null,null,""]
[null,null,null,null,null,null,null,null,null,null,""]
[null,null,null,null,null,null,null,null,null,null,""]
[null,null,null,null,null,null,null,null,null,null,""]
[null,null,null,null,null,null,null,null,null,null,""]
[null,null,null,null,null,null,null,null,null,null,""]
[null,null,null,null,null,null,null,null,null,null,""]
[null,null,null,null,null,null,null,null,null,null,""]
[null,null,null,null,null,null,null,null,null,null,""]
[null,null,null,null,null,null,null,null,null,null,""]
[null,null,null,null,null,null,null,null,null,null,""]
[null,null,null,null,null,null,null,null,null,null,""]
[null,null,null,null,null,null,null,null,null,null,""]
[null,null,null,null,null,null,null,null,null,null,""]
[null,null,null,null,null,null,null,null,null,null,""]
[null,null,null,null,null,null,null,null,null,null,""]
[null,null,null,null,null,null,null,null,null,null,""]
[null,null,null,null,null,null,null,null,null,null,""]
[null,null,null,null,null,null,null,null,null,null,""]
[null,null,null,null,null,null,null,null,null,null,""]
[null,null,null,null,null,null,null,null,null,null,""]
[null,null,null,null,null,null,null,null,null,null,""]
[null,null,null,null,null,null,null,null,null,null,""]
[null,null,null,null,null,null,null,null,null,null,""]
[null,null,null,null,null,null,null,null,null,null,{"$f":"IF(OR(I4744=\"\",J4744=\"\"),\"\",PRODUCT(I4744,J4744))","v":""}]
[null,null,null,null,null,null,null,null,null,null,""]
[null,null,null,null,null,null,null,null,null,null,""]
[null,null,null,null,null,null,null,null,null,null,""]
[null,null,null,null,null,null,null,null,null,null,""]
[null,null,null,null,null,null,null,null,null,null,""]
[null,null,null,null,null,null,null,null,null,null,""]
[null,null,null,null,null,null,null,null,null,null,""]
[null,null,null,null,null,null,null,null,null,null,""]
[null,null,null,null,null,null,null,null,null,null,""]
[null,null,null,null,null,null,null,null,null,null,""]
[null,null,null,null,null,null,null,null,null,null,""]
[null,null,null,null,null,null,null,null,null,null,""]
[null,null,null,null,null,null,null,null,null,null,""]
[null,null,null,null,null,null,null,null,null,null,""]
[null,null,null,null,null,null,null,null,null,null,""]
[null,null,null,null,null,null,null,null,null,null,""]
[null,null,null,null,null,null,null,null,null,null,""]
[null,null,null,null,null,null,null,null,null,null,""]
[null,null,null,null,null,null,null,null,null,null,""]
[null,null,null,null,null,null,null,null,null,null,""]
[null,null,null,null,null,null,null,null,null,null,""]
[null,null,null,null,null,null,null,null,null,null,""]
[null,null,null,null,null,null,null,null,null,null,""]
[null,null,null,null,null,null,null,null,null,null,""]
[null,null,null,null,null,null,null,null,null,null,""]
[null,null,null,null,null,null,null,null,null,null,""]
[null,null,null,null,null,null,null,null,null,null,""]
[null,null,null,null,null,null,null,null,null,null,""]
[null,null,null,null,null,null,null,null,null,null,""]
[null,null,null,null,null,null,null,null,null,null,""]
[null,null,null,null,null,null,null,null,null,null,""]
[null,null,null,null,null,null,null,null,null,null,""]
[null,null,null,null,null,null,null,null,null,null,""]
[null,null,null,null,null,null,null,null,null,null,""]
[null,null,null,null,null,null,null,null,null,null,""]
[null,null,null,null,null,null,null,null,null,null,""]
[null,null,null,null,null,null,null,null,null,null,""]
[null,null,null,null,null,null,null,null,null,null,""]
[null,null,null,null,null,null,null,null,null,null,""]
[null,null,null,null,null,null,null,null,null,null,""]
[null,null,null,null,null,null,null,null,null,null,""]
[null,null,null,null,null,null,null,null,null,null,""]
[null,null,null,null,null,null,null,null,null,null,""]
[null,null,null,null,null,null,null,null,null,null,""]
[null,null,null,null,null,null,null,null,null,null,""]
[null,null,null,null,null,null,null,null,null,null,""]
[null,null,null,null,null,null,null,null,null,null,""]
[null,null,null,null,null,null,null,null,null,null,""]
[null,null,null,null,null,null,null,null,null,null,""]
[null,null,null,null,null,null,null,null,null,null,""]
[null,null,null,null,null,null,null,null,null,null,""]
[null,null,null,null,null,null,null,null,null,null,""]
[null,null,null,null,null,null,null,null,null,null,""]
[null,null,null,null,null,null,null,null,null,null,""]
[null,null,null,null,null,null,null,null,null,null,""]
[null,null,null,null,null,null,null,null,null,null,""]
[null,null,null,null,null,null,null,null,null,null,""]
[null,null,null,null,null,null,null,null,null,null,""]
[null,null,null,null,null,null,null,null,null,null,""]
[null,null,null,null,null,null,null,null,null,null,""]
[null,null,null,null,null,null,null,null,null,null,""]
[null,null,null,null,null,null,null,null,null,null,""]
[null,null,null,null,null,null,null,null,null,null,""]
[null,null,null,null,null,null,null,null,null,null,{"$f":"IF(OR(I4808=\"\",J4808=\"\"),\"\",PRODUCT(I4808,J4808))","v":""}]
[null,null,null,null,null,null,null,null,null,null,""]
[null,null,null,null,null,null,null,null,null,null,""]
[null,null,null,null,null,null,null,null,null,null,""]
[null,null,null,null,null,null,null,null,null,null,""]
[null,null,null,null,null,null,null,null,null,null,""]
[null,null,null,null,null,null,null,null,null,null,""]
[null,null,null,null,null,null,null,null,null,null,""]
[null,null,null,null,null,null,null,null,null,null,""]
[null,null,null,null,null,null,null,null,null,null,""]
[null,null,null,null,null,null,null,null,null,null,""]
[null,null,null,null,null,null,null,null,null,null,""]
[null,null,null,null,null,null,null,null,null,null,""]
[null,null,null,null,null,null,null,null,null,null,""]
[null,null,null,null,null,null,null,null,null,null,""]
[null,null,null,null,null,null,null,null,null,null,""]
[null,null,null,null,null,null,null,null,null,null,""]
[null,null,null,null,null,null,null,null,null,null,""]
[null,null,null,null,null,null,null,null,null,null,""]
[null,null,null,null,null,null,null,null,null,null,""]
[null,null,null,null,null,null,null,null,null,null,""]
[null,null,null,null,null,null,null,null,null,null,""]
[null,null,null,null,null,null,null,null,null,null,""]
[null,null,null,null,null,null,null,null,null,null,""]
[null,null,null,null,null,null,null,null,null,null,""]
[null,null,null,null,null,null,null,null,null,null,""]
[null,null,null,null,null,null,null,null,null,null,""]
[null,null,null,null,null,null,null,null,null,null,""]
[null,null,null,null,null,null,null,null,null,null,""]
[null,null,null,null,null,null,null,null,null,null,""]
[null,null,null,null,null,null,null,null,null,null,""]
[null,null,null,null,null,null,null,null,null,null,""]
[null,null,null,null,null,null,null,null,null,null,""]
[null,null,null,null,null,null,null,null,null,null,""]
[null,null,null,null,null,null,null,null,null,null,""]
[null,null,null,null,null,null,null,null,null,null,""]
[null,null,null,null,null,null,null,null,null,null,""]
[null,null,null,null,null,null,null,null,null,null,""]
[null,null,null,null,null,null,null,null,null,null,""]
[null,null,null,null,null,null,null,null,null,null,""]
[null,null,null,null,null,null,null,null,null,null,""]
[null,null,null,null,null,null,null,null,null,null,""]
[null,null,null,null,null,null,null,null,null,null,""]
[null,null,null,null,null,null,null,null,null,null,""]
[null,null,null,null,null,null,null,null,null,null,""]
[null,null,null,null,null,null,null,null,null,null,""]
[null,null,null,null,null,null,null,null,null,null,""]
[null,null,null,null,null,null,null,null,null,null,""]
[null,null,null,null,null,null,null,null,null,null,""]
[null,null,null,null,null,null,null,null,null,null,""]
[null,null,null,null,null,null,null,null,null,null,""]
[null,null,null,null,null,null,null,null,null,null,""]
[null,null,null,null,null,null,null,null,null,null,""]
[null,null,null,null,null,null,null,null,null,null,""]
[null,null,null,null,null,null,null,null,null,null,""]
[null,null,null,null,null,null,null,null,null,null,""]
[null,null,null,null,null,null,null,null,null,null,""]
[null,null,null,null,null,null,null,null,null,null,""]
[null,null,null,null,null,null,null,null,null,null,""]
[null,null,null,null,null,null,null,null,null,null,""]
[null,null,null,null,null,null,null,null,null,null,""]
[null,null,null,null,null,null,null,null,null,null,""]
[null,null,null,null,null,null,null,null,null,null,""]
[null,null,null,null,null,null,null,null,null,null,""]
[null,null,null,null,null,null,null,null,null,null,{"$f":"IF(OR(I4872=\"\",J4872=\"\"),\"\",PRODUCT(I4872,J4872))","v":""}]
[null,null,null,null,null,null,null,null,null,null,""]
[null,null,null,null,null,null,null,null,null,null,""]
[null,null,null,null,null,null,null,null,null,null,""]
[null,null,null,null,null,null,null,null,null,null,""]
[null,null,null,null,null,null,null,null,null,null,""]
[null,null,null,null,null,null,null,null,null,null,""]
[null,null,null,null,null,null,null,null,null,null,""]
[null,null,null,null,null,null,null,null,null,null,""]
[null,null,null,null,null,null,null,null,null,null,""]
[null,null,null,null,null,null,null,null,null,null,""]
[null,null,null,null,null,null,null,null,null,null,""]
[null,null,null,null,null,null,null,null,null,null,""]
[null,null,null,null,null,null,null,null,null,null,""]
[null,null,null,null,null,null,null,null,null,null,""]
[null,null,null,null,null,null,null,null,null,null,""]
[null,null,null,null,null,null,null,null,null,null,""]
[null,null,null,null,null,null,null,null,null,null,""]
[null,null,null,null,null,null,null,null,null,null,""]
[null,null,null,null,null,null,null,null,null,null,""]
[null,null,null,null,null,null,null,null,null,null,""]
[null,null,null,null,null,null,null,null,null,null,""]
[null,null,null,null,null,null,null,null,null,null,""]
[null,null,null,null,null,null,null,null,null,null,""]
[null,null,null,null,null,null,null,null,null,null,""]
[null,null,null,null,null,null,null,null,null,null,""]
[null,null,null,null,null,null,null,null,null,null,""]
[null,null,null,null,null,null,null,null,null,null,""]
[null,null,null,null,null,null,null,null,null,null,""]
[null,null,null,null,null,null,null,null,null,null,""]
[null,null,null,null,null,null,null,null,null,null,""]
[null,null,null,null,null,null,null,null,null,null,""]
[null,null,null,null,null,null,null,null,null,null,""]
[null,null,null,null,null,null,null,null,null,null,""]
[null,null,null,null,null,null,null,null,null,null,""]
[null,null,null,null,null,null,null,null,null,null,""]
[null,null,null,null,null,null,null,null,null,null,""]
[null,null,null,null,null,null,null,null,null,null,""]
[null,null,null,null,null,null,null,null,null,null,""]
[null,null,null,null,null,null,null,null,null,null,""]
[null,null,null,null,null,null,null,null,null,null,""]
[null,null,null,null,null,null,null,null,null,null,""]
[null,null,null,null,null,null,null,null,null,null,""]
[null,null,null,null,null,null,null,null,null,null,""]
[null,null,null,null,null,null,null,null,null,null,""]
[null,null,null,null,null,null,null,null,null,null,""]
[null,null,null,null,null,null,null,null,null,null,""]
[null,null,null,null,null,null,null,null,null,null,""]
[null,null,null,null,null,null,null,null,null,null,""]
[null,null,null,null,null,null,null,null,null,null,""]
[null,null,null,null,null,null,null,null,null,null,""]
[null,null,null,null,null,null,null,null,null,null,""]
[null,null,null,null,null,null,null,null,null,null,""]
[null,null,null,null,null,null,null,null,null,null,""]
[null,null,null,null,null,null,null,null,null,null,""]
[null,null,null,null,null,null,null,null,null,null,""]
[null,null,null,null,null,null,null,null,null,null,""]
[null,null,null,null,null,null,null,null,null,null,""]
[null,null,null,null,null,null,null,null,null,null,""]
[null,null,null,null,null,null,null,null,null,null,""]
[null,null,null,null,null,null,null,null,null,null,""]
[null,null,null,null,null,null,null,null,null,null,""]
[null,null,null,null,null,null,null,null,null,null,""]
[null,null,null,null,null,null,null,null,null,null,""]
[null,null,null,null,null,null,null,null,null,null,{"$f":"IF(OR(I4936=\"\",J4936=\"\"),\"\",PRODUCT(I4936,J4936))","v":""}]
[null,null,null,null,null,null,null,null,null,null,""]
[null,null,null,null,null,null,null,null,null,null,""]
[null,null,null,null,null,null,null,null,null,null,""]
[null,null,null,null,null,null,null,null,null,null,""]
[null,null,null,null,null,null,null,null,null,null,""]
[null,null,null,null,null,null,null,null,null,null,""]
[null,null,null,null,null,null,null,null,null,null,""]
[null,null,null,null,null,null,null,null,null,null,""]
[null,null,null,null,null,null,null,null,null,null,""]
[null,null,null,null,null,null,null,null,null,null,""]
[null,null,null,null,null,null,null,null,null,null,""]
[null,null,null,null,null,null,null,null,null,null,""]
[null,null,null,null,null,null,null,null,null,null,""]
[null,null,null,null,null,null,null,null,null,null,""]
[null,null,null,null,null,null,null,null,null,null,""]
[null,null,null,null,null,null,null,null,null,null,""]
[null,null,null,null,null,null,null,null,null,null,""]
[null,null,null,null,null,null,null,null,null,null,""]
[null,null,null,null,null,null,null,null,null,null,""]
[null,null,null,null,null,null,null,null,null,null,""]
[null,null,null,null,null,null,null,null,null,null,""]
[null,null,null,null,null,null,null,null,null,null,""]
[null,null,null,null,null,null,null,null,null,null,""]
[null,null,null,null,null,null,null,null,null,null,""]
[null,null,null,null,null,null,null,null,null,null,""]
[null,null,null,null,null,null,null,null,null,null,""]
[null,null,null,null,null,null,null,null,null,null,""]
[null,null,null,null,null,null,null,null,null,null,""]
[null,null,null,null,null,null,null,null,null,null,""]
[null,null,null,null,null,null,null,null,null,null,""]
[null,null,null,null,null,null,null,null,null,null,""]
[null,null,null,null,null,null,null,null,null,null,""]
[null,null,null,null,null,null,null,null,null,null,""]
[null,null,null,null,null,null,null,null,null,null,""]
[null,null,null,null,null,null,null,null,null,null,""]
[null,null,null,null,null,null,null,null,null,null,""]
[null,null,null,null,null,null,null,null,null,null,""]
[null,null,null,null,null,null,null,null,null,null,""]
[null,null,null,null,null,null,null,null,null,null,""]
[null,null,null,null,null,null,null,null,null,null,""]
[null,null,null,null,null,null,null,null,null,null,""]
[null,null,null,null,null,null,null,null,null,null,""]
[null,null,null,null,null,null,null,null,null,null,""]
[null,null,null,null,null,null,null,null,null,null,""]
[null,null,null,null,null,null,null,null,null,null,""]
[null,null,null,null,null,null,null,null,null,null,""]
[null,null,null,null,null,null,null,null,null,null,""]
[null,null,null,null,null,null,null,null,null,null,""]
[null,null,null,null,null,null,null,null,null,null,""]
[null,null,null,null,null,null,null,null,null,null,""]
[null,null,null,null,null,null,null,null,null,null,""]
[null,null,null,null,null,null,null,null,null,null,""]
[null,null,null,null,null,null,null,null,null,null,""]
[null,null,null,null,null,null,null,null,null,null,""]
[null,null,null,null,null,null,null,null,null,null,""]
[null,null,null,null,null,null,null,null,null,null,""]
[null,null,null,null,null,null,null,null,null,null,""]
[null,null,null,null,null,null,null,null,null,null,""]
[null,null,null,null,null,null,null,null,null,null,""]
[null,null,null,null,null,null,null,null,null,null,""]
[null,null,null,null,null,null,null,null,null,null,""]
[null,null,null,null,null,null,null,null,null,null,""]
[null,null,null,null,null,null,null,null,null,null,""]
[null,null,null,null,null,null,null,null,null,null,{"$f":"IF(OR(I5000=\"\",J5000=\"\"),\"\",PRODUCT(I5000,J5000))","v":""}]
[null,null,null,null,null,null,null,null,null,null,""]
[null,null,null,null,null,null,null,null,null,null,""]
[null,null,null,null,null,null,null,null,null,null,""]
[null,null,null,null,null,null,null,null,null,null,""]
[null,null,null,null,null,null,null,null,null,null,""]
[null,null,null,null,null,null,null,null,null,null,""]
[null,null,null,null,null,null,null,null,null,null,""]
[null,null,null,null,null,null,null,null,null,null,""]
[null,null,null,null,null,null,null,null,null,null,""]
[null,null,null,null,null,null,null,null,null,null,""]
[null,null,null,null,null,null,null,null,null,null,""]
[null,null,null,null,null,null,null,null,null,null,""]
[null,null,null,null,null,null,null,null,null,null,""]
[null,null,null,null,null,null,null,null,null,null,""]
[null,null,null,null,null,null,null,null,null,null,""]
[null,null,null,null,null,null,null,null,null,null,""]
[null,null,null,null,null,null,null,null,null,null,""]
[null,null,null,null,null,null,null,null,null,null,""]
[null,null,null,null,null,null,null,null,null,null,""]
[null,null,null,null,null,null,null,null,null,null,""]
[null,null,null,null,null,null,null,null,null,null,""]
[null,null,null,null,null,null,null,null,null,null,""]
[null,null,null,null,null,null,null,null,null,null,""]
[null,null,null,null,null,null,null,null,null,null,""]
[null,null,null,null,null,null,null,null,null,null,""]
[null,null,null,null,null,null,null,null,null,null,""]
[null,null,null,null,null,null,null,null,null,null,""]
[null,null,null,null,null,null,null,null,null,null,""]
[null,null,null,null,null,null,null,null,null,null,""]
[null,null,null,null,null,null,null,null,null,null,""]
[null,null,null,null,null,null,null,null,null,null,""]
[null,null,null,null,null,null,null,null,null,null,""]
[null,null,null,null,null,null,null,null,null,null,""]
[null,null,null,null,null,null,null,null,null,null,""]
[null,null,null,null,null,null,null,null,null,null,""]
[null,null,null,null,null,null,null,null,null,null,""]
[null,null,null,null,null,null,null,null,null,null,""]
[null,null,null,null,null,null,null,null,null,null,""]
[null,null,null,null,null,null,null,null,null,null,""]
[null,null,null,null,null,null,null,null,null,null,""]
[null,null,null,null,null,null,null,null,null,null,""]
[null,null,null,null,null,null,null,null,null,null,""]
[null,null,null,null,null,null,null,null,null,null,""]
[null,null,null,null,null,null,null,null,null,null,""]
[null,null,null,null,null,null,null,null,null,null,""]
[null,null,null,null,null,null,null,null,null,null,""]
[null,null,null,null,null,null,null,null,null,null,""]
[null,null,null,null,null,null,null,null,null,null,""]
[null,null,null,null,null,null,null,null,null,null,""]
[null,null,null,null,null,null,null,null,null,null,""]
[null,null,null,null,null,null,null,null,null,null,""]
[null,null,null,null,null,null,null,null,null,null,""]
[null,null,null,null,null,null,null,null,null,null,""]
[null,null,null,null,null,null,null,null,null,null,""]
[null,null,null,null,null,null,null,null,null,null,""]
[null,null,null,null,null,null,null,null,null,null,""]
[null,null,null,null,null,null,null,null,null,null,""]
[null,null,null,null,null,null,null,null,null,null,""]
[null,null,null,null,null,null,null,null,null,null,""]
[null,null,null,null,null,null,null,null,null,null,""]
[null,null,null,null,null,null,null,null,null,null,""]
[null,null,null,null,null,null,null,null,null,null,""]
[null,null,null,null,null,null,null,null,null,null,""]
[null,null,null,null,null,null,null,null,null,null,{"$f":"IF(OR(I5064=\"\",J5064=\"\"),\"\",PRODUCT(I5064,J5064))","v":""}]
[null,null,null,null,null,null,null,null,null,null,""]
[null,null,null,null,null,null,null,null,null,null,""]
[null,null,null,null,null,null,null,null,null,null,""]
[null,null,null,null,null,null,null,null,null,null,""]
[null,null,null,null,null,null,null,null,null,null,""]
[null,null,null,null,null,null,null,null,null,null,""]
[null,null,null,null,null,null,null,null,null,null,""]
[null,null,null,null,null,null,null,null,null,null,""]
[null,null,null,null,null,null,null,null,null,null,""]
[null,null,null,null,null,null,null,null,null,null,""]
[null,null,null,null,null,null,null,null,null,null,""]
[null,null,null,null,null,null,null,null,null,null,""]
[null,null,null,null,null,null,null,null,null,null,""]
[null,null,null,null,null,null,null,null,null,null,""]
[null,null,null,null,null,null,null,null,null,null,""]
[null,null,null,null,null,null,null,null,null,null,""]
[null,null,null,null,null,null,null,null,null,null,""]
[null,null,null,null,null,null,null,null,null,null,""]
[null,null,null,null,null,null,null,null,null,null,""]
[null,null,null,null,null,null,null,null,null,null,""]
[null,null,null,null,null,null,null,null,null,null,""]
[null,null,null,null,null,null,null,null,null,null,""]

{"sheet":"مجدى","index":3,"n_rows":35,"n_cols":8,"rows_kept":35,"cut":false,"hidden":false,"merged":[]}
[]
[]
[null,"اليوم","التاريخ","المعدة","اسم المقاول","اسم السائق","الساعات","المقاول"]
[1,"2021-01-03","2021-01-03","لودر صغير","مجدى","هيثم ",5,"السيد"]
[2,"2021-01-04","2021-01-04","لودر صغير","مجدى","هيثم ",6,"السيد"]
[3,"2021-01-05","2021-01-05","لودر صغير","مجدى","هيثم ",7,"السيد"]
[4,"2021-01-06","2021-01-06","لودر صغير","مجدى","هيثم ",8,"السيد"]
[5,"2021-01-07","2021-01-07","لودر صغير","مجدى","هيثم ",9,"السيد"]
[6,"2021-01-08","2021-01-08","لودر صغير","مجدى","هيثم ",10,"السيد"]
[7,"2021-01-09","2021-01-09","لودر صغير","مجدى","هيثم ",11,"السيد"]
[8,"2021-01-10","2021-01-10","لودر صغير","مجدى","هيثم ",12,"السيد"]
[9,"2021-01-11","2021-01-11","لودر صغير","مجدى","هيثم ",13,"السيد"]
[10,"2021-01-12","2021-01-12","لودر صغير","مجدى","هيثم ",14,"السيد"]
[11,"2021-01-13","2021-01-13","لودر صغير","مجدى","هيثم ",15,"السيد"]
[12,"2021-01-14","2021-01-14","لودر صغير","مجدى","هيثم ",16,"السيد"]
[13,"2021-01-15","2021-01-15","لودر صغير","مجدى","هيثم ",17,"السيد"]
[14,"2021-01-16","2021-01-16","لودر صغير","مجدى","هيثم ",18,"السيد"]
[15,"2021-01-17","2021-01-17","لودر صغير","مجدى","هيثم ",19,"السيد"]
[16,"2021-01-18","2021-01-18","لودر صغير","مجدى","هيثم ",20,"السيد"]
[17,"2021-01-19","2021-01-19","لودر صغير","مجدى","هيثم ",21,"السيد"]
[18,"2021-01-20","2021-01-20","لودر صغير","مجدى","هيثم ",22,"السيد"]
[19,"2021-01-21","2021-01-21","لودر صغير","مجدى","هيثم ",23,"السيد"]
[20,"2021-01-22","2021-01-22","لودر صغير","مجدى","هيثم ",24,"السيد"]
[21,"2021-01-23","2021-01-23","لودر صغير","مجدى","هيثم ",25,"السيد"]
[22,"2021-01-24","2021-01-24","لودر صغير","مجدى","هيثم ",26,"السيد"]
[23,"2021-01-25","2021-01-25","لودر صغير","مجدى","هيثم ",27,"السيد"]
[24,"2021-01-26","2021-01-26","لودر صغير","مجدى","هيثم ",28,"السيد"]
[25,"2021-01-27","2021-01-27","لودر صغير","مجدى","هيثم ",29,"السيد"]
[26,"2021-01-28","2021-01-28","لودر صغير","مجدى","هيثم ",30,"السيد"]
[27,"2021-01-29","2021-01-29","لودر صغير","مجدى","هيثم ",31,"السيد"]
[28,"2021-01-30","2021-01-30","لودر صغير","مجدى","هيثم ",32,"السيد"]
[29,"2021-01-31","2021-01-31","لودر صغير","مجدى","هيثم ",33,"السيد"]
[30,"2021-02-01","2021-02-01","لودر صغير","مجدى","هيثم ",34,"السيد"]
[31,"2021-02-02","2021-02-02","لودر صغير","مجدى","هيثم ",35,"السيد"]
[32,"2021-02-05","2021-02-05","سيارة م3","مجدى","هيثم ",38,"السيد"]

{"sheet":"صلاح","index":4,"n_rows":4,"n_cols":8,"rows_kept":4,"cut":false,"hidden":false,"merged":[]}
[]
[]
[null,"اليوم","التاريخ","المعدة","اسم المقاول","اسم السائق","الساعات","المقاول"]
[1,"2021-02-03","2021-02-03","سيارة مياه صغيرة","صلاح","هيثم ",36,"السيد"]

{"sheet":"علوان","index":5,"n_rows":4,"n_cols":8,"rows_kept":4,"cut":false,"hidden":false,"merged":[]}
[]
[]
[null,"اليوم","التاريخ","المعدة","اسم المقاول","اسم السائق","الساعات","المقاول"]
[1,"2021-02-04","2021-02-04","هراس صغير","علوان","هيثم ",37,"السيد"]

{"sheet":"رضا","index":6,"n_rows":7,"n_cols":8,"rows_kept":7,"cut":false,"hidden":false,"merged":[]}
[]
[]
[null,"اليوم","التاريخ","المعدة","اسم المقاول","اسم السائق","الساعات","المقاول"]
[1,"2021-02-06","2021-02-06","لودر صغير","رضا","هيثم ",39,"السيد"]
[2,"2021-02-07","2021-02-07","سيارة مياه صغيرة","رضا","هيثم ",40,"السيد"]
[3,"2021-02-08","2021-02-08","هراس صغير","رضا","هيثم ",41,"السيد"]
[4,"2021-02-09","2021-02-09","سيارة م4","رضا","هيثم ",42,"السيد"]